Transaction Date,Local Authority Department,Beneficiary,Purpose of Expenditure,Amount (excluding VAT),Non Recoverable VAT,Merchant Category
 01-07-2023,Adults,Marlow,Residential Placements - Private Contractors Payment,7109.84,0.00,COMMERCIAL SUPPLIER 
 01-07-2023,Adults,Marlow,Residential Placements - Private Contractors Payment,2256.24,0.00,COMMERCIAL SUPPLIER 
 03-07-2023,Adults,Amachyck Care Solution Ltd.,Home Care - Private Contractors Payment,1135.70,0.00,COMMERCIAL SUPPLIER 
 03-07-2023,Adults,The Sycamore Trust,Payments To Voluntary Sector,3333.34,0.00,COMMERCIAL SUPPLIER 
 03-07-2023,Adults,The Sycamore Trust,Payments To Voluntary Sector,3333.33,0.00,COMMERCIAL SUPPLIER 
 03-07-2023,Adults,Jamats Academy Ltd,Daycare - Private Contractors Payment,556.05,0.00,COMMERCIAL SUPPLIER 
 03-07-2023,Adults,Bluebird Care Havering,Home Care - Private Contractors Payment,2670.50,0.00,COMMERCIAL SUPPLIER 
 03-07-2023,Adults,Bluebird Care Havering,Home Care - Private Contractors Payment,831.36,0.00,COMMERCIAL SUPPLIER 
 03-07-2023,Adults,Bluebird Care Havering,Home Care - Private Contractors Payment,1357.52,0.00,COMMERCIAL SUPPLIER 
 03-07-2023,Adults,Bluebird Care Havering,Home Care - Private Contractors Payment,2670.50,0.00,COMMERCIAL SUPPLIER 
 03-07-2023,Adults,Radfield Home Care Havering & Brentwood,Home Care - Private Contractors Payment,1186.00,0.00,COMMERCIAL SUPPLIER 
 03-07-2023,Adults,Radfield Home Care Havering & Brentwood,Home Care - Private Contractors Payment,737.25,0.00,COMMERCIAL SUPPLIER 
 03-07-2023,Adults,Care-Away Ltd T/A Care Support,Private Contractors Payment - Other,20828.31,0.00,COMMERCIAL SUPPLIER 
 03-07-2023,Adults,All Therapy Solutions Ltd,Occupational Health,4340.00,0.00,COMMERCIAL SUPPLIER 
 03-07-2023,Adults,Able2achieve Ltd,Supported Other Accommodation - Private Contractors Payment,17484.42,0.00,COMMERCIAL SUPPLIER 
 03-07-2023,Adults,Passion Tree Care Services Ltd,Home Care - Private Contractors Payment,611.54,0.00,COMMERCIAL SUPPLIER 
 03-07-2023,Adults,Passion Tree Care Services Ltd,Home Care - Private Contractors Payment,611.54,0.00,COMMERCIAL SUPPLIER 
 03-07-2023,Adults,Passion Tree Care Services Ltd,Home Care - Private Contractors Payment,1048.33,0.00,COMMERCIAL SUPPLIER 
 03-07-2023,Adults,Passion Tree Care Services Ltd,Home Care - Private Contractors Payment,1310.45,0.00,COMMERCIAL SUPPLIER 
 03-07-2023,Adults,Passion Tree Care Services Ltd,Home Care - Private Contractors Payment,917.31,0.00,COMMERCIAL SUPPLIER 
 03-07-2023,Adults,Passion Tree Care Services Ltd,Home Care - Private Contractors Payment,1223.08,0.00,COMMERCIAL SUPPLIER 
 03-07-2023,Adults,Passion Tree Care Services Ltd,Home Care - Private Contractors Payment,611.54,0.00,COMMERCIAL SUPPLIER 
 03-07-2023,Adults,Passion Tree Care Services Ltd,Home Care - Private Contractors Payment,1223.08,0.00,COMMERCIAL SUPPLIER 
 03-07-2023,Adults,Passion Tree Care Services Ltd,Home Care - Private Contractors Payment,1375.96,0.00,COMMERCIAL SUPPLIER 
 03-07-2023,Adults,Passion Tree Care Services Ltd,Home Care - Private Contractors Payment,1375.96,0.00,COMMERCIAL SUPPLIER 
 03-07-2023,Adults,Passion Tree Care Services Ltd,Home Care - Private Contractors Payment,1070.19,0.00,COMMERCIAL SUPPLIER 
 03-07-2023,Adults,Passion Tree Care Services Ltd,Home Care - Private Contractors Payment,611.54,0.00,COMMERCIAL SUPPLIER 
 03-07-2023,Adults,Passion Tree Care Services Ltd,Home Care - Private Contractors Payment,611.54,0.00,COMMERCIAL SUPPLIER 
 03-07-2023,Adults,Passion Tree Care Services Ltd,Home Care - Private Contractors Payment,1375.96,0.00,COMMERCIAL SUPPLIER 
 04-07-2023,Adults,Flex360 Limited,Private Contractors Payment - Other,1750.00,0.00,COMMERCIAL SUPPLIER 
 04-07-2023,Adults,Pleasant Home Healthcare Ltd,Home Care - Private Contractors Payment,1987.48,0.00,COMMERCIAL SUPPLIER 
 05-07-2023,Adults,John Stanleys Care Agency Ltd,Home Care - Private Contractors Payment,998.43,0.00,COMMERCIAL SUPPLIER 
 05-07-2023,Adults,John Stanleys Care Agency Ltd,Home Care - Private Contractors Payment,3369.92,0.00,COMMERCIAL SUPPLIER 
 05-07-2023,Adults,John Stanleys Care Agency Ltd,Home Care - Private Contractors Payment,528.54,0.00,COMMERCIAL SUPPLIER 
 05-07-2023,Adults,John Stanleys Care Agency Ltd,Home Care - Private Contractors Payment,540.19,0.00,COMMERCIAL SUPPLIER 
 05-07-2023,Adults,John Stanleys Care Agency Ltd,Home Care - Private Contractors Payment,675.61,0.00,COMMERCIAL SUPPLIER 
 05-07-2023,Adults,John Stanleys Care Agency Ltd,Home Care - Private Contractors Payment,754.60,0.00,COMMERCIAL SUPPLIER 
 05-07-2023,Adults,John Stanleys Care Agency Ltd,Home Care - Private Contractors Payment,1034.16,0.00,COMMERCIAL SUPPLIER 
 05-07-2023,Adults,John Stanleys Care Agency Ltd,Home Care - Private Contractors Payment,1514.64,0.00,COMMERCIAL SUPPLIER 
 05-07-2023,Adults,John Stanleys Care Agency Ltd,Home Care - Private Contractors Payment,1038.16,0.00,COMMERCIAL SUPPLIER 
 05-07-2023,Adults,John Stanleys Care Agency Ltd,Home Care - Private Contractors Payment,876.54,0.00,COMMERCIAL SUPPLIER 
 05-07-2023,Adults,John Stanleys Care Agency Ltd,Home Care - Private Contractors Payment,548.20,0.00,COMMERCIAL SUPPLIER 
 05-07-2023,Adults,John Stanleys Care Agency Ltd,Home Care - Private Contractors Payment,888.90,0.00,COMMERCIAL SUPPLIER 
 05-07-2023,Adults,John Stanleys Care Agency Ltd,Home Care - Private Contractors Payment,669.78,0.00,COMMERCIAL SUPPLIER 
 05-07-2023,Adults,John Stanleys Care Agency Ltd,Home Care - Private Contractors Payment,1316.62,0.00,COMMERCIAL SUPPLIER 
 05-07-2023,Adults,John Stanleys Care Agency Ltd,Home Care - Private Contractors Payment,752.05,0.00,COMMERCIAL SUPPLIER 
 05-07-2023,Adults,John Stanleys Care Agency Ltd,Home Care - Private Contractors Payment,762.24,0.00,COMMERCIAL SUPPLIER 
 05-07-2023,Adults,John Stanleys Care Agency Ltd,Home Care - Private Contractors Payment,1026.15,0.00,COMMERCIAL SUPPLIER 
 05-07-2023,Adults,John Stanleys Care Agency Ltd,Home Care - Private Contractors Payment,922.77,0.00,COMMERCIAL SUPPLIER 
 05-07-2023,Adults,John Stanleys Care Agency Ltd,Home Care - Private Contractors Payment,1095.32,0.00,COMMERCIAL SUPPLIER 
 05-07-2023,Adults,John Stanleys Care Agency Ltd,Home Care - Private Contractors Payment,507.07,0.00,COMMERCIAL SUPPLIER 
 05-07-2023,Adults,John Stanleys Care Agency Ltd,Home Care - Private Contractors Payment,953.69,0.00,COMMERCIAL SUPPLIER 
 05-07-2023,Adults,John Stanleys Care Agency Ltd,Home Care - Private Contractors Payment,1643.13,0.00,COMMERCIAL SUPPLIER 
 05-07-2023,Adults,John Stanleys Care Agency Ltd,Home Care - Private Contractors Payment,547.48,0.00,COMMERCIAL SUPPLIER 
 05-07-2023,Adults,John Stanleys Care Agency Ltd,Home Care - Private Contractors Payment,1023.24,0.00,COMMERCIAL SUPPLIER 
 05-07-2023,Adults,John Stanleys Care Agency Ltd,Home Care - Private Contractors Payment,1232.18,0.00,COMMERCIAL SUPPLIER 
 05-07-2023,Adults,John Stanleys Care Agency Ltd,Home Care - Private Contractors Payment,2666.31,0.00,COMMERCIAL SUPPLIER 
 05-07-2023,Adults,John Stanleys Care Agency Ltd,Home Care - Private Contractors Payment,1306.42,0.00,COMMERCIAL SUPPLIER 
 05-07-2023,Adults,John Stanleys Care Agency Ltd,Home Care - Private Contractors Payment,4155.79,0.00,COMMERCIAL SUPPLIER 
 05-07-2023,Adults,John Stanleys Care Agency Ltd,Home Care - Private Contractors Payment,7997.12,0.00,COMMERCIAL SUPPLIER 
 05-07-2023,Adults,Romford Private Hire Ltd,Client Transport,868.00,0.00,COMMERCIAL SUPPLIER 
 05-07-2023,Adults,Romford Private Hire Ltd,Client Transport,2600.00,0.00,COMMERCIAL SUPPLIER 
 05-07-2023,Adults,London Borough of Barking & Dagenham_a,Daycare - Private Contractors Payment,776.00,0.00,LOCAL AUTHORITY SERVICES 
 05-07-2023,Adults,London Borough of Barking & Dagenham_a,Daycare - Private Contractors Payment,3880.00,0.00,LOCAL AUTHORITY SERVICES 
 05-07-2023,Adults,London Borough of Barking & Dagenham_a,Daycare - Private Contractors Payment,3880.00,0.00,LOCAL AUTHORITY SERVICES 
 05-07-2023,Adults,London Borough of Barking & Dagenham_a,Daycare - Private Contractors Payment,3880.00,0.00,LOCAL AUTHORITY SERVICES 
 05-07-2023,Adults,London Borough of Barking & Dagenham_a,Daycare - Private Contractors Payment,2328.00,0.00,LOCAL AUTHORITY SERVICES 
 05-07-2023,Adults,London Borough of Barking & Dagenham_a,Daycare - Private Contractors Payment,3880.00,0.00,LOCAL AUTHORITY SERVICES 
 05-07-2023,Adults,London Borough of Barking & Dagenham_a,Daycare - Private Contractors Payment,1552.00,0.00,LOCAL AUTHORITY SERVICES 
 05-07-2023,Adults,London Borough of Barking & Dagenham_a,Daycare - Private Contractors Payment,1552.00,0.00,LOCAL AUTHORITY SERVICES 
 05-07-2023,Adults,London Borough of Barking & Dagenham_a,Daycare - Private Contractors Payment,2328.00,0.00,LOCAL AUTHORITY SERVICES 
 05-07-2023,Adults,Star Mini Cabs.,Client Transport,1120.00,0.00,COMMERCIAL SUPPLIER 
 05-07-2023,Adults,Care-Away Ltd T/A Care Support,Home Care - Private Contractors Payment,2017.40,0.00,COMMERCIAL SUPPLIER 
 05-07-2023,Adults,Care-Away Ltd T/A Care Support,Home Care - Private Contractors Payment,513.52,0.00,COMMERCIAL SUPPLIER 
 05-07-2023,Adults,Care-Away Ltd T/A Care Support,Home Care - Private Contractors Payment,3090.29,0.00,COMMERCIAL SUPPLIER 
 05-07-2023,Adults,Care-Away Ltd T/A Care Support,Home Care - Private Contractors Payment,2567.60,0.00,COMMERCIAL SUPPLIER 
 05-07-2023,Adults,Care-Away Ltd T/A Care Support,Home Care - Private Contractors Payment,1027.04,0.00,COMMERCIAL SUPPLIER 
 05-07-2023,Adults,Care-Away Ltd T/A Care Support,Home Care - Private Contractors Payment,1027.04,0.00,COMMERCIAL SUPPLIER 
 05-07-2023,Adults,Care-Away Ltd T/A Care Support,Home Care - Private Contractors Payment,2824.36,0.00,COMMERCIAL SUPPLIER 
 05-07-2023,Adults,Care-Away Ltd T/A Care Support,Home Care - Private Contractors Payment,1155.42,0.00,COMMERCIAL SUPPLIER 
 05-07-2023,Adults,Care-Away Ltd T/A Care Support,Home Care - Private Contractors Payment,1283.80,0.00,COMMERCIAL SUPPLIER 
 05-07-2023,Adults,Care-Away Ltd T/A Care Support,Home Care - Private Contractors Payment,2310.84,0.00,COMMERCIAL SUPPLIER 
 05-07-2023,Adults,Care-Away Ltd T/A Care Support,Home Care - Private Contractors Payment,513.52,0.00,COMMERCIAL SUPPLIER 
 05-07-2023,Adults,Care-Away Ltd T/A Care Support,Home Care - Private Contractors Payment,1412.18,0.00,COMMERCIAL SUPPLIER 
 05-07-2023,Adults,Care-Away Ltd T/A Care Support,Home Care - Private Contractors Payment,1412.18,0.00,COMMERCIAL SUPPLIER 
 05-07-2023,Adults,Care-Away Ltd T/A Care Support,Home Care - Private Contractors Payment,1256.29,0.00,COMMERCIAL SUPPLIER 
 05-07-2023,Adults,Care-Away Ltd T/A Care Support,Home Care - Private Contractors Payment,852.81,0.00,COMMERCIAL SUPPLIER 
 05-07-2023,Adults,Care-Away Ltd T/A Care Support,Home Care - Private Contractors Payment,1155.42,0.00,COMMERCIAL SUPPLIER 
 05-07-2023,Adults,Care-Away Ltd T/A Care Support,Home Care - Private Contractors Payment,660.24,0.00,COMMERCIAL SUPPLIER 
 05-07-2023,Adults,Care-Away Ltd T/A Care Support,Home Care - Private Contractors Payment,1118.74,0.00,COMMERCIAL SUPPLIER 
 05-07-2023,Adults,Care-Away Ltd T/A Care Support,Home Care - Private Contractors Payment,1027.04,0.00,COMMERCIAL SUPPLIER 
 05-07-2023,Adults,Care-Away Ltd T/A Care Support,Home Care - Private Contractors Payment,770.28,0.00,COMMERCIAL SUPPLIER 
 05-07-2023,Adults,Care-Away Ltd T/A Care Support,Home Care - Private Contractors Payment,1540.56,0.00,COMMERCIAL SUPPLIER 
 05-07-2023,Adults,Care-Away Ltd T/A Care Support,Home Care - Private Contractors Payment,586.88,0.00,COMMERCIAL SUPPLIER 
 05-07-2023,Adults,Care-Away Ltd T/A Care Support,Home Care - Private Contractors Payment,586.88,0.00,COMMERCIAL SUPPLIER 
 05-07-2023,Adults,Consensus Support Services Ltd - Blakeney House,Residential Placements - Private Contractors Payment,20746.39,0.00,COMMERCIAL SUPPLIER 
 05-07-2023,Adults,Abbey Care Complex ,Nursing Homes - Private Contractors Payment,1505.16,0.00,COMMERCIAL SUPPLIER 
 05-07-2023,Adults,Matrix SCM Ltd,Agency Staff,1241.28,0.00,COMMERCIAL SUPPLIER 
 05-07-2023,Adults,Matrix SCM Ltd,Agency Staff,1384.58,0.00,COMMERCIAL SUPPLIER 
 05-07-2023,Adults,Matrix SCM Ltd,Agency Staff,1436.42,0.00,COMMERCIAL SUPPLIER 
 05-07-2023,Adults,Matrix SCM Ltd,Agency Staff,1686.60,0.00,COMMERCIAL SUPPLIER 
 05-07-2023,Adults,Matrix SCM Ltd,Agency Staff,840.00,0.00,COMMERCIAL SUPPLIER 
 05-07-2023,Adults,Matrix SCM Ltd,Agency Staff,936.49,0.00,COMMERCIAL SUPPLIER 
 05-07-2023,Adults,Matrix SCM Ltd,Agency Staff,1273.33,0.00,COMMERCIAL SUPPLIER 
 05-07-2023,Adults,Matrix SCM Ltd,Agency Staff,943.28,0.00,COMMERCIAL SUPPLIER 
 05-07-2023,Adults,Matrix SCM Ltd,Agency Staff,1181.15,0.00,COMMERCIAL SUPPLIER 
 05-07-2023,Adults,Matrix SCM Ltd,Agency Staff,908.64,0.00,COMMERCIAL SUPPLIER 
 05-07-2023,Adults,Matrix SCM Ltd,Agency Staff,599.04,0.00,COMMERCIAL SUPPLIER 
 05-07-2023,Adults,Matrix SCM Ltd,Agency Staff,618.85,0.00,COMMERCIAL SUPPLIER 
 05-07-2023,Adults,Matrix SCM Ltd,Agency Staff,695.17,0.00,COMMERCIAL SUPPLIER 
 05-07-2023,Adults,Matrix SCM Ltd,Agency Staff,1277.28,0.00,COMMERCIAL SUPPLIER 
 05-07-2023,Adults,Matrix SCM Ltd,Agency Staff,790.91,0.00,COMMERCIAL SUPPLIER 
 05-07-2023,Adults,Matrix SCM Ltd,Agency Staff,790.93,0.00,COMMERCIAL SUPPLIER 
 05-07-2023,Adults,Matrix SCM Ltd,Agency Staff,1389.60,0.00,COMMERCIAL SUPPLIER 
 05-07-2023,Adults,Matrix SCM Ltd,Agency Staff,1213.57,0.00,COMMERCIAL SUPPLIER 
 05-07-2023,Adults,Matrix SCM Ltd,Agency Staff,774.90,0.00,COMMERCIAL SUPPLIER 
 05-07-2023,Adults,Matrix SCM Ltd,Agency Staff,1241.28,0.00,COMMERCIAL SUPPLIER 
 05-07-2023,Adults,Matrix SCM Ltd,Agency Staff,751.89,0.00,COMMERCIAL SUPPLIER 
 05-07-2023,Adults,Matrix SCM Ltd,Agency Staff,790.91,0.00,COMMERCIAL SUPPLIER 
 05-07-2023,Adults,Matrix SCM Ltd,Agency Staff,999.92,0.00,COMMERCIAL SUPPLIER 
 05-07-2023,Adults,Matrix SCM Ltd,Agency Staff,790.91,0.00,COMMERCIAL SUPPLIER 
 05-07-2023,Adults,Matrix SCM Ltd,Agency Staff,1249.92,0.00,COMMERCIAL SUPPLIER 
 05-07-2023,Adults,Matrix SCM Ltd,Agency Staff,790.91,0.00,COMMERCIAL SUPPLIER 
 05-07-2023,Adults,Matrix SCM Ltd,Agency Staff,1253.54,0.00,COMMERCIAL SUPPLIER 
 05-07-2023,Adults,Matrix SCM Ltd,Agency Staff,1385.28,0.00,COMMERCIAL SUPPLIER 
 05-07-2023,Adults,Matrix SCM Ltd,Agency Staff,1323.36,0.00,COMMERCIAL SUPPLIER 
 05-07-2023,Adults,Matrix SCM Ltd,Agency Staff,1281.60,0.00,COMMERCIAL SUPPLIER 
 05-07-2023,Adults,Matrix SCM Ltd,Agency Staff,1169.28,0.00,COMMERCIAL SUPPLIER 
 05-07-2023,Adults,Matrix SCM Ltd,Agency Staff,1323.36,0.00,COMMERCIAL SUPPLIER 
 05-07-2023,Adults,Matrix SCM Ltd,Agency Staff,1275.76,0.00,COMMERCIAL SUPPLIER 
 05-07-2023,Adults,Matrix SCM Ltd,Agency Staff,1209.60,0.00,COMMERCIAL SUPPLIER 
 05-07-2023,Adults,Matrix SCM Ltd,Agency Staff,1225.69,0.00,COMMERCIAL SUPPLIER 
 05-07-2023,Adults,Matrix SCM Ltd,Agency Staff,1241.28,0.00,COMMERCIAL SUPPLIER 
 05-07-2023,Adults,Inna Care Ltd,Home Care - Private Contractors Payment,2446.12,0.00,COMMERCIAL SUPPLIER 
 05-07-2023,Adults,Inna Care Ltd,Home Care - Private Contractors Payment,1179.40,0.00,COMMERCIAL SUPPLIER 
 05-07-2023,Adults,Inna Care Ltd,Home Care - Private Contractors Payment,1375.96,0.00,COMMERCIAL SUPPLIER 
 05-07-2023,Adults,Inna Care Ltd,Home Care - Private Contractors Payment,1375.96,0.00,COMMERCIAL SUPPLIER 
 05-07-2023,Adults,Inna Care Ltd,Home Care - Private Contractors Payment,764.42,0.00,COMMERCIAL SUPPLIER 
 05-07-2023,Adults,Inna Care Ltd,Home Care - Private Contractors Payment,611.53,0.00,COMMERCIAL SUPPLIER 
 05-07-2023,Adults,Inna Care Ltd,Home Care - Private Contractors Payment,917.31,0.00,COMMERCIAL SUPPLIER 
 05-07-2023,Adults,Inna Care Ltd,Home Care - Private Contractors Payment,917.31,0.00,COMMERCIAL SUPPLIER 
 05-07-2023,Adults,Inna Care Ltd,Home Care - Private Contractors Payment,611.54,0.00,COMMERCIAL SUPPLIER 
 05-07-2023,Adults,Inna Care Ltd,Home Care - Private Contractors Payment,1004.68,0.00,COMMERCIAL SUPPLIER 
 05-07-2023,Adults,Inna Care Ltd,Home Care - Private Contractors Payment,917.31,0.00,COMMERCIAL SUPPLIER 
 05-07-2023,Adults,Inna Care Ltd,Home Care - Private Contractors Payment,1223.08,0.00,COMMERCIAL SUPPLIER 
 05-07-2023,Adults,Inna Care Ltd,Home Care - Private Contractors Payment,1223.08,0.00,COMMERCIAL SUPPLIER 
 05-07-2023,Adults,Inna Care Ltd,Home Care - Private Contractors Payment,546.02,0.00,COMMERCIAL SUPPLIER 
 05-07-2023,Adults,Inna Care Ltd,Home Care - Private Contractors Payment,917.31,0.00,COMMERCIAL SUPPLIER 
 05-07-2023,Adults,Inna Care Ltd,Home Care - Private Contractors Payment,1223.08,0.00,COMMERCIAL SUPPLIER 
 05-07-2023,Adults,Inna Care Ltd,Home Care - Private Contractors Payment,1223.06,0.00,COMMERCIAL SUPPLIER 
 05-07-2023,Adults,Inna Care Ltd,Home Care - Private Contractors Payment,611.54,0.00,COMMERCIAL SUPPLIER 
 05-07-2023,Adults,Inna Care Ltd,Home Care - Private Contractors Payment,917.31,0.00,COMMERCIAL SUPPLIER 
 05-07-2023,Adults,Inna Care Ltd,Home Care - Private Contractors Payment,1223.08,0.00,COMMERCIAL SUPPLIER 
 05-07-2023,Adults,Inna Care Ltd,Home Care - Private Contractors Payment,2446.12,0.00,COMMERCIAL SUPPLIER 
 06-07-2023,Adults,Trinity London Care Ltd,Daycare - Private Contractors Payment,2200.00,0.00,COMMERCIAL SUPPLIER 
 06-07-2023,Adults,Trinity London Care Ltd,Daycare - Private Contractors Payment,2200.00,0.00,COMMERCIAL SUPPLIER 
 06-07-2023,Adults,Trinity London Care Ltd,Daycare - Private Contractors Payment,2200.00,0.00,COMMERCIAL SUPPLIER 
 06-07-2023,Adults,Trinity London Care Ltd,Daycare - Private Contractors Payment,1080.00,0.00,COMMERCIAL SUPPLIER 
 06-07-2023,Adults,Trinity London Care Ltd,Daycare - Private Contractors Payment,1080.00,0.00,COMMERCIAL SUPPLIER 
 06-07-2023,Adults,Trinity London Care Ltd,Daycare - Private Contractors Payment,1080.00,0.00,COMMERCIAL SUPPLIER 
 06-07-2023,Adults,Gordon Care Services Limited,Home Care - Private Contractors Payment,3232.36,0.00,NON COMMERCIAL SUPPLIER 
 06-07-2023,Adults,Romford Private Hire Ltd,Client Transport,3244.00,0.00,COMMERCIAL SUPPLIER 
 06-07-2023,Adults,Romford Private Hire Ltd,Client Transport,3410.00,0.00,COMMERCIAL SUPPLIER 
 06-07-2023,Adults,Headway East London,Daycare - Private Contractors Payment,826.00,0.00,COMMERCIAL SUPPLIER 
 06-07-2023,Adults,Headway East London,Daycare - Private Contractors Payment,630.00,0.00,COMMERCIAL SUPPLIER 
 06-07-2023,Adults,Jaktol Day Centers,Daycare - Private Contractors Payment,1393.92,0.00,COMMERCIAL SUPPLIER 
 06-07-2023,Adults,Inclusive Care Support Limited,Supported Other Accommodation - Private Contractors Payment,700.84,0.00,COMMERCIAL SUPPLIER 
 06-07-2023,Adults,Inclusive Care Support Limited,Supported Other Accommodation - Private Contractors Payment,700.84,0.00,COMMERCIAL SUPPLIER 
 06-07-2023,Adults,Inclusive Care Support Limited,Long Term Support - Community: Supported Living,700.84,0.00,COMMERCIAL SUPPLIER 
 06-07-2023,Adults,Inclusive Care Support Limited,Supported Other Accommodation - Private Contractors Payment,700.84,0.00,COMMERCIAL SUPPLIER 
 06-07-2023,Adults,Inclusive Care Support Limited,Supported Other Accommodation - Private Contractors Payment,700.84,0.00,COMMERCIAL SUPPLIER 
 06-07-2023,Adults,Inclusive Care Support Limited,Long Term Support - Community: Supported Living,700.84,0.00,COMMERCIAL SUPPLIER 
 06-07-2023,Adults,Jaktol Day Centers,Daycare - Private Contractors Payment,2399.68,0.00,COMMERCIAL SUPPLIER 
 06-07-2023,Adults,Jaktol Day Centers,Daycare - Private Contractors Payment,1762.56,0.00,COMMERCIAL SUPPLIER 
 06-07-2023,Adults,Jaktol Day Centers,Daycare - Private Contractors Payment,2239.68,0.00,COMMERCIAL SUPPLIER 
 06-07-2023,Adults,Dignified Homecare,Home Care - Private Contractors Payment,933.69,0.00,COMMERCIAL SUPPLIER 
 07-07-2023,Adults,Gims Care Solution Ltd_a,Supported Other Accommodation - Private Contractors Payment,672.00,0.00,NON COMMERCIAL SUPPLIER 
 07-07-2023,Adults,Gims Care Solution Ltd_a,Supported Other Accommodation - Private Contractors Payment,18816.00,0.00,NON COMMERCIAL SUPPLIER 
 07-07-2023,Adults,Gims Care Solution Ltd_a,Supported Other Accommodation - Private Contractors Payment,18816.00,0.00,NON COMMERCIAL SUPPLIER 
 07-07-2023,Adults,Gims Care Solution Ltd_a,Supported Other Accommodation - Private Contractors Payment,9408.00,0.00,NON COMMERCIAL SUPPLIER 
 07-07-2023,Adults,Gims Care Solution Ltd_a,Supported Other Accommodation - Private Contractors Payment,17233.71,0.00,NON COMMERCIAL SUPPLIER 
 07-07-2023,Adults,Fari Care Ltd,Supported Other Accommodation - Private Contractors Payment,3757.32,0.00,COMMERCIAL SUPPLIER 
 07-07-2023,Adults,Fari Care Ltd,Supported Other Accommodation - Private Contractors Payment,855.00,0.00,COMMERCIAL SUPPLIER 
 07-07-2023,Adults,Fari Care Ltd,Supported Other Accommodation - Private Contractors Payment,1207.71,0.00,COMMERCIAL SUPPLIER 
 07-07-2023,Adults,Fari Care Ltd,Supported Other Accommodation - Private Contractors Payment,2660.00,0.00,COMMERCIAL SUPPLIER 
 07-07-2023,Adults,Fari Care Ltd,Supported Other Accommodation - Private Contractors Payment,2660.00,0.00,COMMERCIAL SUPPLIER 
 07-07-2023,Adults,Fari Care Ltd,Supported Other Accommodation - Private Contractors Payment,3757.32,0.00,COMMERCIAL SUPPLIER 
 07-07-2023,Adults,Fari Care Ltd,Supported Other Accommodation - Private Contractors Payment,2660.00,0.00,COMMERCIAL SUPPLIER 
 07-07-2023,Adults,Fari Care Ltd,Supported Other Accommodation - Private Contractors Payment,3757.32,0.00,COMMERCIAL SUPPLIER 
 07-07-2023,Adults,John Stanleys Care Agency Ltd,Home Care - Private Contractors Payment,4483.03,0.00,COMMERCIAL SUPPLIER 
 07-07-2023,Adults,John Stanleys Care Agency Ltd,Home Care - Private Contractors Payment,554.75,0.00,COMMERCIAL SUPPLIER 
 07-07-2023,Adults,John Stanleys Care Agency Ltd,Home Care - Private Contractors Payment,803.38,0.00,COMMERCIAL SUPPLIER 
 07-07-2023,Adults,John Stanleys Care Agency Ltd,Home Care - Private Contractors Payment,816.12,0.00,COMMERCIAL SUPPLIER 
 07-07-2023,Adults,John Stanleys Care Agency Ltd,Home Care - Private Contractors Payment,572.95,0.00,COMMERCIAL SUPPLIER 
 07-07-2023,Adults,John Stanleys Care Agency Ltd,Home Care - Private Contractors Payment,952.62,0.00,COMMERCIAL SUPPLIER 
 07-07-2023,Adults,John Stanleys Care Agency Ltd,Home Care - Private Contractors Payment,1816.77,0.00,COMMERCIAL SUPPLIER 
 07-07-2023,Adults,John Stanleys Care Agency Ltd,Home Care - Private Contractors Payment,872.90,0.00,COMMERCIAL SUPPLIER 
 07-07-2023,Adults,John Stanleys Care Agency Ltd,Home Care - Private Contractors Payment,1061.46,0.00,COMMERCIAL SUPPLIER 
 07-07-2023,Adults,John Stanleys Care Agency Ltd,Home Care - Private Contractors Payment,665.41,0.00,COMMERCIAL SUPPLIER 
 07-07-2023,Adults,John Stanleys Care Agency Ltd,Home Care - Private Contractors Payment,931.87,0.00,COMMERCIAL SUPPLIER 
 07-07-2023,Adults,John Stanleys Care Agency Ltd,Home Care - Private Contractors Payment,1195.39,0.00,COMMERCIAL SUPPLIER 
 07-07-2023,Adults,John Stanleys Care Agency Ltd,Home Care - Private Contractors Payment,1180.11,0.00,COMMERCIAL SUPPLIER 
 07-07-2023,Adults,John Stanleys Care Agency Ltd,Home Care - Private Contractors Payment,1285.31,0.00,COMMERCIAL SUPPLIER 
 07-07-2023,Adults,John Stanleys Care Agency Ltd,Home Care - Private Contractors Payment,565.67,0.00,COMMERCIAL SUPPLIER 
 07-07-2023,Adults,John Stanleys Care Agency Ltd,Home Care - Private Contractors Payment,902.39,0.00,COMMERCIAL SUPPLIER 
 07-07-2023,Adults,John Stanleys Care Agency Ltd,Home Care - Private Contractors Payment,568.22,0.00,COMMERCIAL SUPPLIER 
 07-07-2023,Adults,John Stanleys Care Agency Ltd,Home Care - Private Contractors Payment,893.65,0.00,COMMERCIAL SUPPLIER 
 07-07-2023,Adults,John Stanleys Care Agency Ltd,Home Care - Private Contractors Payment,1285.69,0.00,COMMERCIAL SUPPLIER 
 07-07-2023,Adults,John Stanleys Care Agency Ltd,Home Care - Private Contractors Payment,1230.00,0.00,COMMERCIAL SUPPLIER 
 07-07-2023,Adults,John Stanleys Care Agency Ltd,Home Care - Private Contractors Payment,1232.18,0.00,COMMERCIAL SUPPLIER 
 07-07-2023,Adults,John Stanleys Care Agency Ltd,Home Care - Private Contractors Payment,616.27,0.00,COMMERCIAL SUPPLIER 
 07-07-2023,Adults,John Stanleys Care Agency Ltd,Home Care - Private Contractors Payment,786.62,0.00,COMMERCIAL SUPPLIER 
 07-07-2023,Adults,John Stanleys Care Agency Ltd,Home Care - Private Contractors Payment,901.28,0.00,COMMERCIAL SUPPLIER 
 07-07-2023,Adults,John Stanleys Care Agency Ltd,Home Care - Private Contractors Payment,1081.83,0.00,COMMERCIAL SUPPLIER 
 07-07-2023,Adults,John Stanleys Care Agency Ltd,Home Care - Private Contractors Payment,648.67,0.00,COMMERCIAL SUPPLIER 
 07-07-2023,Adults,John Stanleys Care Agency Ltd,Home Care - Private Contractors Payment,1220.17,0.00,COMMERCIAL SUPPLIER 
 07-07-2023,Adults,John Stanleys Care Agency Ltd,Home Care - Private Contractors Payment,924.96,0.00,COMMERCIAL SUPPLIER 
 07-07-2023,Adults,John Stanleys Care Agency Ltd,Home Care - Private Contractors Payment,1381.06,0.00,COMMERCIAL SUPPLIER 
 07-07-2023,Adults,John Stanleys Care Agency Ltd,Home Care - Private Contractors Payment,1381.06,0.00,COMMERCIAL SUPPLIER 
 07-07-2023,Adults,John Stanleys Care Agency Ltd,Home Care - Private Contractors Payment,5508.09,0.00,COMMERCIAL SUPPLIER 
 07-07-2023,Adults,John Stanleys Care Agency Ltd,Home Care - Private Contractors Payment,5513.18,0.00,COMMERCIAL SUPPLIER 
 07-07-2023,Adults,John Stanleys Care Agency Ltd,Home Care - Private Contractors Payment,5549.18,0.00,COMMERCIAL SUPPLIER 
 07-07-2023,Adults,Millbrook Healthcare Group ,Purchase - Equipment Furniture And Materials,16837.13,0.00,COMMERCIAL SUPPLIER 
 10-07-2023,Adults,Treal Care Limited,Home Care - Private Contractors Payment,1163.25,0.00,COMMERCIAL SUPPLIER 
 10-07-2023,Adults,Treal Care Limited,Home Care - Private Contractors Payment,1233.00,0.00,COMMERCIAL SUPPLIER 
 10-07-2023,Adults,Treal Care Limited,Home Care - Private Contractors Payment,1233.00,0.00,COMMERCIAL SUPPLIER 
 10-07-2023,Adults,Treal Care Limited,Home Care - Private Contractors Payment,820.00,0.00,COMMERCIAL SUPPLIER 
 10-07-2023,Adults,Romford Private Hire Ltd,Client Transport,1540.00,0.00,COMMERCIAL SUPPLIER 
 10-07-2023,Adults,Prepaid Financial Services 266 Corporate,Purchase - Equipment Furniture And Materials,500.00,0.00,COMMERCIAL SUPPLIER 
 10-07-2023,Adults,EDF Energy Customers Plc,Electricity,623.00,0.00,COMMERCIAL SUPPLIER 
 10-07-2023,Adults,Care-Away Ltd T/A Care Support,Home Care - Private Contractors Payment,770.28,0.00,COMMERCIAL SUPPLIER 
 10-07-2023,Adults,Care-Away Ltd T/A Care Support,Home Care - Private Contractors Payment,513.52,0.00,COMMERCIAL SUPPLIER 
 10-07-2023,Adults,Care-Away Ltd T/A Care Support,Home Care - Private Contractors Payment,2109.10,0.00,COMMERCIAL SUPPLIER 
 10-07-2023,Adults,Care-Away Ltd T/A Care Support,Home Care - Private Contractors Payment,692.34,0.00,COMMERCIAL SUPPLIER 
 10-07-2023,Adults,Care-Away Ltd T/A Care Support,Home Care - Private Contractors Payment,898.66,0.00,COMMERCIAL SUPPLIER 
 10-07-2023,Adults,Care-Away Ltd T/A Care Support,Home Care - Private Contractors Payment,1540.56,0.00,COMMERCIAL SUPPLIER 
 10-07-2023,Adults,Care-Away Ltd T/A Care Support,Home Care - Private Contractors Payment,746.70,0.00,COMMERCIAL SUPPLIER 
 10-07-2023,Adults,Care-Away Ltd T/A Care Support,Home Care - Private Contractors Payment,513.52,0.00,COMMERCIAL SUPPLIER 
 10-07-2023,Adults,Care-Away Ltd T/A Care Support,Home Care - Private Contractors Payment,788.62,0.00,COMMERCIAL SUPPLIER 
 10-07-2023,Adults,Care-Away Ltd T/A Care Support,Home Care - Private Contractors Payment,1027.04,0.00,COMMERCIAL SUPPLIER 
 10-07-2023,Adults,Care-Away Ltd T/A Care Support,Home Care - Private Contractors Payment,1027.04,0.00,COMMERCIAL SUPPLIER 
 10-07-2023,Adults,Care-Away Ltd T/A Care Support,Home Care - Private Contractors Payment,1027.04,0.00,COMMERCIAL SUPPLIER 
 10-07-2023,Adults,Care-Away Ltd T/A Care Support,Home Care - Private Contractors Payment,1054.55,0.00,COMMERCIAL SUPPLIER 
 10-07-2023,Adults,Care-Away Ltd T/A Care Support,Home Care - Private Contractors Payment,788.62,0.00,COMMERCIAL SUPPLIER 
 10-07-2023,Adults,Care-Away Ltd T/A Care Support,Home Care - Private Contractors Payment,770.28,0.00,COMMERCIAL SUPPLIER 
 10-07-2023,Adults,Care-Away Ltd T/A Care Support,Home Care - Private Contractors Payment,1027.04,0.00,COMMERCIAL SUPPLIER 
 10-07-2023,Adults,Care-Away Ltd T/A Care Support,Home Care - Private Contractors Payment,779.45,0.00,COMMERCIAL SUPPLIER 
 10-07-2023,Adults,Care-Away Ltd T/A Care Support,Home Care - Private Contractors Payment,797.79,0.00,COMMERCIAL SUPPLIER 
 10-07-2023,Adults,Care-Away Ltd T/A Care Support,Home Care - Private Contractors Payment,624.87,0.00,COMMERCIAL SUPPLIER 
 10-07-2023,Adults,Care-Away Ltd T/A Care Support,Home Care - Private Contractors Payment,513.52,0.00,COMMERCIAL SUPPLIER 
 10-07-2023,Adults,Care-Away Ltd T/A Care Support,Home Care - Private Contractors Payment,1375.50,0.00,COMMERCIAL SUPPLIER 
 10-07-2023,Adults,Care-Away Ltd T/A Care Support,Home Care - Private Contractors Payment,846.76,0.00,COMMERCIAL SUPPLIER 
 10-07-2023,Adults,Care-Away Ltd T/A Care Support,Home Care - Private Contractors Payment,2054.08,0.00,COMMERCIAL SUPPLIER 
 10-07-2023,Adults,Care-Away Ltd T/A Care Support,Home Care - Private Contractors Payment,586.88,0.00,COMMERCIAL SUPPLIER 
 10-07-2023,Adults,Care-Away Ltd T/A Care Support,Home Care - Private Contractors Payment,641.90,0.00,COMMERCIAL SUPPLIER 
 10-07-2023,Adults,Care-Away Ltd T/A Care Support,Home Care - Private Contractors Payment,513.52,0.00,COMMERCIAL SUPPLIER 
 10-07-2023,Adults,Care-Away Ltd T/A Care Support,Home Care - Private Contractors Payment,1283.80,0.00,COMMERCIAL SUPPLIER 
 10-07-2023,Adults,Care-Away Ltd T/A Care Support,Home Care - Private Contractors Payment,504.35,0.00,COMMERCIAL SUPPLIER 
 10-07-2023,Adults,All Therapy Solutions Ltd,Occupational Health,2920.00,0.00,COMMERCIAL SUPPLIER 
 10-07-2023,Adults,Havering Women's Aid,Payments To Voluntary Sector,21904.17,0.00,NON COMMERCIAL SUPPLIER 
 10-07-2023,Adults,Havering Women's Aid,Payments To Voluntary Sector,21904.17,0.00,NON COMMERCIAL SUPPLIER 
 10-07-2023,Adults,Dignified Homecare,Home Care - Private Contractors Payment,1375.96,0.00,COMMERCIAL SUPPLIER 
 10-07-2023,Adults,Havering Mind,Payments To Voluntary Sector,3147.56,0.00,NON COMMERCIAL SUPPLIER 
 10-07-2023,Adults,Havering Mind,Payments To Voluntary Sector,3147.56,0.00,NON COMMERCIAL SUPPLIER 
 11-07-2023,Adults,Flex360 Limited,Private Contractors Payment - Other,2450.00,0.00,COMMERCIAL SUPPLIER 
 11-07-2023,Adults,Flex360 Limited,Private Contractors Payment - Other,2100.00,0.00,COMMERCIAL SUPPLIER 
 11-07-2023,Adults,BeTo Solutions Ltd,Supported Other Accommodation - Private Contractors Payment,758.16,0.00,COMMERCIAL SUPPLIER 
 11-07-2023,Adults,BeTo Solutions Ltd,Supported Other Accommodation - Private Contractors Payment,2099.52,0.00,COMMERCIAL SUPPLIER 
 11-07-2023,Adults,Delight Supported Living Ltd,Home Care - Private Contractors Payment,638.29,0.00,COMMERCIAL SUPPLIER 
 11-07-2023,Adults,Delight Supported Living Ltd,Home Care - Private Contractors Payment,638.29,0.00,COMMERCIAL SUPPLIER 
 12-07-2023,Adults,Cakeybakeydoodaa Ltd,Daycare - Private Contractors Payment,546.00,0.00,COMMERCIAL SUPPLIER 
 12-07-2023,Adults,Gims Care Solution Ltd_a,Home Care - Private Contractors Payment,2446.09,0.00,NON COMMERCIAL SUPPLIER 
 12-07-2023,Adults,Gims Care Solution Ltd_a,Home Care - Private Contractors Payment,1000.32,0.00,NON COMMERCIAL SUPPLIER 
 12-07-2023,Adults,Gims Care Solution Ltd_a,Home Care - Private Contractors Payment,3669.13,0.00,NON COMMERCIAL SUPPLIER 
 12-07-2023,Adults,Gims Care Solution Ltd_a,Home Care - Private Contractors Payment,8109.60,0.00,NON COMMERCIAL SUPPLIER 
 12-07-2023,Adults,Gims Care Solution Ltd_a,Home Care - Private Contractors Payment,751.00,0.00,NON COMMERCIAL SUPPLIER 
 12-07-2023,Adults,Gims Care Solution Ltd_a,Home Care - Private Contractors Payment,3057.60,0.00,NON COMMERCIAL SUPPLIER 
 12-07-2023,Adults,Gims Care Solution Ltd_a,Home Care - Private Contractors Payment,4800.00,0.00,NON COMMERCIAL SUPPLIER 
 12-07-2023,Adults,Gims Care Solution Ltd_a,Home Care - Private Contractors Payment,2293.20,0.00,NON COMMERCIAL SUPPLIER 
 12-07-2023,Adults,Gims Care Solution Ltd_a,Home Care - Private Contractors Payment,3600.00,0.00,NON COMMERCIAL SUPPLIER 
 12-07-2023,Adults,Action First Assessments Ltd,Private Contractors Payment - Other,620.00,0.00,COMMERCIAL SUPPLIER 
 12-07-2023,Adults,Action First Assessments Ltd,Private Contractors Payment - Other,620.00,0.00,COMMERCIAL SUPPLIER 
 12-07-2023,Adults,Action First Assessments Ltd,Private Contractors Payment - Other,1240.00,0.00,COMMERCIAL SUPPLIER 
 12-07-2023,Adults,Action First Assessments Ltd,Private Contractors Payment - Other,1860.00,0.00,COMMERCIAL SUPPLIER 
 12-07-2023,Adults,Action First Assessments Ltd,Private Contractors Payment - Other,620.00,0.00,COMMERCIAL SUPPLIER 
 12-07-2023,Adults,Matrix SCM Ltd,Agency Staff,1209.60,0.00,COMMERCIAL SUPPLIER 
 12-07-2023,Adults,Matrix SCM Ltd,Agency Staff,517.20,0.00,COMMERCIAL SUPPLIER 
 12-07-2023,Adults,Matrix SCM Ltd,Agency Staff,1225.69,0.00,COMMERCIAL SUPPLIER 
 12-07-2023,Adults,Matrix SCM Ltd,Agency Staff,999.92,0.00,COMMERCIAL SUPPLIER 
 12-07-2023,Adults,Matrix SCM Ltd,Agency Staff,1115.92,0.00,COMMERCIAL SUPPLIER 
 12-07-2023,Adults,Matrix SCM Ltd,Agency Staff,1281.60,0.00,COMMERCIAL SUPPLIER 
 12-07-2023,Adults,Matrix SCM Ltd,Agency Staff,741.32,0.00,COMMERCIAL SUPPLIER 
 12-07-2023,Adults,Matrix SCM Ltd,Agency Staff,1066.04,0.00,COMMERCIAL SUPPLIER 
 12-07-2023,Adults,Matrix SCM Ltd,Agency Staff,1385.28,0.00,COMMERCIAL SUPPLIER 
 12-07-2023,Adults,Matrix SCM Ltd,Agency Staff,1213.57,0.00,COMMERCIAL SUPPLIER 
 12-07-2023,Adults,Matrix SCM Ltd,Agency Staff,1241.28,0.00,COMMERCIAL SUPPLIER 
 12-07-2023,Adults,Matrix SCM Ltd,Agency Staff,1389.60,0.00,COMMERCIAL SUPPLIER 
 12-07-2023,Adults,Matrix SCM Ltd,Agency Staff,1241.28,0.00,COMMERCIAL SUPPLIER 
 12-07-2023,Adults,Matrix SCM Ltd,Agency Staff,637.12,0.00,COMMERCIAL SUPPLIER 
 12-07-2023,Adults,Matrix SCM Ltd,Agency Staff,1249.92,0.00,COMMERCIAL SUPPLIER 
 12-07-2023,Adults,Matrix SCM Ltd,Agency Staff,1240.05,0.00,COMMERCIAL SUPPLIER 
 12-07-2023,Adults,Matrix SCM Ltd,Agency Staff,1075.96,0.00,COMMERCIAL SUPPLIER 
 12-07-2023,Adults,Matrix SCM Ltd,Agency Staff,1025.72,0.00,COMMERCIAL SUPPLIER 
 12-07-2023,Adults,Matrix SCM Ltd,Agency Staff,1181.15,0.00,COMMERCIAL SUPPLIER 
 12-07-2023,Adults,Matrix SCM Ltd,Agency Staff,1252.11,0.00,COMMERCIAL SUPPLIER 
 12-07-2023,Adults,Matrix SCM Ltd,Agency Staff,504.90,0.00,COMMERCIAL SUPPLIER 
 12-07-2023,Adults,Matrix SCM Ltd,Agency Staff,908.64,0.00,COMMERCIAL SUPPLIER 
 12-07-2023,Adults,Matrix SCM Ltd,Agency Staff,599.04,0.00,COMMERCIAL SUPPLIER 
 12-07-2023,Adults,Matrix SCM Ltd,Agency Staff,618.85,0.00,COMMERCIAL SUPPLIER 
 12-07-2023,Adults,Matrix SCM Ltd,Agency Staff,599.04,0.00,COMMERCIAL SUPPLIER 
 12-07-2023,Adults,Matrix SCM Ltd,Agency Staff,1253.54,0.00,COMMERCIAL SUPPLIER 
 12-07-2023,Adults,Matrix SCM Ltd,Agency Staff,703.05,0.00,COMMERCIAL SUPPLIER 
 12-07-2023,Adults,Matrix SCM Ltd,Agency Staff,1241.28,0.00,COMMERCIAL SUPPLIER 
 12-07-2023,Adults,Matrix SCM Ltd,Agency Staff,695.17,0.00,COMMERCIAL SUPPLIER 
 12-07-2023,Adults,Matrix SCM Ltd,Agency Staff,774.90,0.00,COMMERCIAL SUPPLIER 
 12-07-2023,Adults,Matrix SCM Ltd,Agency Staff,1277.28,0.00,COMMERCIAL SUPPLIER 
 12-07-2023,Adults,Matrix SCM Ltd,Agency Staff,790.91,0.00,COMMERCIAL SUPPLIER 
 12-07-2023,Adults,Matrix SCM Ltd,Agency Staff,1241.28,0.00,COMMERCIAL SUPPLIER 
 12-07-2023,Adults,Matrix SCM Ltd,Agency Staff,1241.28,0.00,COMMERCIAL SUPPLIER 
 12-07-2023,Adults,Matrix SCM Ltd,Agency Staff,790.93,0.00,COMMERCIAL SUPPLIER 
 12-07-2023,Adults,Matrix SCM Ltd,Agency Staff,1209.60,0.00,COMMERCIAL SUPPLIER 
 12-07-2023,Adults,Matrix SCM Ltd,Agency Staff,1384.58,0.00,COMMERCIAL SUPPLIER 
 12-07-2023,Adults,Matrix SCM Ltd,Agency Staff,1176.00,0.00,COMMERCIAL SUPPLIER 
 12-07-2023,Adults,Matrix SCM Ltd,Agency Staff,1241.28,0.00,COMMERCIAL SUPPLIER 
 12-07-2023,Adults,Matrix SCM Ltd,Agency Staff,1686.60,0.00,COMMERCIAL SUPPLIER 
 12-07-2023,Adults,Matrix SCM Ltd,Agency Staff,1436.42,0.00,COMMERCIAL SUPPLIER 
 12-07-2023,Adults,Rosemont Care Limited,Home Care - Private Contractors Payment,1223.08,0.00,COMMERCIAL SUPPLIER 
 12-07-2023,Adults,Rosemont Care Limited,Home Care - Private Contractors Payment,1223.08,0.00,COMMERCIAL SUPPLIER 
 12-07-2023,Adults,Rosemont Care Limited,Home Care - Private Contractors Payment,1223.08,0.00,COMMERCIAL SUPPLIER 
 12-07-2023,Adults,Rosemont Care Limited,Home Care - Private Contractors Payment,1223.08,0.00,COMMERCIAL SUPPLIER 
 12-07-2023,Adults,Rosemont Care Limited,Home Care - Private Contractors Payment,917.31,0.00,COMMERCIAL SUPPLIER 
 12-07-2023,Adults,Rosemont Care Limited,Home Care - Private Contractors Payment,917.31,0.00,COMMERCIAL SUPPLIER 
 12-07-2023,Adults,Rosemont Care Limited,Home Care - Private Contractors Payment,1179.40,0.00,COMMERCIAL SUPPLIER 
 12-07-2023,Adults,Rosemont Care Limited,Home Care - Private Contractors Payment,1223.08,0.00,COMMERCIAL SUPPLIER 
 12-07-2023,Adults,Rosemont Care Limited,Home Care - Private Contractors Payment,1223.08,0.00,COMMERCIAL SUPPLIER 
 12-07-2023,Adults,Protecthand Care Ltd ,Supported Other Accommodation - Private Contractors Payment,11869.20,0.00,COMMERCIAL SUPPLIER 
 13-07-2023,Adults,Matrix SCM Ltd,Consultancy Fees,2438.66,0.00,COMMERCIAL SUPPLIER 
 13-07-2023,Adults,Consolidated Interior Services Ltd,Removal Services,770.60,0.00,COMMERCIAL SUPPLIER 
 13-07-2023,Adults,Potton Services Ltd,Home Care - Private Contractors Payment,1353.00,0.00,COMMERCIAL SUPPLIER 
 14-07-2023,Adults,Mayflower Travel,Client Transport,688.00,0.00,COMMERCIAL SUPPLIER 
 14-07-2023,Adults,Mayflower Travel,Client Transport,3520.00,0.00,COMMERCIAL SUPPLIER 
 14-07-2023,Adults,BeTo Solutions Ltd,Supported Other Accommodation - Private Contractors Payment,2118.96,0.00,COMMERCIAL SUPPLIER 
 14-07-2023,Adults,BeTo Solutions Ltd,Supported Other Accommodation - Private Contractors Payment,2099.52,0.00,COMMERCIAL SUPPLIER 
 14-07-2023,Adults,BeTo Solutions Ltd,Supported Other Accommodation - Private Contractors Payment,2099.52,0.00,COMMERCIAL SUPPLIER 
 14-07-2023,Adults,BeTo Solutions Ltd,Supported Other Accommodation - Private Contractors Payment,2566.08,0.00,COMMERCIAL SUPPLIER 
 15-07-2023,Adults,Personal Information - Redacted,Home Care - Private Contractors Payment,1070.18,0.00,INDIVIDUALS 
 15-07-2023,Adults,Personal Information - Redacted,Home Care - Private Contractors Payment,834.40,0.00,INDIVIDUALS 
 15-07-2023,Adults,Personal Information - Redacted,Home Care - Private Contractors Payment,917.88,0.00,INDIVIDUALS 
 15-07-2023,Adults,Personal Information - Redacted,Home Care - Private Contractors Payment,917.31,0.00,INDIVIDUALS 
 15-07-2023,Adults,Personal Information - Redacted,Home Care - Private Contractors Payment,917.31,0.00,INDIVIDUALS 
 15-07-2023,Adults,Personal Information - Redacted,Home Care - Private Contractors Payment,7338.25,0.00,INDIVIDUALS 
 15-07-2023,Adults,Personal Information - Redacted,Home Care - Private Contractors Payment,611.54,0.00,INDIVIDUALS 
 15-07-2023,Adults,Personal Information - Redacted,Home Care - Private Contractors Payment,1223.08,0.00,INDIVIDUALS 
 15-07-2023,Adults,Personal Information - Redacted,Home Care - Private Contractors Payment,1987.48,0.00,INDIVIDUALS 
 15-07-2023,Adults,Personal Information - Redacted,Home Care - Private Contractors Payment,2162.21,0.00,INDIVIDUALS 
 15-07-2023,Adults,Personal Information - Redacted,Home Care - Private Contractors Payment,1223.08,0.00,INDIVIDUALS 
 15-07-2023,Adults,Personal Information - Redacted,Home Care - Private Contractors Payment,917.31,0.00,INDIVIDUALS 
 15-07-2023,Adults,Personal Information - Redacted,Home Care - Private Contractors Payment,524.17,0.00,INDIVIDUALS 
 15-07-2023,Adults,Personal Information - Redacted,Home Care - Private Contractors Payment,1550.69,0.00,INDIVIDUALS 
 15-07-2023,Adults,Personal Information - Redacted,Home Care - Private Contractors Payment,5256.92,0.00,INDIVIDUALS 
 15-07-2023,Adults,Personal Information - Redacted,Home Care - Private Contractors Payment,1004.68,0.00,INDIVIDUALS 
 15-07-2023,Adults,Personal Information - Redacted,Home Care - Private Contractors Payment,1441.47,0.00,INDIVIDUALS 
 15-07-2023,Adults,Personal Information - Redacted,Home Care - Private Contractors Payment,698.91,0.00,INDIVIDUALS 
 15-07-2023,Adults,Personal Information - Redacted,Home Care - Private Contractors Payment,1397.81,0.00,INDIVIDUALS 
 15-07-2023,Adults,Personal Information - Redacted,Home Care - Private Contractors Payment,611.54,0.00,INDIVIDUALS 
 15-07-2023,Adults,Personal Information - Redacted,Home Care - Private Contractors Payment,524.16,0.00,INDIVIDUALS 
 15-07-2023,Adults,Personal Information - Redacted,Home Care - Private Contractors Payment,1375.96,0.00,INDIVIDUALS 
 15-07-2023,Adults,Personal Information - Redacted,Home Care - Private Contractors Payment,1223.08,0.00,INDIVIDUALS 
 15-07-2023,Adults,Personal Information - Redacted,Home Care - Private Contractors Payment,2009.32,0.00,INDIVIDUALS 
 15-07-2023,Adults,Personal Information - Redacted,Home Care - Private Contractors Payment,611.53,0.00,INDIVIDUALS 
 15-07-2023,Adults,Personal Information - Redacted,Home Care - Private Contractors Payment,611.53,0.00,INDIVIDUALS 
 15-07-2023,Adults,Personal Information - Redacted,Home Care - Private Contractors Payment,1223.05,0.00,INDIVIDUALS 
 15-07-2023,Adults,Personal Information - Redacted,Home Care - Private Contractors Payment,1528.84,0.00,INDIVIDUALS 
 15-07-2023,Adults,Personal Information - Redacted,Home Care - Private Contractors Payment,6102.16,0.00,INDIVIDUALS 
 15-07-2023,Adults,Personal Information - Redacted,Home Care - Private Contractors Payment,611.54,0.00,INDIVIDUALS 
 15-07-2023,Adults,Personal Information - Redacted,Home Care - Private Contractors Payment,917.31,0.00,INDIVIDUALS 
 16-07-2023,Adults,Westminster Homecare Ltd_a,Home Care - Private Contractors Payment,1394.16,0.00,COMMERCIAL SUPPLIER 
 16-07-2023,Adults,Westminster Homecare Ltd_a,Home Care - Private Contractors Payment,1028.70,0.00,COMMERCIAL SUPPLIER 
 16-07-2023,Adults,Westminster Homecare Ltd_a,Home Care - Private Contractors Payment,1246.38,0.00,COMMERCIAL SUPPLIER 
 16-07-2023,Adults,Westminster Homecare Ltd_a,Home Care - Private Contractors Payment,540.92,0.00,COMMERCIAL SUPPLIER 
 16-07-2023,Adults,Westminster Homecare Ltd_a,Home Care - Private Contractors Payment,1093.12,0.00,COMMERCIAL SUPPLIER 
 16-07-2023,Adults,Westminster Homecare Ltd_a,Home Care - Private Contractors Payment,909.29,0.00,COMMERCIAL SUPPLIER 
 16-07-2023,Adults,Westminster Homecare Ltd_a,Home Care - Private Contractors Payment,1332.28,0.00,COMMERCIAL SUPPLIER 
 16-07-2023,Adults,Westminster Homecare Ltd_a,Home Care - Private Contractors Payment,1615.82,0.00,COMMERCIAL SUPPLIER 
 16-07-2023,Adults,Westminster Homecare Ltd_a,Home Care - Private Contractors Payment,927.51,0.00,COMMERCIAL SUPPLIER 
 16-07-2023,Adults,Westminster Homecare Ltd_a,Home Care - Private Contractors Payment,1264.58,0.00,COMMERCIAL SUPPLIER 
 16-07-2023,Adults,Westminster Homecare Ltd_a,Home Care - Private Contractors Payment,930.42,0.00,COMMERCIAL SUPPLIER 
 16-07-2023,Adults,Westminster Homecare Ltd_a,Home Care - Private Contractors Payment,1710.12,0.00,COMMERCIAL SUPPLIER 
 16-07-2023,Adults,Westminster Homecare Ltd_a,Home Care - Private Contractors Payment,632.65,0.00,COMMERCIAL SUPPLIER 
 16-07-2023,Adults,Westminster Homecare Ltd_a,Home Care - Private Contractors Payment,1703.56,0.00,COMMERCIAL SUPPLIER 
 17-07-2023,Adults,Independent People Homecare Services,Home Care - Private Contractors Payment,5169.88,0.00,NON COMMERCIAL SUPPLIER 
 17-07-2023,Adults,Eastway Care Ltd_a,Daycare - Private Contractors Payment,3712.00,0.00,COMMERCIAL SUPPLIER 
 17-07-2023,Adults,Eastway Care Ltd_a,Daycare - Private Contractors Payment,4640.00,0.00,COMMERCIAL SUPPLIER 
 17-07-2023,Adults,Eastway Care Ltd_a,Daycare - Private Contractors Payment,1488.00,0.00,COMMERCIAL SUPPLIER 
 17-07-2023,Adults,Eastway Care Ltd_a,Daycare - Private Contractors Payment,4640.00,0.00,COMMERCIAL SUPPLIER 
 17-07-2023,Adults,Eastway Care Ltd_a,Daycare - Private Contractors Payment,3712.00,0.00,COMMERCIAL SUPPLIER 
 17-07-2023,Adults,Eastway Care Ltd_a,Daycare - Private Contractors Payment,2784.00,0.00,COMMERCIAL SUPPLIER 
 17-07-2023,Adults,Eastway Care Ltd_a,Daycare - Private Contractors Payment,4640.00,0.00,COMMERCIAL SUPPLIER 
 17-07-2023,Adults,Eastway Care Ltd_a,Daycare - Private Contractors Payment,928.00,0.00,COMMERCIAL SUPPLIER 
 17-07-2023,Adults,Eastway Care Ltd_a,Daycare - Private Contractors Payment,2784.00,0.00,COMMERCIAL SUPPLIER 
 17-07-2023,Adults,Eastway Care Ltd_a,Daycare - Private Contractors Payment,4640.00,0.00,COMMERCIAL SUPPLIER 
 17-07-2023,Adults,Eastway Care Ltd_a,Daycare - Private Contractors Payment,4640.00,0.00,COMMERCIAL SUPPLIER 
 17-07-2023,Adults,Eastway Care Ltd_a,Daycare - Private Contractors Payment,928.00,0.00,COMMERCIAL SUPPLIER 
 17-07-2023,Adults,Eastway Care Ltd_a,Daycare - Private Contractors Payment,2784.00,0.00,COMMERCIAL SUPPLIER 
 17-07-2023,Adults,Eastway Care Ltd_a,Daycare - Private Contractors Payment,4640.00,0.00,COMMERCIAL SUPPLIER 
 17-07-2023,Adults,Eastway Care Ltd_a,Daycare - Private Contractors Payment,3420.00,0.00,COMMERCIAL SUPPLIER 
 17-07-2023,Adults,Bluebird Care Havering,Home Care - Private Contractors Payment,2670.50,0.00,COMMERCIAL SUPPLIER 
 17-07-2023,Adults,Bluebird Care Havering,Home Care - Private Contractors Payment,1357.52,0.00,COMMERCIAL SUPPLIER 
 17-07-2023,Adults,Bluebird Care Havering,Home Care - Private Contractors Payment,2670.50,0.00,COMMERCIAL SUPPLIER 
 17-07-2023,Adults,Bluebird Care Havering,Home Care - Private Contractors Payment,831.36,0.00,COMMERCIAL SUPPLIER 
 17-07-2023,Adults,Radfield Home Care Havering & Brentwood,Home Care - Private Contractors Payment,718.43,0.00,COMMERCIAL SUPPLIER 
 17-07-2023,Adults,Chosen Care Group Ltd,Home Care - Private Contractors Payment,2754.56,0.00,COMMERCIAL SUPPLIER 
 17-07-2023,Adults,Tapestry_a.,Daycare - Private Contractors Payment,1220.00,0.00,COMMERCIAL SUPPLIER 
 17-07-2023,Adults,Tapestry_a.,Daycare - Private Contractors Payment,1220.00,0.00,COMMERCIAL SUPPLIER 
 17-07-2023,Adults,Tapestry_a.,Daycare - Private Contractors Payment,976.00,0.00,COMMERCIAL SUPPLIER 
 17-07-2023,Adults,Tapestry_a.,Daycare - Private Contractors Payment,732.00,0.00,COMMERCIAL SUPPLIER 
 17-07-2023,Adults,Tapestry_a.,Daycare - Private Contractors Payment,732.00,0.00,COMMERCIAL SUPPLIER 
 17-07-2023,Adults,Tapestry_a.,Daycare - Private Contractors Payment,976.00,0.00,COMMERCIAL SUPPLIER 
 17-07-2023,Adults,Tapestry_a.,Daycare - Private Contractors Payment,732.00,0.00,COMMERCIAL SUPPLIER 
 17-07-2023,Adults,Tapestry_a.,Daycare - Private Contractors Payment,976.00,0.00,COMMERCIAL SUPPLIER 
 17-07-2023,Adults,Tapestry_a.,Daycare - Private Contractors Payment,732.00,0.00,COMMERCIAL SUPPLIER 
 17-07-2023,Adults,Tapestry_a.,Daycare - Private Contractors Payment,1220.00,0.00,COMMERCIAL SUPPLIER 
 17-07-2023,Adults,Tapestry_a.,Daycare - Private Contractors Payment,671.00,0.00,COMMERCIAL SUPPLIER 
 17-07-2023,Adults,Tapestry_a.,Daycare - Private Contractors Payment,976.00,0.00,COMMERCIAL SUPPLIER 
 17-07-2023,Adults,Tapestry_a.,Daycare - Private Contractors Payment,732.00,0.00,COMMERCIAL SUPPLIER 
 17-07-2023,Adults,Tapestry_a.,Daycare - Private Contractors Payment,732.00,0.00,COMMERCIAL SUPPLIER 
 17-07-2023,Adults,Tapestry_a.,Daycare - Private Contractors Payment,732.00,0.00,COMMERCIAL SUPPLIER 
 17-07-2023,Adults,Tapestry_a.,Daycare - Private Contractors Payment,732.00,0.00,COMMERCIAL SUPPLIER 
 17-07-2023,Adults,Tapestry_a.,Daycare - Private Contractors Payment,732.00,0.00,COMMERCIAL SUPPLIER 
 17-07-2023,Adults,Tapestry_a.,Daycare - Private Contractors Payment,1220.00,0.00,COMMERCIAL SUPPLIER 
 17-07-2023,Adults,Tapestry_a.,Daycare - Private Contractors Payment,976.00,0.00,COMMERCIAL SUPPLIER 
 17-07-2023,Adults,Tapestry_a.,Daycare - Private Contractors Payment,610.00,0.00,COMMERCIAL SUPPLIER 
 17-07-2023,Adults,Castle Water Limited,Water And Sewerage,1218.65,0.00,COMMERCIAL SUPPLIER 
 17-07-2023,Adults,Carers Centre SA Ltd ,Payments To Voluntary Sector,2775.17,0.00,COMMERCIAL SUPPLIER 
 17-07-2023,Adults,Carers Centre SA Ltd ,Payments To Voluntary Sector,2775.17,0.00,COMMERCIAL SUPPLIER 
 17-07-2023,Adults,Carers Centre SA Ltd ,Payments To Voluntary Sector,2775.17,0.00,COMMERCIAL SUPPLIER 
 17-07-2023,Adults,Carers Centre SA Ltd ,Payments To Voluntary Sector,2775.17,0.00,COMMERCIAL SUPPLIER 
 17-07-2023,Adults,Carers Centre SA Ltd ,Payments To Voluntary Sector,2775.17,0.00,COMMERCIAL SUPPLIER 
 17-07-2023,Adults,Gilead Complete Care Group Ltd,Home Care - Private Contractors Payment,792.00,0.00,COMMERCIAL SUPPLIER 
 17-07-2023,Adults,London Homecare Ltd,Home Care - Private Contractors Payment,611.54,0.00,COMMERCIAL SUPPLIER 
 17-07-2023,Adults,London Homecare Ltd,Home Care - Private Contractors Payment,535.09,0.00,COMMERCIAL SUPPLIER 
 17-07-2023,Adults,London Homecare Ltd,Home Care - Private Contractors Payment,1223.08,0.00,COMMERCIAL SUPPLIER 
 17-07-2023,Adults,London Homecare Ltd,Home Care - Private Contractors Payment,1375.96,0.00,COMMERCIAL SUPPLIER 
 17-07-2023,Adults,London Homecare Ltd,Home Care - Private Contractors Payment,1375.96,0.00,COMMERCIAL SUPPLIER 
 17-07-2023,Adults,London Homecare Ltd,Home Care - Private Contractors Payment,1375.96,0.00,COMMERCIAL SUPPLIER 
 17-07-2023,Adults,London Homecare Ltd,Home Care - Private Contractors Payment,1375.96,0.00,COMMERCIAL SUPPLIER 
 17-07-2023,Adults,London Homecare Ltd,Home Care - Private Contractors Payment,1375.96,0.00,COMMERCIAL SUPPLIER 
 17-07-2023,Adults,London Homecare Ltd,Home Care - Private Contractors Payment,764.42,0.00,COMMERCIAL SUPPLIER 
 17-07-2023,Adults,London Homecare Ltd,Home Care - Private Contractors Payment,1212.15,0.00,COMMERCIAL SUPPLIER 
 17-07-2023,Adults,London Homecare Ltd,Home Care - Private Contractors Payment,1550.69,0.00,COMMERCIAL SUPPLIER 
 17-07-2023,Adults,London Homecare Ltd,Home Care - Private Contractors Payment,611.54,0.00,COMMERCIAL SUPPLIER 
 17-07-2023,Adults,London Homecare Ltd,Home Care - Private Contractors Payment,655.21,0.00,COMMERCIAL SUPPLIER 
 17-07-2023,Adults,London Homecare Ltd,Home Care - Private Contractors Payment,1419.63,0.00,COMMERCIAL SUPPLIER 
 17-07-2023,Adults,London Homecare Ltd,Home Care - Private Contractors Payment,764.42,0.00,COMMERCIAL SUPPLIER 
 17-07-2023,Adults,London Homecare Ltd,Home Care - Private Contractors Payment,1223.08,0.00,COMMERCIAL SUPPLIER 
 17-07-2023,Adults,London Homecare Ltd,Home Care - Private Contractors Payment,1223.08,0.00,COMMERCIAL SUPPLIER 
 17-07-2023,Adults,London Homecare Ltd,Home Care - Private Contractors Payment,2533.45,0.00,COMMERCIAL SUPPLIER 
 17-07-2023,Adults,London Homecare Ltd,Home Care - Private Contractors Payment,611.54,0.00,COMMERCIAL SUPPLIER 
 17-07-2023,Adults,Outreach Support Services Ltd,Home Care - Private Contractors Payment,611.53,0.00,COMMERCIAL SUPPLIER 
 17-07-2023,Adults,Outreach Support Services Ltd,Home Care - Private Contractors Payment,1375.96,0.00,COMMERCIAL SUPPLIER 
 17-07-2023,Adults,Outreach Support Services Ltd,Home Care - Private Contractors Payment,2271.40,0.00,COMMERCIAL SUPPLIER 
 17-07-2023,Adults,Outreach Support Services Ltd,Home Care - Private Contractors Payment,1223.08,0.00,COMMERCIAL SUPPLIER 
 17-07-2023,Adults,Outreach Support Services Ltd,Home Care - Private Contractors Payment,1223.08,0.00,COMMERCIAL SUPPLIER 
 17-07-2023,Adults,Outreach Support Services Ltd,Home Care - Private Contractors Payment,917.31,0.00,COMMERCIAL SUPPLIER 
 17-07-2023,Adults,Outreach Support Services Ltd,Home Care - Private Contractors Payment,786.26,0.00,COMMERCIAL SUPPLIER 
 17-07-2023,Adults,Outreach Support Services Ltd,Home Care - Private Contractors Payment,1223.08,0.00,COMMERCIAL SUPPLIER 
 17-07-2023,Adults,Outreach Support Services Ltd,Home Care - Private Contractors Payment,1375.96,0.00,COMMERCIAL SUPPLIER 
 17-07-2023,Adults,Outreach Support Services Ltd,Home Care - Private Contractors Payment,1375.96,0.00,COMMERCIAL SUPPLIER 
 17-07-2023,Adults,Outreach Support Services Ltd,Home Care - Private Contractors Payment,1834.60,0.00,COMMERCIAL SUPPLIER 
 17-07-2023,Adults,Outreach Support Services Ltd,Home Care - Private Contractors Payment,1223.08,0.00,COMMERCIAL SUPPLIER 
 17-07-2023,Adults,Outreach Support Services Ltd,Home Care - Private Contractors Payment,1223.08,0.00,COMMERCIAL SUPPLIER 
 17-07-2023,Adults,Outreach Support Services Ltd,Home Care - Private Contractors Payment,1863.99,0.00,COMMERCIAL SUPPLIER 
 17-07-2023,Adults,Outreach Support Services Ltd,Home Care - Private Contractors Payment,1863.99,0.00,COMMERCIAL SUPPLIER 
 17-07-2023,Adults,Outreach Support Services Ltd,Home Care - Private Contractors Payment,1812.76,0.00,COMMERCIAL SUPPLIER 
 17-07-2023,Adults,Outreach Support Services Ltd,Home Care - Private Contractors Payment,1223.08,0.00,COMMERCIAL SUPPLIER 
 17-07-2023,Adults,Outreach Support Services Ltd,Home Care - Private Contractors Payment,611.54,0.00,COMMERCIAL SUPPLIER 
 17-07-2023,Adults,Outreach Support Services Ltd,Home Care - Private Contractors Payment,2271.40,0.00,COMMERCIAL SUPPLIER 
 17-07-2023,Adults,Outreach Support Services Ltd,Home Care - Private Contractors Payment,2271.40,0.00,COMMERCIAL SUPPLIER 
 17-07-2023,Adults,Outreach Support Services Ltd,Home Care - Private Contractors Payment,2271.40,0.00,COMMERCIAL SUPPLIER 
 17-07-2023,Adults,Premier Carewaiting Ltd,Home Care - Private Contractors Payment,1223.08,0.00,COMMERCIAL SUPPLIER 
 17-07-2023,Adults,Premier Carewaiting Ltd,Home Care - Private Contractors Payment,611.54,0.00,COMMERCIAL SUPPLIER 
 17-07-2023,Adults,Premier Carewaiting Ltd,Home Care - Private Contractors Payment,1834.60,0.00,COMMERCIAL SUPPLIER 
 17-07-2023,Adults,Premier Carewaiting Ltd,Home Care - Private Contractors Payment,2096.69,0.00,COMMERCIAL SUPPLIER 
 17-07-2023,Adults,Premier Carewaiting Ltd,Home Care - Private Contractors Payment,611.54,0.00,COMMERCIAL SUPPLIER 
 17-07-2023,Adults,Premier Carewaiting Ltd,Home Care - Private Contractors Payment,1572.52,0.00,COMMERCIAL SUPPLIER 
 17-07-2023,Adults,Premier Carewaiting Ltd,Home Care - Private Contractors Payment,1310.44,0.00,COMMERCIAL SUPPLIER 
 17-07-2023,Adults,Agracare Ltd t/a Home Instead Senior Care,Home Care - Private Contractors Payment,2472.00,0.00,COMMERCIAL SUPPLIER 
 18-07-2023,Adults,Prestige Care & Support Ltd,Home Care - Private Contractors Payment,1154.64,0.00,COMMERCIAL SUPPLIER 
 18-07-2023,Adults,Prestige Care & Support Ltd,Home Care - Private Contractors Payment,611.54,0.00,COMMERCIAL SUPPLIER 
 18-07-2023,Adults,Prestige Care & Support Ltd,Home Care - Private Contractors Payment,1351.58,0.00,COMMERCIAL SUPPLIER 
 18-07-2023,Adults,Prestige Care & Support Ltd,Home Care - Private Contractors Payment,904.93,0.00,COMMERCIAL SUPPLIER 
 18-07-2023,Adults,Prestige Care & Support Ltd,Home Care - Private Contractors Payment,2446.90,0.00,COMMERCIAL SUPPLIER 
 18-07-2023,Adults,Prestige Care & Support Ltd,Home Care - Private Contractors Payment,1250.38,0.00,COMMERCIAL SUPPLIER 
 18-07-2023,Adults,Prestige Care & Support Ltd,Home Care - Private Contractors Payment,919.13,0.00,COMMERCIAL SUPPLIER 
 18-07-2023,Adults,Prestige Care & Support Ltd,Home Care - Private Contractors Payment,2815.27,0.00,COMMERCIAL SUPPLIER 
 18-07-2023,Adults,Prestige Care & Support Ltd,Home Care - Private Contractors Payment,1275.14,0.00,COMMERCIAL SUPPLIER 
 18-07-2023,Adults,Prestige Care & Support Ltd,Home Care - Private Contractors Payment,2446.17,0.00,COMMERCIAL SUPPLIER 
 18-07-2023,Adults,Prestige Care & Support Ltd,Home Care - Private Contractors Payment,694.53,0.00,COMMERCIAL SUPPLIER 
 18-07-2023,Adults,Prestige Care & Support Ltd,Home Care - Private Contractors Payment,614.09,0.00,COMMERCIAL SUPPLIER 
 18-07-2023,Adults,Prestige Care & Support Ltd,Home Care - Private Contractors Payment,2416.32,0.00,COMMERCIAL SUPPLIER 
 18-07-2023,Adults,Prestige Care & Support Ltd,Home Care - Private Contractors Payment,1240.92,0.00,COMMERCIAL SUPPLIER 
 18-07-2023,Adults,Prestige Care & Support Ltd,Home Care - Private Contractors Payment,1816.43,0.00,COMMERCIAL SUPPLIER 
 18-07-2023,Adults,Prestige Care & Support Ltd,Home Care - Private Contractors Payment,2447.63,0.00,COMMERCIAL SUPPLIER 
 18-07-2023,Adults,Prestige Care & Support Ltd,Home Care - Private Contractors Payment,1121.88,0.00,COMMERCIAL SUPPLIER 
 18-07-2023,Adults,Prestige Care & Support Ltd,Home Care - Private Contractors Payment,2209.20,0.00,COMMERCIAL SUPPLIER 
 18-07-2023,Adults,Prestige Care & Support Ltd,Home Care - Private Contractors Payment,2068.32,0.00,COMMERCIAL SUPPLIER 
 18-07-2023,Adults,Prestige Care & Support Ltd,Home Care - Private Contractors Payment,1223.45,0.00,COMMERCIAL SUPPLIER 
 18-07-2023,Adults,Prestige Care & Support Ltd,Home Care - Private Contractors Payment,2449.08,0.00,COMMERCIAL SUPPLIER 
 18-07-2023,Adults,Prestige Care & Support Ltd,Home Care - Private Contractors Payment,2447.63,0.00,COMMERCIAL SUPPLIER 
 18-07-2023,Adults,Prestige Care & Support Ltd,Home Care - Private Contractors Payment,761.51,0.00,COMMERCIAL SUPPLIER 
 18-07-2023,Adults,Prestige Care & Support Ltd,Home Care - Private Contractors Payment,1225.27,0.00,COMMERCIAL SUPPLIER 
 18-07-2023,Adults,Prestige Care & Support Ltd,Home Care - Private Contractors Payment,2513.15,0.00,COMMERCIAL SUPPLIER 
 18-07-2023,Adults,Prestige Care & Support Ltd,Home Care - Private Contractors Payment,611.54,0.00,COMMERCIAL SUPPLIER 
 18-07-2023,Adults,Prestige Care & Support Ltd,Home Care - Private Contractors Payment,911.12,0.00,COMMERCIAL SUPPLIER 
 18-07-2023,Adults,Prestige Care & Support Ltd,Home Care - Private Contractors Payment,1565.98,0.00,COMMERCIAL SUPPLIER 
 18-07-2023,Adults,Prestige Care & Support Ltd,Home Care - Private Contractors Payment,1223.08,0.00,COMMERCIAL SUPPLIER 
 18-07-2023,Adults,Prestige Care & Support Ltd,Home Care - Private Contractors Payment,2446.17,0.00,COMMERCIAL SUPPLIER 
 18-07-2023,Adults,Prestige Care & Support Ltd,Home Care - Private Contractors Payment,552.94,0.00,COMMERCIAL SUPPLIER 
 18-07-2023,Adults,Prestige Care & Support Ltd,Home Care - Private Contractors Payment,2446.17,0.00,COMMERCIAL SUPPLIER 
 18-07-2023,Adults,Prestige Care & Support Ltd,Home Care - Private Contractors Payment,1243.83,0.00,COMMERCIAL SUPPLIER 
 18-07-2023,Adults,Prestige Care & Support Ltd,Home Care - Private Contractors Payment,927.51,0.00,COMMERCIAL SUPPLIER 
 18-07-2023,Adults,Prestige Care & Support Ltd,Home Care - Private Contractors Payment,598.07,0.00,COMMERCIAL SUPPLIER 
 18-07-2023,Adults,Prestige Care & Support Ltd,Home Care - Private Contractors Payment,687.99,0.00,COMMERCIAL SUPPLIER 
 18-07-2023,Adults,Prestige Care & Support Ltd,Home Care - Private Contractors Payment,917.31,0.00,COMMERCIAL SUPPLIER 
 18-07-2023,Adults,Prestige Care & Support Ltd,Home Care - Private Contractors Payment,2446.17,0.00,COMMERCIAL SUPPLIER 
 18-07-2023,Adults,Prestige Care & Support Ltd,Home Care - Private Contractors Payment,918.41,0.00,COMMERCIAL SUPPLIER 
 18-07-2023,Adults,Prestige Care & Support Ltd,Home Care - Private Contractors Payment,2452.36,0.00,COMMERCIAL SUPPLIER 
 18-07-2023,Adults,Prestige Care & Support Ltd,Home Care - Private Contractors Payment,614.82,0.00,COMMERCIAL SUPPLIER 
 18-07-2023,Adults,Prestige Care & Support Ltd,Home Care - Private Contractors Payment,1223.81,0.00,COMMERCIAL SUPPLIER 
 18-07-2023,Adults,Prestige Care & Support Ltd,Home Care - Private Contractors Payment,2459.27,0.00,COMMERCIAL SUPPLIER 
 18-07-2023,Adults,Prestige Care & Support Ltd,Home Care - Private Contractors Payment,611.91,0.00,COMMERCIAL SUPPLIER 
 18-07-2023,Adults,Prestige Care & Support Ltd,Home Care - Private Contractors Payment,621.01,0.00,COMMERCIAL SUPPLIER 
 18-07-2023,Adults,Prestige Care & Support Ltd,Home Care - Private Contractors Payment,1223.08,0.00,COMMERCIAL SUPPLIER 
 18-07-2023,Adults,All Therapy Solutions Ltd,Occupational Health,3720.00,0.00,COMMERCIAL SUPPLIER 
 18-07-2023,Adults,Barristers - Deka chambers,Legal Fees,500.00,0.00,LEGAL SERVICES 
 18-07-2023,Adults,REMARK LTD,Home Care - Private Contractors Payment,563.92,0.00,COMMERCIAL SUPPLIER 
 18-07-2023,Adults,REMARK LTD,Home Care - Private Contractors Payment,712.32,0.00,COMMERCIAL SUPPLIER 
 18-07-2023,Adults,REMARK LTD,Home Care - Private Contractors Payment,712.32,0.00,COMMERCIAL SUPPLIER 
 18-07-2023,Adults,The Riverside Group,Supported Other Accommodation - Private Contractors Payment,1201.43,0.00, 
 18-07-2023,Adults,The Riverside Group,Supported Other Accommodation - Private Contractors Payment,1160.00,0.00, 
 18-07-2023,Adults,The Riverside Group,Supported Other Accommodation - Private Contractors Payment,1160.00,0.00, 
 18-07-2023,Adults,The Riverside Group,Supported Other Accommodation - Private Contractors Payment,1160.00,0.00, 
 18-07-2023,Adults,The Riverside Group,Supported Other Accommodation - Private Contractors Payment,1160.00,0.00, 
 18-07-2023,Adults,Haven Care Ltd.,Home Care - Private Contractors Payment,709.82,0.00,COMMERCIAL SUPPLIER 
 18-07-2023,Adults,Ace Outreach Ltd,Home Care - Private Contractors Payment,1188.00,0.00,COMMERCIAL SUPPLIER 
 19-07-2023,Adults,IJB Healthcare Ltd,Home Care - Private Contractors Payment,546.02,0.00,COMMERCIAL SUPPLIER 
 19-07-2023,Adults,IJB Healthcare Ltd,Home Care - Private Contractors Payment,1100.00,0.00,COMMERCIAL SUPPLIER 
 19-07-2023,Adults,IJB Healthcare Ltd,Home Care - Private Contractors Payment,1878.28,0.00,COMMERCIAL SUPPLIER 
 19-07-2023,Adults,IJB Healthcare Ltd,Home Care - Private Contractors Payment,1092.02,0.00,COMMERCIAL SUPPLIER 
 19-07-2023,Adults,IJB Healthcare Ltd,Home Care - Private Contractors Payment,1223.08,0.00,COMMERCIAL SUPPLIER 
 19-07-2023,Adults,IJB Healthcare Ltd,Home Care - Private Contractors Payment,1223.05,0.00,COMMERCIAL SUPPLIER 
 19-07-2023,Adults,IJB Healthcare Ltd,Home Care - Private Contractors Payment,917.29,0.00,COMMERCIAL SUPPLIER 
 19-07-2023,Adults,John Stanleys Care Agency Ltd,Home Care - Private Contractors Payment,4861.40,0.00,COMMERCIAL SUPPLIER 
 19-07-2023,Adults,John Stanleys Care Agency Ltd,Home Care - Private Contractors Payment,5406.40,0.00,COMMERCIAL SUPPLIER 
 19-07-2023,Adults,John Stanleys Care Agency Ltd,Home Care - Private Contractors Payment,6518.20,0.00,COMMERCIAL SUPPLIER 
 19-07-2023,Adults,John Stanleys Care Agency Ltd,Home Care - Private Contractors Payment,5733.40,0.00,COMMERCIAL SUPPLIER 
 19-07-2023,Adults,Home Support Services (Havering & Essex) Ltd,Home Care - Private Contractors Payment,677.06,0.00,COMMERCIAL SUPPLIER 
 19-07-2023,Adults,Home Support Services (Havering & Essex) Ltd,Home Care - Private Contractors Payment,1801.87,0.00,COMMERCIAL SUPPLIER 
 19-07-2023,Adults,Home Support Services (Havering & Essex) Ltd,Home Care - Private Contractors Payment,580.97,0.00,COMMERCIAL SUPPLIER 
 19-07-2023,Adults,Home Support Services (Havering & Essex) Ltd,Home Care - Private Contractors Payment,616.64,0.00,COMMERCIAL SUPPLIER 
 19-07-2023,Adults,Home Support Services (Havering & Essex) Ltd,Home Care - Private Contractors Payment,917.31,0.00,COMMERCIAL SUPPLIER 
 19-07-2023,Adults,Home Support Services (Havering & Essex) Ltd,Home Care - Private Contractors Payment,1250.02,0.00,COMMERCIAL SUPPLIER 
 19-07-2023,Adults,Home Support Services (Havering & Essex) Ltd,Home Care - Private Contractors Payment,2449.08,0.00,COMMERCIAL SUPPLIER 
 19-07-2023,Adults,Home Support Services (Havering & Essex) Ltd,Home Care - Private Contractors Payment,552.21,0.00,COMMERCIAL SUPPLIER 
 19-07-2023,Adults,Home Support Services (Havering & Essex) Ltd,Home Care - Private Contractors Payment,2446.17,0.00,COMMERCIAL SUPPLIER 
 19-07-2023,Adults,Home Support Services (Havering & Essex) Ltd,Home Care - Private Contractors Payment,604.26,0.00,COMMERCIAL SUPPLIER 
 19-07-2023,Adults,Home Support Services (Havering & Essex) Ltd,Home Care - Private Contractors Payment,603.52,0.00,COMMERCIAL SUPPLIER 
 19-07-2023,Adults,Home Support Services (Havering & Essex) Ltd,Home Care - Private Contractors Payment,1219.81,0.00,COMMERCIAL SUPPLIER 
 19-07-2023,Adults,Home Support Services (Havering & Essex) Ltd,Home Care - Private Contractors Payment,2516.42,0.00,COMMERCIAL SUPPLIER 
 19-07-2023,Adults,Home Support Services (Havering & Essex) Ltd,Home Care - Private Contractors Payment,611.54,0.00,COMMERCIAL SUPPLIER 
 19-07-2023,Adults,Home Support Services (Havering & Essex) Ltd,Home Care - Private Contractors Payment,2208.10,0.00,COMMERCIAL SUPPLIER 
 19-07-2023,Adults,Home Support Services (Havering & Essex) Ltd,Home Care - Private Contractors Payment,1201.24,0.00,COMMERCIAL SUPPLIER 
 19-07-2023,Adults,Home Support Services (Havering & Essex) Ltd,Home Care - Private Contractors Payment,2516.78,0.00,COMMERCIAL SUPPLIER 
 19-07-2023,Adults,Home Support Services (Havering & Essex) Ltd,Home Care - Private Contractors Payment,1401.81,0.00,COMMERCIAL SUPPLIER 
 19-07-2023,Adults,Home Support Services (Havering & Essex) Ltd,Home Care - Private Contractors Payment,1296.61,0.00,COMMERCIAL SUPPLIER 
 19-07-2023,Adults,Home Support Services (Havering & Essex) Ltd,Home Care - Private Contractors Payment,3179.99,0.00,COMMERCIAL SUPPLIER 
 19-07-2023,Adults,Home Support Services (Havering & Essex) Ltd,Home Care - Private Contractors Payment,939.15,0.00,COMMERCIAL SUPPLIER 
 19-07-2023,Adults,Home Support Services (Havering & Essex) Ltd,Home Care - Private Contractors Payment,2360.21,0.00,COMMERCIAL SUPPLIER 
 19-07-2023,Adults,Home Support Services (Havering & Essex) Ltd,Home Care - Private Contractors Payment,2601.60,0.00,COMMERCIAL SUPPLIER 
 19-07-2023,Adults,Home Support Services (Havering & Essex) Ltd,Home Care - Private Contractors Payment,2585.58,0.00,COMMERCIAL SUPPLIER 
 19-07-2023,Adults,Home Support Services (Havering & Essex) Ltd,Home Care - Private Contractors Payment,711.28,0.00,COMMERCIAL SUPPLIER 
 19-07-2023,Adults,Home Support Services (Havering & Essex) Ltd,Home Care - Private Contractors Payment,2445.08,0.00,COMMERCIAL SUPPLIER 
 19-07-2023,Adults,Home Support Services (Havering & Essex) Ltd,Home Care - Private Contractors Payment,611.54,0.00,COMMERCIAL SUPPLIER 
 19-07-2023,Adults,Home Support Services (Havering & Essex) Ltd,Home Care - Private Contractors Payment,2481.48,0.00,COMMERCIAL SUPPLIER 
 19-07-2023,Adults,Home Support Services (Havering & Essex) Ltd,Home Care - Private Contractors Payment,2448.72,0.00,COMMERCIAL SUPPLIER 
 19-07-2023,Adults,Home Support Services (Havering & Essex) Ltd,Home Care - Private Contractors Payment,611.54,0.00,COMMERCIAL SUPPLIER 
 19-07-2023,Adults,Home Support Services (Havering & Essex) Ltd,Home Care - Private Contractors Payment,615.18,0.00,COMMERCIAL SUPPLIER 
 19-07-2023,Adults,Home Support Services (Havering & Essex) Ltd,Home Care - Private Contractors Payment,2485.48,0.00,COMMERCIAL SUPPLIER 
 19-07-2023,Adults,Home Support Services (Havering & Essex) Ltd,Home Care - Private Contractors Payment,2460.00,0.00,COMMERCIAL SUPPLIER 
 19-07-2023,Adults,Home Support Services (Havering & Essex) Ltd,Home Care - Private Contractors Payment,1834.63,0.00,COMMERCIAL SUPPLIER 
 19-07-2023,Adults,Home Support Services (Havering & Essex) Ltd,Home Care - Private Contractors Payment,2499.68,0.00,COMMERCIAL SUPPLIER 
 19-07-2023,Adults,Home Support Services (Havering & Essex) Ltd,Home Care - Private Contractors Payment,785.18,0.00,COMMERCIAL SUPPLIER 
 19-07-2023,Adults,Home Support Services (Havering & Essex) Ltd,Home Care - Private Contractors Payment,981.74,0.00,COMMERCIAL SUPPLIER 
 19-07-2023,Adults,Home Support Services (Havering & Essex) Ltd,Home Care - Private Contractors Payment,1164.84,0.00,COMMERCIAL SUPPLIER 
 19-07-2023,Adults,Home Support Services (Havering & Essex) Ltd,Home Care - Private Contractors Payment,524.18,0.00,COMMERCIAL SUPPLIER 
 19-07-2023,Adults,Home Support Services (Havering & Essex) Ltd,Home Care - Private Contractors Payment,1163.75,0.00,COMMERCIAL SUPPLIER 
 19-07-2023,Adults,Home Support Services (Havering & Essex) Ltd,Home Care - Private Contractors Payment,1422.19,0.00,COMMERCIAL SUPPLIER 
 19-07-2023,Adults,Home Support Services (Havering & Essex) Ltd,Home Care - Private Contractors Payment,1834.63,0.00,COMMERCIAL SUPPLIER 
 19-07-2023,Adults,Home Support Services (Havering & Essex) Ltd,Home Care - Private Contractors Payment,620.64,0.00,COMMERCIAL SUPPLIER 
 19-07-2023,Adults,Home Support Services (Havering & Essex) Ltd,Home Care - Private Contractors Payment,1834.63,0.00,COMMERCIAL SUPPLIER 
 19-07-2023,Adults,Home Support Services (Havering & Essex) Ltd,Home Care - Private Contractors Payment,524.16,0.00,COMMERCIAL SUPPLIER 
 19-07-2023,Adults,Home Support Services (Havering & Essex) Ltd,Home Care - Private Contractors Payment,647.58,0.00,COMMERCIAL SUPPLIER 
 19-07-2023,Adults,Home Support Services (Havering & Essex) Ltd,Home Care - Private Contractors Payment,1631.49,0.00,COMMERCIAL SUPPLIER 
 19-07-2023,Adults,Home Support Services (Havering & Essex) Ltd,Home Care - Private Contractors Payment,1234.37,0.00,COMMERCIAL SUPPLIER 
 19-07-2023,Adults,Home Support Services (Havering & Essex) Ltd,Home Care - Private Contractors Payment,1633.31,0.00,COMMERCIAL SUPPLIER 
 19-07-2023,Adults,Home Support Services (Havering & Essex) Ltd,Home Care - Private Contractors Payment,2468.01,0.00,COMMERCIAL SUPPLIER 
 19-07-2023,Adults,Home Support Services (Havering & Essex) Ltd,Home Care - Private Contractors Payment,626.10,0.00,COMMERCIAL SUPPLIER 
 19-07-2023,Adults,Home Support Services (Havering & Essex) Ltd,Home Care - Private Contractors Payment,611.54,0.00,COMMERCIAL SUPPLIER 
 19-07-2023,Adults,Home Support Services (Havering & Essex) Ltd,Home Care - Private Contractors Payment,2239.41,0.00,COMMERCIAL SUPPLIER 
 19-07-2023,Adults,Home Support Services (Havering & Essex) Ltd,Home Care - Private Contractors Payment,1326.82,0.00,COMMERCIAL SUPPLIER 
 19-07-2023,Adults,Home Support Services (Havering & Essex) Ltd,Home Care - Private Contractors Payment,788.81,0.00,COMMERCIAL SUPPLIER 
 19-07-2023,Adults,Home Support Services (Havering & Essex) Ltd,Home Care - Private Contractors Payment,1871.03,0.00,COMMERCIAL SUPPLIER 
 19-07-2023,Adults,Home Support Services (Havering & Essex) Ltd,Home Care - Private Contractors Payment,608.99,0.00,COMMERCIAL SUPPLIER 
 19-07-2023,Adults,Home Support Services (Havering & Essex) Ltd,Home Care - Private Contractors Payment,1847.73,0.00,COMMERCIAL SUPPLIER 
 19-07-2023,Adults,Home Support Services (Havering & Essex) Ltd,Home Care - Private Contractors Payment,1475.34,0.00,COMMERCIAL SUPPLIER 
 19-07-2023,Adults,Home Support Services (Havering & Essex) Ltd,Home Care - Private Contractors Payment,603.53,0.00,COMMERCIAL SUPPLIER 
 19-07-2023,Adults,Home Support Services (Havering & Essex) Ltd,Home Care - Private Contractors Payment,1233.64,0.00,COMMERCIAL SUPPLIER 
 19-07-2023,Adults,Home Support Services (Havering & Essex) Ltd,Home Care - Private Contractors Payment,918.77,0.00,COMMERCIAL SUPPLIER 
 19-07-2023,Adults,Home Support Services (Havering & Essex) Ltd,Home Care - Private Contractors Payment,925.32,0.00,COMMERCIAL SUPPLIER 
 19-07-2023,Adults,Home Support Services (Havering & Essex) Ltd,Home Care - Private Contractors Payment,1327.55,0.00,COMMERCIAL SUPPLIER 
 19-07-2023,Adults,Home Support Services (Havering & Essex) Ltd,Home Care - Private Contractors Payment,1418.92,0.00,COMMERCIAL SUPPLIER 
 19-07-2023,Adults,Home Support Services (Havering & Essex) Ltd,Home Care - Private Contractors Payment,2446.17,0.00,COMMERCIAL SUPPLIER 
 19-07-2023,Adults,Home Support Services (Havering & Essex) Ltd,Home Care - Private Contractors Payment,2129.48,0.00,COMMERCIAL SUPPLIER 
 19-07-2023,Adults,Home Support Services (Havering & Essex) Ltd,Home Care - Private Contractors Payment,672.33,0.00,COMMERCIAL SUPPLIER 
 19-07-2023,Adults,Home Support Services (Havering & Essex) Ltd,Home Care - Private Contractors Payment,906.39,0.00,COMMERCIAL SUPPLIER 
 19-07-2023,Adults,Home Support Services (Havering & Essex) Ltd,Home Care - Private Contractors Payment,1242.74,0.00,COMMERCIAL SUPPLIER 
 19-07-2023,Adults,Home Support Services (Havering & Essex) Ltd,Home Care - Private Contractors Payment,1240.92,0.00,COMMERCIAL SUPPLIER 
 19-07-2023,Adults,Home Support Services (Havering & Essex) Ltd,Home Care - Private Contractors Payment,625.37,0.00,COMMERCIAL SUPPLIER 
 19-07-2023,Adults,Home Support Services (Havering & Essex) Ltd,Home Care - Private Contractors Payment,1389.43,0.00,COMMERCIAL SUPPLIER 
 19-07-2023,Adults,Home Support Services (Havering & Essex) Ltd,Home Care - Private Contractors Payment,561.31,0.00,COMMERCIAL SUPPLIER 
 19-07-2023,Adults,Home Support Services (Havering & Essex) Ltd,Home Care - Private Contractors Payment,1176.49,0.00,COMMERCIAL SUPPLIER 
 19-07-2023,Adults,Home Support Services (Havering & Essex) Ltd,Home Care - Private Contractors Payment,930.05,0.00,COMMERCIAL SUPPLIER 
 19-07-2023,Adults,Home Support Services (Havering & Essex) Ltd,Home Care - Private Contractors Payment,650.13,0.00,COMMERCIAL SUPPLIER 
 19-07-2023,Adults,Home Support Services (Havering & Essex) Ltd,Home Care - Private Contractors Payment,2533.90,0.00,COMMERCIAL SUPPLIER 
 19-07-2023,Adults,Home Support Services (Havering & Essex) Ltd,Home Care - Private Contractors Payment,2495.31,0.00,COMMERCIAL SUPPLIER 
 19-07-2023,Adults,Home Support Services (Havering & Essex) Ltd,Home Care - Private Contractors Payment,1563.07,0.00,COMMERCIAL SUPPLIER 
 19-07-2023,Adults,Home Support Services (Havering & Essex) Ltd,Home Care - Private Contractors Payment,2234.68,0.00,COMMERCIAL SUPPLIER 
 19-07-2023,Adults,Home Support Services (Havering & Essex) Ltd,Home Care - Private Contractors Payment,1129.17,0.00,COMMERCIAL SUPPLIER 
 19-07-2023,Adults,Home Support Services (Havering & Essex) Ltd,Home Care - Private Contractors Payment,634.11,0.00,COMMERCIAL SUPPLIER 
 19-07-2023,Adults,Home Support Services (Havering & Essex) Ltd,Home Care - Private Contractors Payment,929.69,0.00,COMMERCIAL SUPPLIER 
 19-07-2023,Adults,Home Support Services (Havering & Essex) Ltd,Home Care - Private Contractors Payment,1165.93,0.00,COMMERCIAL SUPPLIER 
 19-07-2023,Adults,Home Support Services (Havering & Essex) Ltd,Home Care - Private Contractors Payment,1228.54,0.00,COMMERCIAL SUPPLIER 
 19-07-2023,Adults,Home Support Services (Havering & Essex) Ltd,Home Care - Private Contractors Payment,1287.15,0.00,COMMERCIAL SUPPLIER 
 19-07-2023,Adults,Home Support Services (Havering & Essex) Ltd,Home Care - Private Contractors Payment,1834.63,0.00,COMMERCIAL SUPPLIER 
 19-07-2023,Adults,Home Support Services (Havering & Essex) Ltd,Home Care - Private Contractors Payment,917.31,0.00,COMMERCIAL SUPPLIER 
 19-07-2023,Adults,Home Support Services (Havering & Essex) Ltd,Home Care - Private Contractors Payment,1049.81,0.00,COMMERCIAL SUPPLIER 
 19-07-2023,Adults,Home Support Services (Havering & Essex) Ltd,Home Care - Private Contractors Payment,2449.08,0.00,COMMERCIAL SUPPLIER 
 19-07-2023,Adults,Home Support Services (Havering & Essex) Ltd,Home Care - Private Contractors Payment,973.73,0.00,COMMERCIAL SUPPLIER 
 19-07-2023,Adults,Home Support Services (Havering & Essex) Ltd,Home Care - Private Contractors Payment,886.01,0.00,COMMERCIAL SUPPLIER 
 19-07-2023,Adults,Home Support Services (Havering & Essex) Ltd,Home Care - Private Contractors Payment,1248.56,0.00,COMMERCIAL SUPPLIER 
 19-07-2023,Adults,Home Support Services (Havering & Essex) Ltd,Home Care - Private Contractors Payment,1066.19,0.00,COMMERCIAL SUPPLIER 
 19-07-2023,Adults,Home Support Services (Havering & Essex) Ltd,Home Care - Private Contractors Payment,2519.04,0.00,COMMERCIAL SUPPLIER 
 19-07-2023,Adults,Home Support Services (Havering & Essex) Ltd,Home Care - Private Contractors Payment,529.64,0.00,COMMERCIAL SUPPLIER 
 19-07-2023,Adults,Home Support Services (Havering & Essex) Ltd,Home Care - Private Contractors Payment,2385.00,0.00,COMMERCIAL SUPPLIER 
 19-07-2023,Adults,Home Support Services (Havering & Essex) Ltd,Home Care - Private Contractors Payment,925.69,0.00,COMMERCIAL SUPPLIER 
 19-07-2023,Adults,Home Support Services (Havering & Essex) Ltd,Home Care - Private Contractors Payment,2331.50,0.00,COMMERCIAL SUPPLIER 
 19-07-2023,Adults,Home Support Services (Havering & Essex) Ltd,Home Care - Private Contractors Payment,1223.08,0.00,COMMERCIAL SUPPLIER 
 19-07-2023,Adults,Home Support Services (Havering & Essex) Ltd,Home Care - Private Contractors Payment,2070.87,0.00,COMMERCIAL SUPPLIER 
 19-07-2023,Adults,Home Support Services (Havering & Essex) Ltd,Home Care - Private Contractors Payment,788.45,0.00,COMMERCIAL SUPPLIER 
 19-07-2023,Adults,Home Support Services (Havering & Essex) Ltd,Home Care - Private Contractors Payment,620.28,0.00,COMMERCIAL SUPPLIER 
 19-07-2023,Adults,Home Support Services (Havering & Essex) Ltd,Home Care - Private Contractors Payment,819.39,0.00,COMMERCIAL SUPPLIER 
 19-07-2023,Adults,Home Support Services (Havering & Essex) Ltd,Home Care - Private Contractors Payment,2449.81,0.00,COMMERCIAL SUPPLIER 
 19-07-2023,Adults,Home Support Services (Havering & Essex) Ltd,Home Care - Private Contractors Payment,924.23,0.00,COMMERCIAL SUPPLIER 
 19-07-2023,Adults,Home Support Services (Havering & Essex) Ltd,Home Care - Private Contractors Payment,2446.17,0.00,COMMERCIAL SUPPLIER 
 19-07-2023,Adults,Home Support Services (Havering & Essex) Ltd,Home Care - Private Contractors Payment,917.31,0.00,COMMERCIAL SUPPLIER 
 19-07-2023,Adults,Home Support Services (Havering & Essex) Ltd,Home Care - Private Contractors Payment,1223.81,0.00,COMMERCIAL SUPPLIER 
 19-07-2023,Adults,Home Support Services (Havering & Essex) Ltd,Home Care - Private Contractors Payment,696.72,0.00,COMMERCIAL SUPPLIER 
 19-07-2023,Adults,Home Support Services (Havering & Essex) Ltd,Home Care - Private Contractors Payment,2490.94,0.00,COMMERCIAL SUPPLIER 
 19-07-2023,Adults,Matrix SCM Ltd,Agency Staff,562.20,0.00,COMMERCIAL SUPPLIER 
 19-07-2023,Adults,Matrix SCM Ltd,Agency Staff,1225.69,0.00,COMMERCIAL SUPPLIER 
 19-07-2023,Adults,Matrix SCM Ltd,Agency Staff,1209.60,0.00,COMMERCIAL SUPPLIER 
 19-07-2023,Adults,Matrix SCM Ltd,Agency Staff,1241.28,0.00,COMMERCIAL SUPPLIER 
 19-07-2023,Adults,Matrix SCM Ltd,Agency Staff,1385.28,0.00,COMMERCIAL SUPPLIER 
 19-07-2023,Adults,Matrix SCM Ltd,Agency Staff,1323.36,0.00,COMMERCIAL SUPPLIER 
 19-07-2023,Adults,Matrix SCM Ltd,Agency Staff,1241.28,0.00,COMMERCIAL SUPPLIER 
 19-07-2023,Adults,Matrix SCM Ltd,Agency Staff,1249.92,0.00,COMMERCIAL SUPPLIER 
 19-07-2023,Adults,Matrix SCM Ltd,Agency Staff,1253.54,0.00,COMMERCIAL SUPPLIER 
 19-07-2023,Adults,Matrix SCM Ltd,Agency Staff,1275.49,0.00,COMMERCIAL SUPPLIER 
 19-07-2023,Adults,Matrix SCM Ltd,Agency Staff,1215.42,0.00,COMMERCIAL SUPPLIER 
 19-07-2023,Adults,Matrix SCM Ltd,Agency Staff,695.17,0.00,COMMERCIAL SUPPLIER 
 19-07-2023,Adults,Matrix SCM Ltd,Agency Staff,710.27,0.00,COMMERCIAL SUPPLIER 
 19-07-2023,Adults,Matrix SCM Ltd,Agency Staff,710.27,0.00,COMMERCIAL SUPPLIER 
 19-07-2023,Adults,Matrix SCM Ltd,Agency Staff,741.32,0.00,COMMERCIAL SUPPLIER 
 19-07-2023,Adults,Matrix SCM Ltd,Agency Staff,790.91,0.00,COMMERCIAL SUPPLIER 
 19-07-2023,Adults,Matrix SCM Ltd,Agency Staff,1389.60,0.00,COMMERCIAL SUPPLIER 
 19-07-2023,Adults,Matrix SCM Ltd,Agency Staff,505.59,0.00,COMMERCIAL SUPPLIER 
 19-07-2023,Adults,Matrix SCM Ltd,Agency Staff,1241.28,0.00,COMMERCIAL SUPPLIER 
 19-07-2023,Adults,Matrix SCM Ltd,Agency Staff,1241.28,0.00,COMMERCIAL SUPPLIER 
 19-07-2023,Adults,Matrix SCM Ltd,Agency Staff,774.90,0.00,COMMERCIAL SUPPLIER 
 19-07-2023,Adults,Matrix SCM Ltd,Agency Staff,790.91,0.00,COMMERCIAL SUPPLIER 
 19-07-2023,Adults,Matrix SCM Ltd,Agency Staff,1002.52,0.00,COMMERCIAL SUPPLIER 
 19-07-2023,Adults,Matrix SCM Ltd,Agency Staff,1217.20,0.00,COMMERCIAL SUPPLIER 
 19-07-2023,Adults,Matrix SCM Ltd,Agency Staff,626.50,0.00,COMMERCIAL SUPPLIER 
 19-07-2023,Adults,Matrix SCM Ltd,Agency Staff,1241.28,0.00,COMMERCIAL SUPPLIER 
 19-07-2023,Adults,Matrix SCM Ltd,Agency Staff,1241.28,0.00,COMMERCIAL SUPPLIER 
 19-07-2023,Adults,Matrix SCM Ltd,Agency Staff,1075.96,0.00,COMMERCIAL SUPPLIER 
 19-07-2023,Adults,Matrix SCM Ltd,Agency Staff,1273.31,0.00,COMMERCIAL SUPPLIER 
 19-07-2023,Adults,Matrix SCM Ltd,Agency Staff,1181.15,0.00,COMMERCIAL SUPPLIER 
 19-07-2023,Adults,Matrix SCM Ltd,Agency Staff,673.20,0.00,COMMERCIAL SUPPLIER 
 19-07-2023,Adults,Matrix SCM Ltd,Agency Staff,908.64,0.00,COMMERCIAL SUPPLIER 
 19-07-2023,Adults,Matrix SCM Ltd,Agency Staff,695.17,0.00,COMMERCIAL SUPPLIER 
 19-07-2023,Adults,Matrix SCM Ltd,Agency Staff,599.04,0.00,COMMERCIAL SUPPLIER 
 19-07-2023,Adults,Matrix SCM Ltd,Agency Staff,618.85,0.00,COMMERCIAL SUPPLIER 
 19-07-2023,Adults,Matrix SCM Ltd,Agency Staff,599.04,0.00,COMMERCIAL SUPPLIER 
 19-07-2023,Adults,Matrix SCM Ltd,Agency Staff,695.52,0.00,COMMERCIAL SUPPLIER 
 19-07-2023,Adults,Matrix SCM Ltd,Agency Staff,1209.60,0.00,COMMERCIAL SUPPLIER 
 19-07-2023,Adults,Matrix SCM Ltd,Agency Staff,974.48,0.00,COMMERCIAL SUPPLIER 
 19-07-2023,Adults,Matrix SCM Ltd,Agency Staff,1436.42,0.00,COMMERCIAL SUPPLIER 
 19-07-2023,Adults,Matrix SCM Ltd,Agency Staff,1384.58,0.00,COMMERCIAL SUPPLIER 
 20-07-2023,Adults,Nottingham Rehab Ltd,Purchase - Equipment Furniture And Materials,522.49,0.00,COMMERCIAL SUPPLIER 
 20-07-2023,Adults,Certified Healthcare Solutions Ltd t/a In Home Care Havering,Home Care - Private Contractors Payment,1528.84,0.00,COMMERCIAL SUPPLIER 
 20-07-2023,Adults,Certified Healthcare Solutions Ltd t/a In Home Care Havering,Home Care - Private Contractors Payment,1528.84,0.00,COMMERCIAL SUPPLIER 
 20-07-2023,Adults,Everycare Romford ,Home Care - Private Contractors Payment,1179.36,0.00,COMMERCIAL SUPPLIER 
 20-07-2023,Adults,Everycare Romford ,Home Care - Private Contractors Payment,2271.36,0.00,COMMERCIAL SUPPLIER 
 21-07-2023,Adults,Phoenix Care Havering Ltd,Home Care - Private Contractors Payment,884.55,0.00,COMMERCIAL SUPPLIER 
 21-07-2023,Adults,Phoenix Care Havering Ltd,Home Care - Private Contractors Payment,819.03,0.00,COMMERCIAL SUPPLIER 
 21-07-2023,Adults,Phoenix Care Havering Ltd,Home Care - Private Contractors Payment,589.70,0.00,COMMERCIAL SUPPLIER 
 21-07-2023,Adults,Hospiva Care & Associates Agency Ltd_a,Home Care - Private Contractors Payment,2762.80,0.00,COMMERCIAL SUPPLIER 
 21-07-2023,Adults,Hospiva Care & Associates Agency Ltd_a,Home Care - Private Contractors Payment,1546.68,0.00,COMMERCIAL SUPPLIER 
 21-07-2023,Adults,Hospiva Care & Associates Agency Ltd_a,Home Care - Private Contractors Payment,1228.54,0.00,COMMERCIAL SUPPLIER 
 21-07-2023,Adults,Hospiva Care & Associates Agency Ltd_a,Home Care - Private Contractors Payment,1406.54,0.00,COMMERCIAL SUPPLIER 
 21-07-2023,Adults,Hospiva Care & Associates Agency Ltd_a,Home Care - Private Contractors Payment,1406.54,0.00,COMMERCIAL SUPPLIER 
 21-07-2023,Adults,Hospiva Care & Associates Agency Ltd_a,Home Care - Private Contractors Payment,628.65,0.00,COMMERCIAL SUPPLIER 
 21-07-2023,Adults,Hospiva Care & Associates Agency Ltd_a,Home Care - Private Contractors Payment,641.38,0.00,COMMERCIAL SUPPLIER 
 21-07-2023,Adults,Hospiva Care & Associates Agency Ltd_a,Home Care - Private Contractors Payment,591.89,0.00,COMMERCIAL SUPPLIER 
 21-07-2023,Adults,Hospiva Care & Associates Agency Ltd_a,Home Care - Private Contractors Payment,663.23,0.00,COMMERCIAL SUPPLIER 
 21-07-2023,Adults,Hospiva Care & Associates Agency Ltd_a,Home Care - Private Contractors Payment,674.15,0.00,COMMERCIAL SUPPLIER 
 21-07-2023,Adults,Hospiva Care & Associates Agency Ltd_a,Home Care - Private Contractors Payment,2429.03,0.00,COMMERCIAL SUPPLIER 
 21-07-2023,Adults,Hospiva Care & Associates Agency Ltd_a,Home Care - Private Contractors Payment,1697.01,0.00,COMMERCIAL SUPPLIER 
 21-07-2023,Adults,Hospiva Care & Associates Agency Ltd_a,Home Care - Private Contractors Payment,933.69,0.00,COMMERCIAL SUPPLIER 
 21-07-2023,Adults,Hospiva Care & Associates Agency Ltd_a,Home Care - Private Contractors Payment,933.69,0.00,COMMERCIAL SUPPLIER 
 21-07-2023,Adults,Hospiva Care & Associates Agency Ltd_a,Home Care - Private Contractors Payment,1260.94,0.00,COMMERCIAL SUPPLIER 
 21-07-2023,Adults,Hospiva Care & Associates Agency Ltd_a,Home Care - Private Contractors Payment,613.36,0.00,COMMERCIAL SUPPLIER 
 21-07-2023,Adults,Hospiva Care & Associates Agency Ltd_a,Home Care - Private Contractors Payment,611.54,0.00,COMMERCIAL SUPPLIER 
 21-07-2023,Adults,Hospiva Care & Associates Agency Ltd_a,Home Care - Private Contractors Payment,611.54,0.00,COMMERCIAL SUPPLIER 
 21-07-2023,Adults,Hospiva Care & Associates Agency Ltd_a,Home Care - Private Contractors Payment,1137.17,0.00,COMMERCIAL SUPPLIER 
 21-07-2023,Adults,Hospiva Care & Associates Agency Ltd_a,Home Care - Private Contractors Payment,1300.62,0.00,COMMERCIAL SUPPLIER 
 21-07-2023,Adults,Hospiva Care & Associates Agency Ltd_a,Home Care - Private Contractors Payment,1300.62,0.00,COMMERCIAL SUPPLIER 
 21-07-2023,Adults,Hospiva Care & Associates Agency Ltd_a,Home Care - Private Contractors Payment,753.49,0.00,COMMERCIAL SUPPLIER 
 21-07-2023,Adults,Hospiva Care & Associates Agency Ltd_a,Home Care - Private Contractors Payment,1223.04,0.00,COMMERCIAL SUPPLIER 
 21-07-2023,Adults,Hospiva Care & Associates Agency Ltd_a,Home Care - Private Contractors Payment,3669.12,0.00,COMMERCIAL SUPPLIER 
 21-07-2023,Adults,Carers Trust East Midlands,Home Care - Private Contractors Payment,1102.93,0.00,COMMERCIAL SUPPLIER 
 21-07-2023,Adults,Carers Trust East Midlands,Home Care - Private Contractors Payment,982.80,0.00,COMMERCIAL SUPPLIER 
 21-07-2023,Adults,Carers Trust East Midlands,Home Care - Private Contractors Payment,1310.41,0.00,COMMERCIAL SUPPLIER 
 21-07-2023,Adults,Fountain Based Ltd,Home Care - Private Contractors Payment,1528.81,0.00,COMMERCIAL SUPPLIER 
 21-07-2023,Adults,Fountain Based Ltd,Home Care - Private Contractors Payment,1528.81,0.00,COMMERCIAL SUPPLIER 
 21-07-2023,Adults,Fountain Based Ltd,Home Care - Private Contractors Payment,1255.81,0.00,COMMERCIAL SUPPLIER 
 24-07-2023,Adults,Radfield Home Care Havering & Brentwood,Home Care - Private Contractors Payment,1186.00,0.00,COMMERCIAL SUPPLIER 
 24-07-2023,Adults,London Borough of Barking & Dagenham_a,Daycare - Private Contractors Payment,3880.00,0.00,LOCAL AUTHORITY SERVICES 
 24-07-2023,Adults,London Borough of Barking & Dagenham_a,Daycare - Private Contractors Payment,3880.00,0.00,LOCAL AUTHORITY SERVICES 
 24-07-2023,Adults,London Borough of Barking & Dagenham_a,Daycare - Private Contractors Payment,3880.00,0.00,LOCAL AUTHORITY SERVICES 
 24-07-2023,Adults,London Borough of Barking & Dagenham_a,Daycare - Private Contractors Payment,2328.00,0.00,LOCAL AUTHORITY SERVICES 
 24-07-2023,Adults,London Borough of Barking & Dagenham_a,Daycare - Private Contractors Payment,3880.00,0.00,LOCAL AUTHORITY SERVICES 
 24-07-2023,Adults,London Borough of Barking & Dagenham_a,Daycare - Private Contractors Payment,1552.00,0.00,LOCAL AUTHORITY SERVICES 
 24-07-2023,Adults,London Borough of Barking & Dagenham_a,Daycare - Private Contractors Payment,1552.00,0.00,LOCAL AUTHORITY SERVICES 
 24-07-2023,Adults,London Borough of Barking & Dagenham_a,Daycare - Private Contractors Payment,776.00,0.00,LOCAL AUTHORITY SERVICES 
 24-07-2023,Adults,London Borough of Barking & Dagenham_a,Daycare - Private Contractors Payment,2328.00,0.00,LOCAL AUTHORITY SERVICES 
 24-07-2023,Adults,All Therapy Solutions Ltd,Occupational Health,2500.00,0.00,COMMERCIAL SUPPLIER 
 24-07-2023,Adults,Action First Assessments Ltd,Private Contractors Payment - Other,620.00,0.00,COMMERCIAL SUPPLIER 
 25-07-2023,Adults,R G Care Ltd ,Daycare - Private Contractors Payment,840.00,0.00,COMMERCIAL SUPPLIER 
 25-07-2023,Adults,R G Care Ltd ,Daycare - Private Contractors Payment,900.00,0.00,COMMERCIAL SUPPLIER 
 25-07-2023,Adults,London Care Plc_a,Home Care - Private Contractors Payment,844.51,0.00,COMMERCIAL SUPPLIER 
 25-07-2023,Adults,London Care Plc_a,Home Care - Private Contractors Payment,1448.04,0.00,COMMERCIAL SUPPLIER 
 25-07-2023,Adults,London Care Plc_a,Home Care - Private Contractors Payment,679.25,0.00,COMMERCIAL SUPPLIER 
 25-07-2023,Adults,London Care Plc_a,Home Care - Private Contractors Payment,1561.24,0.00,COMMERCIAL SUPPLIER 
 25-07-2023,Adults,London Care Plc_a,Home Care - Private Contractors Payment,1609.29,0.00,COMMERCIAL SUPPLIER 
 25-07-2023,Adults,London Care Plc_a,Home Care - Private Contractors Payment,995.57,0.00,COMMERCIAL SUPPLIER 
 25-07-2023,Adults,London Care Plc_a,Home Care - Private Contractors Payment,1445.12,0.00,COMMERCIAL SUPPLIER 
 25-07-2023,Adults,London Care Plc_a,Home Care - Private Contractors Payment,1419.64,0.00,COMMERCIAL SUPPLIER 
 25-07-2023,Adults,Recruitcare Professionals Ltd ,Home Care - Private Contractors Payment,1223.08,0.00,COMMERCIAL SUPPLIER 
 25-07-2023,Adults,Lodge Group Care UK Ltd,Home Care - Private Contractors Payment,571.50,0.00,COMMERCIAL SUPPLIER 
 25-07-2023,Adults,Lodge Group Care UK Ltd,Home Care - Private Contractors Payment,571.50,0.00,COMMERCIAL SUPPLIER 
 25-07-2023,Adults,Lodge Group Care UK Ltd,Home Care - Private Contractors Payment,701.45,0.00,COMMERCIAL SUPPLIER 
 25-07-2023,Adults,Lodge Group Care UK Ltd,Home Care - Private Contractors Payment,535.10,0.00,COMMERCIAL SUPPLIER 
 25-07-2023,Adults,Lodge Group Care UK Ltd,Home Care - Private Contractors Payment,848.88,0.00,COMMERCIAL SUPPLIER 
 25-07-2023,Adults,Lodge Group Care UK Ltd,Home Care - Private Contractors Payment,889.65,0.00,COMMERCIAL SUPPLIER 
 25-07-2023,Adults,Lodge Group Care UK Ltd,Home Care - Private Contractors Payment,611.54,0.00,COMMERCIAL SUPPLIER 
 25-07-2023,Adults,Lodge Group Care UK Ltd,Home Care - Private Contractors Payment,611.54,0.00,COMMERCIAL SUPPLIER 
 25-07-2023,Adults,Lodge Group Care UK Ltd,Home Care - Private Contractors Payment,1223.08,0.00,COMMERCIAL SUPPLIER 
 25-07-2023,Adults,Lodge Group Care UK Ltd,Home Care - Private Contractors Payment,922.77,0.00,COMMERCIAL SUPPLIER 
 25-07-2023,Adults,Lodge Group Care UK Ltd,Home Care - Private Contractors Payment,922.77,0.00,COMMERCIAL SUPPLIER 
 25-07-2023,Adults,Lodge Group Care UK Ltd,Home Care - Private Contractors Payment,1223.08,0.00,COMMERCIAL SUPPLIER 
 25-07-2023,Adults,Lodge Group Care UK Ltd,Home Care - Private Contractors Payment,1223.45,0.00,COMMERCIAL SUPPLIER 
 25-07-2023,Adults,Lodge Group Care UK Ltd,Home Care - Private Contractors Payment,912.95,0.00,COMMERCIAL SUPPLIER 
 25-07-2023,Adults,Lodge Group Care UK Ltd,Home Care - Private Contractors Payment,752.78,0.00,COMMERCIAL SUPPLIER 
 25-07-2023,Adults,Lodge Group Care UK Ltd,Home Care - Private Contractors Payment,896.20,0.00,COMMERCIAL SUPPLIER 
 25-07-2023,Adults,Lodge Group Care UK Ltd,Home Care - Private Contractors Payment,693.44,0.00,COMMERCIAL SUPPLIER 
 25-07-2023,Adults,Lodge Group Care UK Ltd,Home Care - Private Contractors Payment,1188.86,0.00,COMMERCIAL SUPPLIER 
 25-07-2023,Adults,Lodge Group Care UK Ltd,Home Care - Private Contractors Payment,593.71,0.00,COMMERCIAL SUPPLIER 
 25-07-2023,Adults,Lodge Group Care UK Ltd,Home Care - Private Contractors Payment,1242.01,0.00,COMMERCIAL SUPPLIER 
 25-07-2023,Adults,Lodge Group Care UK Ltd,Home Care - Private Contractors Payment,1243.10,0.00,COMMERCIAL SUPPLIER 
 25-07-2023,Adults,Lodge Group Care UK Ltd,Home Care - Private Contractors Payment,658.86,0.00,COMMERCIAL SUPPLIER 
 25-07-2023,Adults,Lodge Group Care UK Ltd,Home Care - Private Contractors Payment,611.54,0.00,COMMERCIAL SUPPLIER 
 25-07-2023,Adults,Lodge Group Care UK Ltd,Home Care - Private Contractors Payment,1232.91,0.00,COMMERCIAL SUPPLIER 
 25-07-2023,Adults,Lodge Group Care UK Ltd,Home Care - Private Contractors Payment,1973.66,0.00,COMMERCIAL SUPPLIER 
 25-07-2023,Adults,Lodge Group Care UK Ltd,Home Care - Private Contractors Payment,600.62,0.00,COMMERCIAL SUPPLIER 
 25-07-2023,Adults,Lodge Group Care UK Ltd,Home Care - Private Contractors Payment,611.54,0.00,COMMERCIAL SUPPLIER 
 25-07-2023,Adults,Lodge Group Care UK Ltd,Home Care - Private Contractors Payment,627.56,0.00,COMMERCIAL SUPPLIER 
 25-07-2023,Adults,Lodge Group Care UK Ltd,Home Care - Private Contractors Payment,1089.49,0.00,COMMERCIAL SUPPLIER 
 25-07-2023,Adults,Lodge Group Care UK Ltd,Home Care - Private Contractors Payment,1095.68,0.00,COMMERCIAL SUPPLIER 
 25-07-2023,Adults,Lodge Group Care UK Ltd,Home Care - Private Contractors Payment,920.23,0.00,COMMERCIAL SUPPLIER 
 25-07-2023,Adults,Lodge Group Care UK Ltd,Home Care - Private Contractors Payment,920.59,0.00,COMMERCIAL SUPPLIER 
 25-07-2023,Adults,Lodge Group Care UK Ltd,Home Care - Private Contractors Payment,885.28,0.00,COMMERCIAL SUPPLIER 
 25-07-2023,Adults,Lodge Group Care UK Ltd,Home Care - Private Contractors Payment,885.28,0.00,COMMERCIAL SUPPLIER 
 25-07-2023,Adults,Lodge Group Care UK Ltd,Home Care - Private Contractors Payment,1262.03,0.00,COMMERCIAL SUPPLIER 
 25-07-2023,Adults,Lodge Group Care UK Ltd,Home Care - Private Contractors Payment,2035.17,0.00,COMMERCIAL SUPPLIER 
 25-07-2023,Adults,Lodge Group Care UK Ltd,Home Care - Private Contractors Payment,1193.95,0.00,COMMERCIAL SUPPLIER 
 25-07-2023,Adults,Lodge Group Care UK Ltd,Home Care - Private Contractors Payment,742.59,0.00,COMMERCIAL SUPPLIER 
 25-07-2023,Adults,Lodge Group Care UK Ltd,Home Care - Private Contractors Payment,743.32,0.00,COMMERCIAL SUPPLIER 
 25-07-2023,Adults,Lodge Group Care UK Ltd,Home Care - Private Contractors Payment,611.54,0.00,COMMERCIAL SUPPLIER 
 25-07-2023,Adults,Lodge Group Care UK Ltd,Home Care - Private Contractors Payment,1266.76,0.00,COMMERCIAL SUPPLIER 
 25-07-2023,Adults,Lodge Group Care UK Ltd,Home Care - Private Contractors Payment,1243.10,0.00,COMMERCIAL SUPPLIER 
 25-07-2023,Adults,Lodge Group Care UK Ltd,Home Care - Private Contractors Payment,906.39,0.00,COMMERCIAL SUPPLIER 
 25-07-2023,Adults,Lodge Group Care UK Ltd,Home Care - Private Contractors Payment,1224.18,0.00,COMMERCIAL SUPPLIER 
 25-07-2023,Adults,Lodge Group Care UK Ltd,Home Care - Private Contractors Payment,1584.17,0.00,COMMERCIAL SUPPLIER 
 25-07-2023,Adults,Lodge Group Care UK Ltd,Home Care - Private Contractors Payment,613.36,0.00,COMMERCIAL SUPPLIER 
 25-07-2023,Adults,Lodge Group Care UK Ltd,Home Care - Private Contractors Payment,1057.08,0.00,COMMERCIAL SUPPLIER 
 25-07-2023,Adults,Lodge Group Care UK Ltd,Home Care - Private Contractors Payment,603.17,0.00,COMMERCIAL SUPPLIER 
 25-07-2023,Adults,Lodge Group Care UK Ltd,Home Care - Private Contractors Payment,917.31,0.00,COMMERCIAL SUPPLIER 
 25-07-2023,Adults,Lodge Group Care UK Ltd,Home Care - Private Contractors Payment,1234.01,0.00,COMMERCIAL SUPPLIER 
 25-07-2023,Adults,Lodge Group Care UK Ltd,Home Care - Private Contractors Payment,1234.01,0.00,COMMERCIAL SUPPLIER 
 25-07-2023,Adults,Lodge Group Care UK Ltd,Home Care - Private Contractors Payment,1238.01,0.00,COMMERCIAL SUPPLIER 
 25-07-2023,Adults,Lodge Group Care UK Ltd,Home Care - Private Contractors Payment,1267.86,0.00,COMMERCIAL SUPPLIER 
 25-07-2023,Adults,Lodge Group Care UK Ltd,Home Care - Private Contractors Payment,1213.26,0.00,COMMERCIAL SUPPLIER 
 25-07-2023,Adults,Lodge Group Care UK Ltd,Home Care - Private Contractors Payment,1214.35,0.00,COMMERCIAL SUPPLIER 
 25-07-2023,Adults,Lodge Group Care UK Ltd,Home Care - Private Contractors Payment,1223.08,0.00,COMMERCIAL SUPPLIER 
 25-07-2023,Adults,Lodge Group Care UK Ltd,Home Care - Private Contractors Payment,519.08,0.00,COMMERCIAL SUPPLIER 
 25-07-2023,Adults,Lodge Group Care UK Ltd,Home Care - Private Contractors Payment,791.73,0.00,COMMERCIAL SUPPLIER 
 25-07-2023,Adults,Lodge Group Care UK Ltd,Home Care - Private Contractors Payment,920.56,0.00,COMMERCIAL SUPPLIER 
 25-07-2023,Adults,Lodge Group Care UK Ltd,Home Care - Private Contractors Payment,1183.04,0.00,COMMERCIAL SUPPLIER 
 25-07-2023,Adults,Lodge Group Care UK Ltd,Home Care - Private Contractors Payment,1269.31,0.00,COMMERCIAL SUPPLIER 
 25-07-2023,Adults,Lodge Group Care UK Ltd,Home Care - Private Contractors Payment,611.54,0.00,COMMERCIAL SUPPLIER 
 25-07-2023,Adults,Lodge Group Care UK Ltd,Home Care - Private Contractors Payment,1235.10,0.00,COMMERCIAL SUPPLIER 
 25-07-2023,Adults,Lodge Group Care UK Ltd,Home Care - Private Contractors Payment,1236.55,0.00,COMMERCIAL SUPPLIER 
 25-07-2023,Adults,Lodge Group Care UK Ltd,Home Care - Private Contractors Payment,908.21,0.00,COMMERCIAL SUPPLIER 
 25-07-2023,Adults,Lodge Group Care UK Ltd,Home Care - Private Contractors Payment,798.64,0.00,COMMERCIAL SUPPLIER 
 25-07-2023,Adults,Lodge Group Care UK Ltd,Home Care - Private Contractors Payment,1243.10,0.00,COMMERCIAL SUPPLIER 
 25-07-2023,Adults,Lodge Group Care UK Ltd,Home Care - Private Contractors Payment,1246.74,0.00,COMMERCIAL SUPPLIER 
 25-07-2023,Adults,Lodge Group Care UK Ltd,Home Care - Private Contractors Payment,1264.58,0.00,COMMERCIAL SUPPLIER 
 25-07-2023,Adults,Lodge Group Care UK Ltd,Home Care - Private Contractors Payment,1275.86,0.00,COMMERCIAL SUPPLIER 
 25-07-2023,Adults,Lodge Group Care UK Ltd,Home Care - Private Contractors Payment,1228.54,0.00,COMMERCIAL SUPPLIER 
 25-07-2023,Adults,Lodge Group Care UK Ltd,Home Care - Private Contractors Payment,916.22,0.00,COMMERCIAL SUPPLIER 
 25-07-2023,Adults,Lodge Group Care UK Ltd,Home Care - Private Contractors Payment,918.41,0.00,COMMERCIAL SUPPLIER 
 25-07-2023,Adults,Lodge Group Care UK Ltd,Home Care - Private Contractors Payment,619.55,0.00,COMMERCIAL SUPPLIER 
 25-07-2023,Adults,Lodge Group Care UK Ltd,Home Care - Private Contractors Payment,1215.44,0.00,COMMERCIAL SUPPLIER 
 25-07-2023,Adults,Lodge Group Care UK Ltd,Home Care - Private Contractors Payment,1261.30,0.00,COMMERCIAL SUPPLIER 
 25-07-2023,Adults,Lodge Group Care UK Ltd,Home Care - Private Contractors Payment,611.54,0.00,COMMERCIAL SUPPLIER 
 25-07-2023,Adults,Lodge Group Care UK Ltd,Home Care - Private Contractors Payment,1248.20,0.00,COMMERCIAL SUPPLIER 
 25-07-2023,Adults,Lodge Group Care UK Ltd,Home Care - Private Contractors Payment,1219.44,0.00,COMMERCIAL SUPPLIER 
 25-07-2023,Adults,Lodge Group Care UK Ltd,Home Care - Private Contractors Payment,655.22,0.00,COMMERCIAL SUPPLIER 
 25-07-2023,Adults,Lodge Group Care UK Ltd,Home Care - Private Contractors Payment,655.22,0.00,COMMERCIAL SUPPLIER 
 25-07-2023,Adults,Lodge Group Care UK Ltd,Home Care - Private Contractors Payment,1473.16,0.00,COMMERCIAL SUPPLIER 
 25-07-2023,Adults,Lodge Group Care UK Ltd,Home Care - Private Contractors Payment,928.23,0.00,COMMERCIAL SUPPLIER 
 25-07-2023,Adults,Lodge Group Care UK Ltd,Home Care - Private Contractors Payment,1527.03,0.00,COMMERCIAL SUPPLIER 
 25-07-2023,Adults,Lodge Group Care UK Ltd,Home Care - Private Contractors Payment,578.78,0.00,COMMERCIAL SUPPLIER 
 25-07-2023,Adults,Lodge Group Care UK Ltd,Home Care - Private Contractors Payment,613.36,0.00,COMMERCIAL SUPPLIER 
 25-07-2023,Adults,Lodge Group Care UK Ltd,Home Care - Private Contractors Payment,1215.08,0.00,COMMERCIAL SUPPLIER 
 25-07-2023,Adults,Lodge Group Care UK Ltd,Home Care - Private Contractors Payment,1231.46,0.00,COMMERCIAL SUPPLIER 
 25-07-2023,Adults,Lodge Group Care UK Ltd,Home Care - Private Contractors Payment,520.17,0.00,COMMERCIAL SUPPLIER 
 25-07-2023,Adults,Lodge Group Care UK Ltd,Home Care - Private Contractors Payment,1231.09,0.00,COMMERCIAL SUPPLIER 
 25-07-2023,Adults,Lodge Group Care UK Ltd,Home Care - Private Contractors Payment,1231.82,0.00,COMMERCIAL SUPPLIER 
 25-07-2023,Adults,Lodge Group Care UK Ltd,Home Care - Private Contractors Payment,583.51,0.00,COMMERCIAL SUPPLIER 
 25-07-2023,Adults,Lodge Group Care UK Ltd,Home Care - Private Contractors Payment,586.06,0.00,COMMERCIAL SUPPLIER 
 25-07-2023,Adults,Lodge Group Care UK Ltd,Home Care - Private Contractors Payment,786.27,0.00,COMMERCIAL SUPPLIER 
 25-07-2023,Adults,Lodge Group Care UK Ltd,Home Care - Private Contractors Payment,786.27,0.00,COMMERCIAL SUPPLIER 
 25-07-2023,Adults,Lodge Group Care UK Ltd,Home Care - Private Contractors Payment,1226.36,0.00,COMMERCIAL SUPPLIER 
 25-07-2023,Adults,Lodge Group Care UK Ltd,Home Care - Private Contractors Payment,695.26,0.00,COMMERCIAL SUPPLIER 
 25-07-2023,Adults,Lodge Group Care UK Ltd,Home Care - Private Contractors Payment,1229.27,0.00,COMMERCIAL SUPPLIER 
 25-07-2023,Adults,Lodge Group Care UK Ltd,Home Care - Private Contractors Payment,1229.27,0.00,COMMERCIAL SUPPLIER 
 25-07-2023,Adults,Lodge Group Care UK Ltd,Home Care - Private Contractors Payment,797.19,0.00,COMMERCIAL SUPPLIER 
 25-07-2023,Adults,Lodge Group Care UK Ltd,Home Care - Private Contractors Payment,1182.68,0.00,COMMERCIAL SUPPLIER 
 25-07-2023,Adults,Lodge Group Care UK Ltd,Home Care - Private Contractors Payment,613.36,0.00,COMMERCIAL SUPPLIER 
 25-07-2023,Adults,Lodge Group Care UK Ltd,Home Care - Private Contractors Payment,1681.70,0.00,COMMERCIAL SUPPLIER 
 25-07-2023,Adults,Lodge Group Care UK Ltd,Home Care - Private Contractors Payment,1340.66,0.00,COMMERCIAL SUPPLIER 
 25-07-2023,Adults,Lodge Group Care UK Ltd,Home Care - Private Contractors Payment,1245.29,0.00,COMMERCIAL SUPPLIER 
 25-07-2023,Adults,Lodge Group Care UK Ltd,Home Care - Private Contractors Payment,1247.47,0.00,COMMERCIAL SUPPLIER 
 25-07-2023,Adults,Lodge Group Care UK Ltd,Home Care - Private Contractors Payment,922.05,0.00,COMMERCIAL SUPPLIER 
 25-07-2023,Adults,Lodge Group Care UK Ltd,Home Care - Private Contractors Payment,922.41,0.00,COMMERCIAL SUPPLIER 
 25-07-2023,Adults,Lodge Group Care UK Ltd,Home Care - Private Contractors Payment,557.30,0.00,COMMERCIAL SUPPLIER 
 25-07-2023,Adults,Lodge Group Care UK Ltd,Home Care - Private Contractors Payment,772.44,0.00,COMMERCIAL SUPPLIER 
 25-07-2023,Adults,Lodge Group Care UK Ltd,Home Care - Private Contractors Payment,772.80,0.00,COMMERCIAL SUPPLIER 
 25-07-2023,Adults,Lodge Group Care UK Ltd,Home Care - Private Contractors Payment,611.54,0.00,COMMERCIAL SUPPLIER 
 25-07-2023,Adults,Lodge Group Care UK Ltd,Home Care - Private Contractors Payment,611.54,0.00,COMMERCIAL SUPPLIER 
 25-07-2023,Adults,Lodge Group Care UK Ltd,Home Care - Private Contractors Payment,967.91,0.00,COMMERCIAL SUPPLIER 
 25-07-2023,Adults,Lodge Group Care UK Ltd,Home Care - Private Contractors Payment,1215.80,0.00,COMMERCIAL SUPPLIER 
 25-07-2023,Adults,Lodge Group Care UK Ltd,Home Care - Private Contractors Payment,1814.95,0.00,COMMERCIAL SUPPLIER 
 25-07-2023,Adults,Lodge Group Care UK Ltd,Home Care - Private Contractors Payment,900.57,0.00,COMMERCIAL SUPPLIER 
 25-07-2023,Adults,Lodge Group Care UK Ltd,Home Care - Private Contractors Payment,750.59,0.00,COMMERCIAL SUPPLIER 
 25-07-2023,Adults,Lodge Group Care UK Ltd,Home Care - Private Contractors Payment,920.59,0.00,COMMERCIAL SUPPLIER 
 25-07-2023,Adults,Lodge Group Care UK Ltd,Home Care - Private Contractors Payment,1249.66,0.00,COMMERCIAL SUPPLIER 
 25-07-2023,Adults,Lodge Group Care UK Ltd,Home Care - Private Contractors Payment,1253.66,0.00,COMMERCIAL SUPPLIER 
 25-07-2023,Adults,Lodge Group Care UK Ltd,Home Care - Private Contractors Payment,611.54,0.00,COMMERCIAL SUPPLIER 
 25-07-2023,Adults,Lodge Group Care UK Ltd,Home Care - Private Contractors Payment,2211.00,0.00,COMMERCIAL SUPPLIER 
 25-07-2023,Adults,Lodge Group Care UK Ltd,Home Care - Private Contractors Payment,956.99,0.00,COMMERCIAL SUPPLIER 
 25-07-2023,Adults,Lodge Group Care UK Ltd,Home Care - Private Contractors Payment,915.13,0.00,COMMERCIAL SUPPLIER 
 25-07-2023,Adults,Lodge Group Care UK Ltd,Home Care - Private Contractors Payment,926.05,0.00,COMMERCIAL SUPPLIER 
 25-07-2023,Adults,Lodge Group Care UK Ltd,Home Care - Private Contractors Payment,726.21,0.00,COMMERCIAL SUPPLIER 
 25-07-2023,Adults,Lodge Group Care UK Ltd,Home Care - Private Contractors Payment,940.61,0.00,COMMERCIAL SUPPLIER 
 25-07-2023,Adults,Lodge Group Care UK Ltd,Home Care - Private Contractors Payment,969.73,0.00,COMMERCIAL SUPPLIER 
 25-07-2023,Adults,Lodge Group Care UK Ltd,Home Care - Private Contractors Payment,973.73,0.00,COMMERCIAL SUPPLIER 
 25-07-2023,Adults,Lodge Group Care UK Ltd,Home Care - Private Contractors Payment,1366.86,0.00,COMMERCIAL SUPPLIER 
 25-07-2023,Adults,Lodge Group Care UK Ltd,Home Care - Private Contractors Payment,780.44,0.00,COMMERCIAL SUPPLIER 
 25-07-2023,Adults,Lodge Group Care UK Ltd,Home Care - Private Contractors Payment,1226.72,0.00,COMMERCIAL SUPPLIER 
 25-07-2023,Adults,Lodge Group Care UK Ltd,Home Care - Private Contractors Payment,1372.32,0.00,COMMERCIAL SUPPLIER 
 25-07-2023,Adults,Lodge Group Care UK Ltd,Home Care - Private Contractors Payment,906.39,0.00,COMMERCIAL SUPPLIER 
 25-07-2023,Adults,Cera Care Operations Ltd,Home Care - Private Contractors Payment,935.15,0.00,COMMERCIAL SUPPLIER 
 25-07-2023,Adults,Cera Care Operations Ltd,Home Care - Private Contractors Payment,1325.00,0.00,COMMERCIAL SUPPLIER 
 25-07-2023,Adults,Cera Care Operations Ltd,Home Care - Private Contractors Payment,864.90,0.00,COMMERCIAL SUPPLIER 
 25-07-2023,Adults,Cera Care Operations Ltd,Home Care - Private Contractors Payment,928.23,0.00,COMMERCIAL SUPPLIER 
 25-07-2023,Adults,Cera Care Operations Ltd,Home Care - Private Contractors Payment,1014.87,0.00,COMMERCIAL SUPPLIER 
 25-07-2023,Adults,Cera Care Operations Ltd,Home Care - Private Contractors Payment,618.82,0.00,COMMERCIAL SUPPLIER 
 25-07-2023,Adults,Cera Care Operations Ltd,Home Care - Private Contractors Payment,969.00,0.00,COMMERCIAL SUPPLIER 
 25-07-2023,Adults,Cera Care Operations Ltd,Home Care - Private Contractors Payment,1245.29,0.00,COMMERCIAL SUPPLIER 
 25-07-2023,Adults,Cera Care Operations Ltd,Home Care - Private Contractors Payment,1256.21,0.00,COMMERCIAL SUPPLIER 
 25-07-2023,Adults,Cera Care Operations Ltd,Home Care - Private Contractors Payment,611.54,0.00,COMMERCIAL SUPPLIER 
 25-07-2023,Adults,Cera Care Operations Ltd,Home Care - Private Contractors Payment,612.27,0.00,COMMERCIAL SUPPLIER 
 25-07-2023,Adults,Cera Care Operations Ltd,Home Care - Private Contractors Payment,1281.69,0.00,COMMERCIAL SUPPLIER 
 25-07-2023,Adults,Cera Care Operations Ltd,Home Care - Private Contractors Payment,1031.25,0.00,COMMERCIAL SUPPLIER 
 25-07-2023,Adults,Cera Care Operations Ltd,Home Care - Private Contractors Payment,611.54,0.00,COMMERCIAL SUPPLIER 
 25-07-2023,Adults,Cera Care Operations Ltd,Home Care - Private Contractors Payment,852.88,0.00,COMMERCIAL SUPPLIER 
 25-07-2023,Adults,Cera Care Operations Ltd,Home Care - Private Contractors Payment,611.91,0.00,COMMERCIAL SUPPLIER 
 25-07-2023,Adults,Cera Care Operations Ltd,Home Care - Private Contractors Payment,696.72,0.00,COMMERCIAL SUPPLIER 
 25-07-2023,Adults,Cera Care Operations Ltd,Home Care - Private Contractors Payment,699.27,0.00,COMMERCIAL SUPPLIER 
 25-07-2023,Adults,Cera Care Operations Ltd,Home Care - Private Contractors Payment,911.49,0.00,COMMERCIAL SUPPLIER 
 25-07-2023,Adults,Cera Care Operations Ltd,Home Care - Private Contractors Payment,940.24,0.00,COMMERCIAL SUPPLIER 
 25-07-2023,Adults,Cera Care Operations Ltd,Home Care - Private Contractors Payment,776.80,0.00,COMMERCIAL SUPPLIER 
 25-07-2023,Adults,Cera Care Operations Ltd,Home Care - Private Contractors Payment,1304.62,0.00,COMMERCIAL SUPPLIER 
 25-07-2023,Adults,Cera Care Operations Ltd,Home Care - Private Contractors Payment,888.92,0.00,COMMERCIAL SUPPLIER 
 25-07-2023,Adults,Cera Care Operations Ltd,Home Care - Private Contractors Payment,1493.90,0.00,COMMERCIAL SUPPLIER 
 25-07-2023,Adults,Cera Care Operations Ltd,Home Care - Private Contractors Payment,1446.94,0.00,COMMERCIAL SUPPLIER 
 25-07-2023,Adults,Cera Care Operations Ltd,Home Care - Private Contractors Payment,649.03,0.00,COMMERCIAL SUPPLIER 
 25-07-2023,Adults,Cera Care Operations Ltd,Home Care - Private Contractors Payment,803.01,0.00,COMMERCIAL SUPPLIER 
 25-07-2023,Adults,Cera Care Operations Ltd,Home Care - Private Contractors Payment,809.20,0.00,COMMERCIAL SUPPLIER 
 25-07-2023,Adults,Cera Care Operations Ltd,Home Care - Private Contractors Payment,971.92,0.00,COMMERCIAL SUPPLIER 
 25-07-2023,Adults,Cera Care Operations Ltd,Home Care - Private Contractors Payment,565.67,0.00,COMMERCIAL SUPPLIER 
 25-07-2023,Adults,Cera Care Operations Ltd,Home Care - Private Contractors Payment,1234.37,0.00,COMMERCIAL SUPPLIER 
 25-07-2023,Adults,Cera Care Operations Ltd,Home Care - Private Contractors Payment,1241.28,0.00,COMMERCIAL SUPPLIER 
 25-07-2023,Adults,Cera Care Operations Ltd,Home Care - Private Contractors Payment,728.75,0.00,COMMERCIAL SUPPLIER 
 25-07-2023,Adults,Cera Care Operations Ltd,Home Care - Private Contractors Payment,663.23,0.00,COMMERCIAL SUPPLIER 
 25-07-2023,Adults,Cera Care Operations Ltd,Home Care - Private Contractors Payment,529.64,0.00,COMMERCIAL SUPPLIER 
 25-07-2023,Adults,Cera Care Operations Ltd,Home Care - Private Contractors Payment,1216.89,0.00,COMMERCIAL SUPPLIER 
 25-07-2023,Adults,Cera Care Operations Ltd,Home Care - Private Contractors Payment,6572.80,0.00,COMMERCIAL SUPPLIER 
 25-07-2023,Adults,Cera Care Operations Ltd,Home Care - Private Contractors Payment,933.33,0.00,COMMERCIAL SUPPLIER 
 25-07-2023,Adults,Cera Care Operations Ltd,Home Care - Private Contractors Payment,1361.41,0.00,COMMERCIAL SUPPLIER 
 25-07-2023,Adults,Cera Care Operations Ltd,Home Care - Private Contractors Payment,1271.13,0.00,COMMERCIAL SUPPLIER 
 25-07-2023,Adults,Cera Care Operations Ltd,Home Care - Private Contractors Payment,923.87,0.00,COMMERCIAL SUPPLIER 
 25-07-2023,Adults,Cera Care Operations Ltd,Home Care - Private Contractors Payment,892.54,0.00,COMMERCIAL SUPPLIER 
 25-07-2023,Adults,Cera Care Operations Ltd,Home Care - Private Contractors Payment,946.07,0.00,COMMERCIAL SUPPLIER 
 25-07-2023,Adults,Cera Care Operations Ltd,Home Care - Private Contractors Payment,833.95,0.00,COMMERCIAL SUPPLIER 
 25-07-2023,Adults,Cera Care Operations Ltd,Home Care - Private Contractors Payment,1003.22,0.00,COMMERCIAL SUPPLIER 
 25-07-2023,Adults,Cera Care Operations Ltd,Home Care - Private Contractors Payment,923.14,0.00,COMMERCIAL SUPPLIER 
 25-07-2023,Adults,Cera Care Operations Ltd,Home Care - Private Contractors Payment,1319.18,0.00,COMMERCIAL SUPPLIER 
 25-07-2023,Adults,Home Sweet Home Care Ltd,Home Care - Private Contractors Payment,728.75,0.00,COMMERCIAL SUPPLIER 
 25-07-2023,Adults,Home Sweet Home Care Ltd,Home Care - Private Contractors Payment,611.54,0.00,COMMERCIAL SUPPLIER 
 25-07-2023,Adults,Home Sweet Home Care Ltd,Home Care - Private Contractors Payment,1180.86,0.00,COMMERCIAL SUPPLIER 
 25-07-2023,Adults,Home Sweet Home Care Ltd,Home Care - Private Contractors Payment,600.62,0.00,COMMERCIAL SUPPLIER 
 25-07-2023,Adults,Home Sweet Home Care Ltd,Home Care - Private Contractors Payment,808.11,0.00,COMMERCIAL SUPPLIER 
 25-07-2023,Adults,Home Sweet Home Care Ltd,Home Care - Private Contractors Payment,808.11,0.00,COMMERCIAL SUPPLIER 
 25-07-2023,Adults,Home Sweet Home Care Ltd,Home Care - Private Contractors Payment,1223.45,0.00,COMMERCIAL SUPPLIER 
 25-07-2023,Adults,Home Sweet Home Care Ltd,Home Care - Private Contractors Payment,3374.29,0.00,COMMERCIAL SUPPLIER 
 25-07-2023,Adults,Home Sweet Home Care Ltd,Home Care - Private Contractors Payment,596.25,0.00,COMMERCIAL SUPPLIER 
 25-07-2023,Adults,Home Sweet Home Care Ltd,Home Care - Private Contractors Payment,1369.41,0.00,COMMERCIAL SUPPLIER 
 25-07-2023,Adults,Home Sweet Home Care Ltd,Home Care - Private Contractors Payment,2076.30,0.00,COMMERCIAL SUPPLIER 
 25-07-2023,Adults,Home Sweet Home Care Ltd,Home Care - Private Contractors Payment,911.12,0.00,COMMERCIAL SUPPLIER 
 25-07-2023,Adults,Home Sweet Home Care Ltd,Home Care - Private Contractors Payment,2001.31,0.00,COMMERCIAL SUPPLIER 
 25-07-2023,Adults,Home Sweet Home Care Ltd,Home Care - Private Contractors Payment,1224.90,0.00,COMMERCIAL SUPPLIER 
 25-07-2023,Adults,Home Sweet Home Care Ltd,Home Care - Private Contractors Payment,1229.27,0.00,COMMERCIAL SUPPLIER 
 25-07-2023,Adults,Home Sweet Home Care Ltd,Home Care - Private Contractors Payment,524.18,0.00,COMMERCIAL SUPPLIER 
 25-07-2023,Adults,Home Sweet Home Care Ltd,Home Care - Private Contractors Payment,724.38,0.00,COMMERCIAL SUPPLIER 
 25-07-2023,Adults,Home Sweet Home Care Ltd,Home Care - Private Contractors Payment,1223.81,0.00,COMMERCIAL SUPPLIER 
 25-07-2023,Adults,Home Sweet Home Care Ltd,Home Care - Private Contractors Payment,1219.44,0.00,COMMERCIAL SUPPLIER 
 25-07-2023,Adults,Home Sweet Home Care Ltd,Home Care - Private Contractors Payment,1382.15,0.00,COMMERCIAL SUPPLIER 
 25-07-2023,Adults,Home Sweet Home Care Ltd,Home Care - Private Contractors Payment,1219.81,0.00,COMMERCIAL SUPPLIER 
 25-07-2023,Adults,Home Sweet Home Care Ltd,Home Care - Private Contractors Payment,1237.64,0.00,COMMERCIAL SUPPLIER 
 25-07-2023,Adults,Home Sweet Home Care Ltd,Home Care - Private Contractors Payment,580.24,0.00,COMMERCIAL SUPPLIER 
 25-07-2023,Adults,Home Sweet Home Care Ltd,Home Care - Private Contractors Payment,795.00,0.00,COMMERCIAL SUPPLIER 
 25-07-2023,Adults,Home Sweet Home Care Ltd,Home Care - Private Contractors Payment,1062.55,0.00,COMMERCIAL SUPPLIER 
 25-07-2023,Adults,Home Sweet Home Care Ltd,Home Care - Private Contractors Payment,1243.10,0.00,COMMERCIAL SUPPLIER 
 25-07-2023,Adults,Home Sweet Home Care Ltd,Home Care - Private Contractors Payment,631.20,0.00,COMMERCIAL SUPPLIER 
 25-07-2023,Adults,Home Sweet Home Care Ltd,Home Care - Private Contractors Payment,1243.83,0.00,COMMERCIAL SUPPLIER 
 25-07-2023,Adults,Home Sweet Home Care Ltd,Home Care - Private Contractors Payment,1236.92,0.00,COMMERCIAL SUPPLIER 
 25-07-2023,Adults,Home Sweet Home Care Ltd,Home Care - Private Contractors Payment,1213.62,0.00,COMMERCIAL SUPPLIER 
 25-07-2023,Adults,Home Sweet Home Care Ltd,Home Care - Private Contractors Payment,812.11,0.00,COMMERCIAL SUPPLIER 
 25-07-2023,Adults,Home Sweet Home Care Ltd,Home Care - Private Contractors Payment,1251.48,0.00,COMMERCIAL SUPPLIER 
 25-07-2023,Adults,Home Sweet Home Care Ltd,Home Care - Private Contractors Payment,1251.84,0.00,COMMERCIAL SUPPLIER 
 25-07-2023,Adults,Home Sweet Home Care Ltd,Home Care - Private Contractors Payment,1213.62,0.00,COMMERCIAL SUPPLIER 
 25-07-2023,Adults,Home Sweet Home Care Ltd,Home Care - Private Contractors Payment,890.74,0.00,COMMERCIAL SUPPLIER 
 25-07-2023,Adults,Home Sweet Home Care Ltd,Home Care - Private Contractors Payment,567.86,0.00,COMMERCIAL SUPPLIER 
 25-07-2023,Adults,Home Sweet Home Care Ltd,Home Care - Private Contractors Payment,1230.36,0.00,COMMERCIAL SUPPLIER 
 25-07-2023,Adults,Home Sweet Home Care Ltd,Home Care - Private Contractors Payment,1314.08,0.00,COMMERCIAL SUPPLIER 
 25-07-2023,Adults,Home Sweet Home Care Ltd,Home Care - Private Contractors Payment,1193.96,0.00,COMMERCIAL SUPPLIER 
 25-07-2023,Adults,Home Sweet Home Care Ltd,Home Care - Private Contractors Payment,1193.96,0.00,COMMERCIAL SUPPLIER 
 25-07-2023,Adults,Home Sweet Home Care Ltd,Home Care - Private Contractors Payment,721.84,0.00,COMMERCIAL SUPPLIER 
 25-07-2023,Adults,Home Sweet Home Care Ltd,Home Care - Private Contractors Payment,953.35,0.00,COMMERCIAL SUPPLIER 
 25-07-2023,Adults,Home Sweet Home Care Ltd,Home Care - Private Contractors Payment,3619.48,0.00,COMMERCIAL SUPPLIER 
 25-07-2023,Adults,Home Sweet Home Care Ltd,Home Care - Private Contractors Payment,1023.97,0.00,COMMERCIAL SUPPLIER 
 25-07-2023,Adults,Home Sweet Home Care Ltd,Home Care - Private Contractors Payment,613.00,0.00,COMMERCIAL SUPPLIER 
 25-07-2023,Adults,Home Sweet Home Care Ltd,Home Care - Private Contractors Payment,1228.54,0.00,COMMERCIAL SUPPLIER 
 25-07-2023,Adults,Home Sweet Home Care Ltd,Home Care - Private Contractors Payment,1266.40,0.00,COMMERCIAL SUPPLIER 
 25-07-2023,Adults,Home Sweet Home Care Ltd,Home Care - Private Contractors Payment,1283.87,0.00,COMMERCIAL SUPPLIER 
 25-07-2023,Adults,Home Sweet Home Care Ltd,Home Care - Private Contractors Payment,718.56,0.00,COMMERCIAL SUPPLIER 
 25-07-2023,Adults,Home Sweet Home Care Ltd,Home Care - Private Contractors Payment,611.54,0.00,COMMERCIAL SUPPLIER 
 25-07-2023,Adults,Home Sweet Home Care Ltd,Home Care - Private Contractors Payment,754.59,0.00,COMMERCIAL SUPPLIER 
 25-07-2023,Adults,Home Sweet Home Care Ltd,Home Care - Private Contractors Payment,558.40,0.00,COMMERCIAL SUPPLIER 
 25-07-2023,Adults,Home Sweet Home Care Ltd,Home Care - Private Contractors Payment,1238.01,0.00,COMMERCIAL SUPPLIER 
 25-07-2023,Adults,Home Sweet Home Care Ltd,Home Care - Private Contractors Payment,793.54,0.00,COMMERCIAL SUPPLIER 
 25-07-2023,Adults,Home Sweet Home Care Ltd,Home Care - Private Contractors Payment,584.61,0.00,COMMERCIAL SUPPLIER 
 25-07-2023,Adults,Home Sweet Home Care Ltd,Home Care - Private Contractors Payment,943.16,0.00,COMMERCIAL SUPPLIER 
 25-07-2023,Adults,Home Sweet Home Care Ltd,Home Care - Private Contractors Payment,647.94,0.00,COMMERCIAL SUPPLIER 
 25-07-2023,Adults,Home Sweet Home Care Ltd,Home Care - Private Contractors Payment,934.79,0.00,COMMERCIAL SUPPLIER 
 25-07-2023,Adults,Home Sweet Home Care Ltd,Home Care - Private Contractors Payment,620.28,0.00,COMMERCIAL SUPPLIER 
 25-07-2023,Adults,Home Sweet Home Care Ltd,Home Care - Private Contractors Payment,598.07,0.00,COMMERCIAL SUPPLIER 
 25-07-2023,Adults,Home Sweet Home Care Ltd,Home Care - Private Contractors Payment,1242.38,0.00,COMMERCIAL SUPPLIER 
 25-07-2023,Adults,Home Sweet Home Care Ltd,Home Care - Private Contractors Payment,1310.81,0.00,COMMERCIAL SUPPLIER 
 25-07-2023,Adults,Home Sweet Home Care Ltd,Home Care - Private Contractors Payment,917.31,0.00,COMMERCIAL SUPPLIER 
 25-07-2023,Adults,Home Sweet Home Care Ltd,Home Care - Private Contractors Payment,775.35,0.00,COMMERCIAL SUPPLIER 
 25-07-2023,Adults,Home Sweet Home Care Ltd,Home Care - Private Contractors Payment,950.07,0.00,COMMERCIAL SUPPLIER 
 25-07-2023,Adults,Home Sweet Home Care Ltd,Home Care - Private Contractors Payment,968.27,0.00,COMMERCIAL SUPPLIER 
 25-07-2023,Adults,Home Sweet Home Care Ltd,Home Care - Private Contractors Payment,1113.88,0.00,COMMERCIAL SUPPLIER 
 25-07-2023,Adults,Home Sweet Home Care Ltd,Home Care - Private Contractors Payment,549.30,0.00,COMMERCIAL SUPPLIER 
 25-07-2023,Adults,Home Sweet Home Care Ltd,Home Care - Private Contractors Payment,906.39,0.00,COMMERCIAL SUPPLIER 
 25-07-2023,Adults,Home Sweet Home Care Ltd,Home Care - Private Contractors Payment,985.02,0.00,COMMERCIAL SUPPLIER 
 25-07-2023,Adults,Home Sweet Home Care Ltd,Home Care - Private Contractors Payment,957.35,0.00,COMMERCIAL SUPPLIER 
 25-07-2023,Adults,Home Sweet Home Care Ltd,Home Care - Private Contractors Payment,958.81,0.00,COMMERCIAL SUPPLIER 
 25-07-2023,Adults,Home Sweet Home Care Ltd,Home Care - Private Contractors Payment,1226.72,0.00,COMMERCIAL SUPPLIER 
 25-07-2023,Adults,Home Sweet Home Care Ltd,Home Care - Private Contractors Payment,1227.45,0.00,COMMERCIAL SUPPLIER 
 25-07-2023,Adults,Home Sweet Home Care Ltd,Home Care - Private Contractors Payment,829.95,0.00,COMMERCIAL SUPPLIER 
 25-07-2023,Adults,Home Sweet Home Care Ltd,Home Care - Private Contractors Payment,620.28,0.00,COMMERCIAL SUPPLIER 
 25-07-2023,Adults,Home Sweet Home Care Ltd,Home Care - Private Contractors Payment,748.77,0.00,COMMERCIAL SUPPLIER 
 25-07-2023,Adults,Home Sweet Home Care Ltd,Home Care - Private Contractors Payment,1175.40,0.00,COMMERCIAL SUPPLIER 
 25-07-2023,Adults,Home Sweet Home Care Ltd,Home Care - Private Contractors Payment,611.54,0.00,COMMERCIAL SUPPLIER 
 25-07-2023,Adults,Home Sweet Home Care Ltd,Home Care - Private Contractors Payment,611.54,0.00,COMMERCIAL SUPPLIER 
 25-07-2023,Adults,Home Sweet Home Care Ltd,Home Care - Private Contractors Payment,642.48,0.00,COMMERCIAL SUPPLIER 
 25-07-2023,Adults,Home Sweet Home Care Ltd,Home Care - Private Contractors Payment,1227.80,0.00,COMMERCIAL SUPPLIER 
 25-07-2023,Adults,Home Sweet Home Care Ltd,Home Care - Private Contractors Payment,1228.17,0.00,COMMERCIAL SUPPLIER 
 25-07-2023,Adults,Home Sweet Home Care Ltd,Home Care - Private Contractors Payment,665.41,0.00,COMMERCIAL SUPPLIER 
 25-07-2023,Adults,Home Sweet Home Care Ltd,Home Care - Private Contractors Payment,1250.75,0.00,COMMERCIAL SUPPLIER 
 25-07-2023,Adults,Home Sweet Home Care Ltd,Home Care - Private Contractors Payment,1260.21,0.00,COMMERCIAL SUPPLIER 
 25-07-2023,Adults,Home Sweet Home Care Ltd,Home Care - Private Contractors Payment,600.62,0.00,COMMERCIAL SUPPLIER 
 25-07-2023,Adults,Home Sweet Home Care Ltd,Home Care - Private Contractors Payment,942.79,0.00,COMMERCIAL SUPPLIER 
 25-07-2023,Adults,Home Sweet Home Care Ltd,Home Care - Private Contractors Payment,956.26,0.00,COMMERCIAL SUPPLIER 
 25-07-2023,Adults,Home Sweet Home Care Ltd,Home Care - Private Contractors Payment,687.62,0.00,COMMERCIAL SUPPLIER 
 25-07-2023,Adults,Home Sweet Home Care Ltd,Home Care - Private Contractors Payment,1224.90,0.00,COMMERCIAL SUPPLIER 
 25-07-2023,Adults,Home Sweet Home Care Ltd,Home Care - Private Contractors Payment,1225.27,0.00,COMMERCIAL SUPPLIER 
 25-07-2023,Adults,Home Sweet Home Care Ltd,Home Care - Private Contractors Payment,679.97,0.00,COMMERCIAL SUPPLIER 
 25-07-2023,Adults,Home Sweet Home Care Ltd,Home Care - Private Contractors Payment,1342.10,0.00,COMMERCIAL SUPPLIER 
 25-07-2023,Adults,Home Sweet Home Care Ltd,Home Care - Private Contractors Payment,1223.45,0.00,COMMERCIAL SUPPLIER 
 25-07-2023,Adults,Home Sweet Home Care Ltd,Home Care - Private Contractors Payment,661.77,0.00,COMMERCIAL SUPPLIER 
 25-07-2023,Adults,Home Sweet Home Care Ltd,Home Care - Private Contractors Payment,622.46,0.00,COMMERCIAL SUPPLIER 
 25-07-2023,Adults,Home Sweet Home Care Ltd,Home Care - Private Contractors Payment,1441.12,0.00,COMMERCIAL SUPPLIER 
 25-07-2023,Adults,Home Sweet Home Care Ltd,Home Care - Private Contractors Payment,600.62,0.00,COMMERCIAL SUPPLIER 
 25-07-2023,Adults,Home Sweet Home Care Ltd,Home Care - Private Contractors Payment,1258.76,0.00,COMMERCIAL SUPPLIER 
 25-07-2023,Adults,Home Sweet Home Care Ltd,Home Care - Private Contractors Payment,1279.87,0.00,COMMERCIAL SUPPLIER 
 25-07-2023,Adults,Home Sweet Home Care Ltd,Home Care - Private Contractors Payment,1238.01,0.00,COMMERCIAL SUPPLIER 
 25-07-2023,Adults,Home Sweet Home Care Ltd,Home Care - Private Contractors Payment,1249.29,0.00,COMMERCIAL SUPPLIER 
 25-07-2023,Adults,Home Sweet Home Care Ltd,Home Care - Private Contractors Payment,1227.82,0.00,COMMERCIAL SUPPLIER 
 25-07-2023,Adults,Inna Care Ltd,Home Care - Private Contractors Payment,764.42,0.00,COMMERCIAL SUPPLIER 
 25-07-2023,Adults,Inna Care Ltd,Home Care - Private Contractors Payment,611.53,0.00,COMMERCIAL SUPPLIER 
 25-07-2023,Adults,Inna Care Ltd,Home Care - Private Contractors Payment,611.54,0.00,COMMERCIAL SUPPLIER 
 25-07-2023,Adults,Inna Care Ltd,Home Care - Private Contractors Payment,1004.68,0.00,COMMERCIAL SUPPLIER 
 25-07-2023,Adults,Inna Care Ltd,Home Care - Private Contractors Payment,1223.08,0.00,COMMERCIAL SUPPLIER 
 25-07-2023,Adults,Inna Care Ltd,Home Care - Private Contractors Payment,1223.08,0.00,COMMERCIAL SUPPLIER 
 25-07-2023,Adults,Inna Care Ltd,Home Care - Private Contractors Payment,578.78,0.00,COMMERCIAL SUPPLIER 
 25-07-2023,Adults,Inna Care Ltd,Home Care - Private Contractors Payment,1223.06,0.00,COMMERCIAL SUPPLIER 
 25-07-2023,Adults,Inna Care Ltd,Home Care - Private Contractors Payment,611.54,0.00,COMMERCIAL SUPPLIER 
 25-07-2023,Adults,Inna Care Ltd,Home Care - Private Contractors Payment,917.31,0.00,COMMERCIAL SUPPLIER 
 25-07-2023,Adults,Inna Care Ltd,Home Care - Private Contractors Payment,524.18,0.00,COMMERCIAL SUPPLIER 
 25-07-2023,Adults,Inna Care Ltd,Home Care - Private Contractors Payment,2446.12,0.00,COMMERCIAL SUPPLIER 
 25-07-2023,Adults,Inna Care Ltd,Home Care - Private Contractors Payment,2446.12,0.00,COMMERCIAL SUPPLIER 
 25-07-2023,Adults,Inna Care Ltd,Home Care - Private Contractors Payment,1157.55,0.00,COMMERCIAL SUPPLIER 
 25-07-2023,Adults,Inna Care Ltd,Home Care - Private Contractors Payment,1157.55,0.00,COMMERCIAL SUPPLIER 
 25-07-2023,Adults,Inna Care Ltd,Home Care - Private Contractors Payment,611.54,0.00,COMMERCIAL SUPPLIER 
 25-07-2023,Adults,Inna Care Ltd,Home Care - Private Contractors Payment,917.31,0.00,COMMERCIAL SUPPLIER 
 25-07-2023,Adults,Inna Care Ltd,Home Care - Private Contractors Payment,917.31,0.00,COMMERCIAL SUPPLIER 
 25-07-2023,Adults,Inna Care Ltd,Home Care - Private Contractors Payment,611.54,0.00,COMMERCIAL SUPPLIER 
 25-07-2023,Adults,Inna Care Ltd,Home Care - Private Contractors Payment,1179.40,0.00,COMMERCIAL SUPPLIER 
 26-07-2023,Adults,Anytime Care 2020_a,Home Care - Private Contractors Payment,939.15,0.00,COMMERCIAL SUPPLIER 
 26-07-2023,Adults,Anytime Care 2020_a,Home Care - Private Contractors Payment,1163.02,0.00,COMMERCIAL SUPPLIER 
 26-07-2023,Adults,Anytime Care 2020_a,Home Care - Private Contractors Payment,1157.56,0.00,COMMERCIAL SUPPLIER 
 26-07-2023,Adults,Anytime Care 2020_a,Home Care - Private Contractors Payment,1161.20,0.00,COMMERCIAL SUPPLIER 
 26-07-2023,Adults,Anytime Care 2020_a,Home Care - Private Contractors Payment,567.50,0.00,COMMERCIAL SUPPLIER 
 26-07-2023,Adults,Anytime Care 2020_a,Home Care - Private Contractors Payment,604.99,0.00,COMMERCIAL SUPPLIER 
 26-07-2023,Adults,Anytime Care 2020_a,Home Care - Private Contractors Payment,558.03,0.00,COMMERCIAL SUPPLIER 
 26-07-2023,Adults,Anytime Care 2020_a,Home Care - Private Contractors Payment,558.03,0.00,COMMERCIAL SUPPLIER 
 26-07-2023,Adults,Anytime Care 2020_a,Home Care - Private Contractors Payment,614.82,0.00,COMMERCIAL SUPPLIER 
 26-07-2023,Adults,Anytime Care 2020_a,Home Care - Private Contractors Payment,1206.34,0.00,COMMERCIAL SUPPLIER 
 26-07-2023,Adults,Anytime Care 2020_a,Home Care - Private Contractors Payment,741.84,0.00,COMMERCIAL SUPPLIER 
 26-07-2023,Adults,Anytime Care 2020_a,Home Care - Private Contractors Payment,631.56,0.00,COMMERCIAL SUPPLIER 
 26-07-2023,Adults,Anytime Care 2020_a,Home Care - Private Contractors Payment,968.64,0.00,COMMERCIAL SUPPLIER 
 26-07-2023,Adults,Anytime Care 2020_a,Home Care - Private Contractors Payment,1223.45,0.00,COMMERCIAL SUPPLIER 
 26-07-2023,Adults,Anytime Care 2020_a,Home Care - Private Contractors Payment,1225.27,0.00,COMMERCIAL SUPPLIER 
 26-07-2023,Adults,Anytime Care 2020_a,Home Care - Private Contractors Payment,1233.64,0.00,COMMERCIAL SUPPLIER 
 26-07-2023,Adults,Anytime Care 2020_a,Home Care - Private Contractors Payment,1326.10,0.00,COMMERCIAL SUPPLIER 
 26-07-2023,Adults,Anytime Care 2020_a,Home Care - Private Contractors Payment,742.95,0.00,COMMERCIAL SUPPLIER 
 26-07-2023,Adults,Anytime Care 2020_a,Home Care - Private Contractors Payment,745.50,0.00,COMMERCIAL SUPPLIER 
 26-07-2023,Adults,Anytime Care 2020_a,Home Care - Private Contractors Payment,537.65,0.00,COMMERCIAL SUPPLIER 
 26-07-2023,Adults,Anytime Care 2020_a,Home Care - Private Contractors Payment,541.65,0.00,COMMERCIAL SUPPLIER 
 26-07-2023,Adults,Anytime Care 2020_a,Home Care - Private Contractors Payment,1235.10,0.00,COMMERCIAL SUPPLIER 
 26-07-2023,Adults,Anytime Care 2020_a,Home Care - Private Contractors Payment,1298.43,0.00,COMMERCIAL SUPPLIER 
 26-07-2023,Adults,Anytime Care 2020_a,Home Care - Private Contractors Payment,1409.09,0.00,COMMERCIAL SUPPLIER 
 26-07-2023,Adults,Anytime Care 2020_a,Home Care - Private Contractors Payment,623.19,0.00,COMMERCIAL SUPPLIER 
 26-07-2023,Adults,Anytime Care 2020_a,Home Care - Private Contractors Payment,669.78,0.00,COMMERCIAL SUPPLIER 
 26-07-2023,Adults,Anytime Care 2020_a,Home Care - Private Contractors Payment,953.35,0.00,COMMERCIAL SUPPLIER 
 26-07-2023,Adults,Anytime Care 2020_a,Home Care - Private Contractors Payment,665.05,0.00,COMMERCIAL SUPPLIER 
 26-07-2023,Adults,Anytime Care 2020_a,Home Care - Private Contractors Payment,655.22,0.00,COMMERCIAL SUPPLIER 
 26-07-2023,Adults,Anytime Care 2020_a,Home Care - Private Contractors Payment,570.04,0.00,COMMERCIAL SUPPLIER 
 26-07-2023,Adults,Homestead Care Service,Home Care - Private Contractors Payment,723.29,0.00,COMMERCIAL SUPPLIER 
 26-07-2023,Adults,Homestead Care Service,Home Care - Private Contractors Payment,1140.45,0.00,COMMERCIAL SUPPLIER 
 26-07-2023,Adults,Homestead Care Service,Home Care - Private Contractors Payment,1142.64,0.00,COMMERCIAL SUPPLIER 
 26-07-2023,Adults,Homestead Care Service,Home Care - Private Contractors Payment,596.25,0.00,COMMERCIAL SUPPLIER 
 26-07-2023,Adults,Homestead Care Service,Home Care - Private Contractors Payment,596.62,0.00,COMMERCIAL SUPPLIER 
 26-07-2023,Adults,Homestead Care Service,Home Care - Private Contractors Payment,699.63,0.00,COMMERCIAL SUPPLIER 
 26-07-2023,Adults,Homestead Care Service,Home Care - Private Contractors Payment,1174.31,0.00,COMMERCIAL SUPPLIER 
 26-07-2023,Adults,Homestead Care Service,Home Care - Private Contractors Payment,1174.67,0.00,COMMERCIAL SUPPLIER 
 26-07-2023,Adults,Homestead Care Service,Home Care - Private Contractors Payment,1207.07,0.00,COMMERCIAL SUPPLIER 
 26-07-2023,Adults,Homestead Care Service,Home Care - Private Contractors Payment,1227.45,0.00,COMMERCIAL SUPPLIER 
 26-07-2023,Adults,Homestead Care Service,Home Care - Private Contractors Payment,949.71,0.00,COMMERCIAL SUPPLIER 
 26-07-2023,Adults,Homestead Care Service,Home Care - Private Contractors Payment,1564.53,0.00,COMMERCIAL SUPPLIER 
 26-07-2023,Adults,Homestead Care Service,Home Care - Private Contractors Payment,775.35,0.00,COMMERCIAL SUPPLIER 
 26-07-2023,Adults,Homestead Care Service,Home Care - Private Contractors Payment,987.19,0.00,COMMERCIAL SUPPLIER 
 26-07-2023,Adults,Homestead Care Service,Home Care - Private Contractors Payment,1143.73,0.00,COMMERCIAL SUPPLIER 
 26-07-2023,Adults,Homestead Care Service,Home Care - Private Contractors Payment,1188.50,0.00,COMMERCIAL SUPPLIER 
 26-07-2023,Adults,Homestead Care Service,Home Care - Private Contractors Payment,1243.47,0.00,COMMERCIAL SUPPLIER 
 26-07-2023,Adults,Homestead Care Service,Home Care - Private Contractors Payment,918.04,0.00,COMMERCIAL SUPPLIER 
 26-07-2023,Adults,Homestead Care Service,Home Care - Private Contractors Payment,1201.24,0.00,COMMERCIAL SUPPLIER 
 26-07-2023,Adults,Homestead Care Service,Home Care - Private Contractors Payment,1223.08,0.00,COMMERCIAL SUPPLIER 
 26-07-2023,Adults,Homestead Care Service,Home Care - Private Contractors Payment,742.59,0.00,COMMERCIAL SUPPLIER 
 26-07-2023,Adults,Homestead Care Service,Home Care - Private Contractors Payment,1077.48,0.00,COMMERCIAL SUPPLIER 
 26-07-2023,Adults,Homestead Care Service,Home Care - Private Contractors Payment,567.50,0.00,COMMERCIAL SUPPLIER 
 26-07-2023,Adults,Homestead Care Service,Home Care - Private Contractors Payment,567.86,0.00,COMMERCIAL SUPPLIER 
 26-07-2023,Adults,Homestead Care Service,Home Care - Private Contractors Payment,1207.43,0.00,COMMERCIAL SUPPLIER 
 26-07-2023,Adults,Homestead Care Service,Home Care - Private Contractors Payment,664.69,0.00,COMMERCIAL SUPPLIER 
 26-07-2023,Adults,Homestead Care Service,Home Care - Private Contractors Payment,879.09,0.00,COMMERCIAL SUPPLIER 
 26-07-2023,Adults,Homestead Care Service,Home Care - Private Contractors Payment,1233.28,0.00,COMMERCIAL SUPPLIER 
 26-07-2023,Adults,Homestead Care Service,Home Care - Private Contractors Payment,1453.87,0.00,COMMERCIAL SUPPLIER 
 26-07-2023,Adults,Homestead Care Service,Home Care - Private Contractors Payment,1018.50,0.00,COMMERCIAL SUPPLIER 
 26-07-2023,Adults,Homestead Care Service,Home Care - Private Contractors Payment,1026.51,0.00,COMMERCIAL SUPPLIER 
 26-07-2023,Adults,Homestead Care Service,Home Care - Private Contractors Payment,1286.42,0.00,COMMERCIAL SUPPLIER 
 26-07-2023,Adults,Homestead Care Service,Home Care - Private Contractors Payment,1212.16,0.00,COMMERCIAL SUPPLIER 
 26-07-2023,Adults,Homestead Care Service,Home Care - Private Contractors Payment,1229.27,0.00,COMMERCIAL SUPPLIER 
 26-07-2023,Adults,Homestead Care Service,Home Care - Private Contractors Payment,1227.82,0.00,COMMERCIAL SUPPLIER 
 26-07-2023,Adults,Homestead Care Service,Home Care - Private Contractors Payment,1311.53,0.00,COMMERCIAL SUPPLIER 
 26-07-2023,Adults,Homestead Care Service,Home Care - Private Contractors Payment,1116.42,0.00,COMMERCIAL SUPPLIER 
 26-07-2023,Adults,Homestead Care Service,Home Care - Private Contractors Payment,1250.02,0.00,COMMERCIAL SUPPLIER 
 26-07-2023,Adults,Homestead Care Service,Home Care - Private Contractors Payment,1250.75,0.00,COMMERCIAL SUPPLIER 
 26-07-2023,Adults,Homestead Care Service,Home Care - Private Contractors Payment,729.85,0.00,COMMERCIAL SUPPLIER 
 26-07-2023,Adults,Homestead Care Service,Home Care - Private Contractors Payment,757.87,0.00,COMMERCIAL SUPPLIER 
 26-07-2023,Adults,Homestead Care Service,Home Care - Private Contractors Payment,1222.72,0.00,COMMERCIAL SUPPLIER 
 26-07-2023,Adults,Homestead Care Service,Home Care - Private Contractors Payment,1261.67,0.00,COMMERCIAL SUPPLIER 
 26-07-2023,Adults,Homestead Care Service,Home Care - Private Contractors Payment,1279.14,0.00,COMMERCIAL SUPPLIER 
 26-07-2023,Adults,Homestead Care Service,Home Care - Private Contractors Payment,555.85,0.00,COMMERCIAL SUPPLIER 
 26-07-2023,Adults,Homestead Care Service,Home Care - Private Contractors Payment,1555.42,0.00,COMMERCIAL SUPPLIER 
 26-07-2023,Adults,Homestead Care Service,Home Care - Private Contractors Payment,1218.71,0.00,COMMERCIAL SUPPLIER 
 26-07-2023,Adults,Homestead Care Service,Home Care - Private Contractors Payment,1220.17,0.00,COMMERCIAL SUPPLIER 
 26-07-2023,Adults,Homestead Care Service,Home Care - Private Contractors Payment,939.88,0.00,COMMERCIAL SUPPLIER 
 26-07-2023,Adults,Homestead Care Service,Home Care - Private Contractors Payment,1190.32,0.00,COMMERCIAL SUPPLIER 
 26-07-2023,Adults,Homestead Care Service,Home Care - Private Contractors Payment,1217.26,0.00,COMMERCIAL SUPPLIER 
 26-07-2023,Adults,Homestead Care Service,Home Care - Private Contractors Payment,1086.58,0.00,COMMERCIAL SUPPLIER 
 26-07-2023,Adults,Homestead Care Service,Home Care - Private Contractors Payment,926.78,0.00,COMMERCIAL SUPPLIER 
 26-07-2023,Adults,Homestead Care Service,Home Care - Private Contractors Payment,1271.13,0.00,COMMERCIAL SUPPLIER 
 26-07-2023,Adults,Homestead Care Service,Home Care - Private Contractors Payment,1190.32,0.00,COMMERCIAL SUPPLIER 
 26-07-2023,Adults,Homestead Care Service,Home Care - Private Contractors Payment,987.20,0.00,COMMERCIAL SUPPLIER 
 26-07-2023,Adults,Homestead Care Service,Home Care - Private Contractors Payment,613.00,0.00,COMMERCIAL SUPPLIER 
 26-07-2023,Adults,Homestead Care Service,Home Care - Private Contractors Payment,1329.74,0.00,COMMERCIAL SUPPLIER 
 26-07-2023,Adults,Homestead Care Service,Home Care - Private Contractors Payment,1048.36,0.00,COMMERCIAL SUPPLIER 
 26-07-2023,Adults,Homestead Care Service,Home Care - Private Contractors Payment,1048.36,0.00,COMMERCIAL SUPPLIER 
 26-07-2023,Adults,Homestead Care Service,Home Care - Private Contractors Payment,1250.02,0.00,COMMERCIAL SUPPLIER 
 26-07-2023,Adults,Homestead Care Service,Home Care - Private Contractors Payment,1272.59,0.00,COMMERCIAL SUPPLIER 
 26-07-2023,Adults,Homestead Care Service,Home Care - Private Contractors Payment,745.14,0.00,COMMERCIAL SUPPLIER 
 26-07-2023,Adults,Homestead Care Service,Home Care - Private Contractors Payment,1333.38,0.00,COMMERCIAL SUPPLIER 
 26-07-2023,Adults,Homestead Care Service,Home Care - Private Contractors Payment,1308.99,0.00,COMMERCIAL SUPPLIER 
 26-07-2023,Adults,Homestead Care Service,Home Care - Private Contractors Payment,575.14,0.00,COMMERCIAL SUPPLIER 
 26-07-2023,Adults,Homestead Care Service,Home Care - Private Contractors Payment,576.23,0.00,COMMERCIAL SUPPLIER 
 26-07-2023,Adults,Homestead Care Service,Home Care - Private Contractors Payment,1299.89,0.00,COMMERCIAL SUPPLIER 
 26-07-2023,Adults,Homestead Care Service,Home Care - Private Contractors Payment,1302.80,0.00,COMMERCIAL SUPPLIER 
 26-07-2023,Adults,Homestead Care Service,Home Care - Private Contractors Payment,613.73,0.00,COMMERCIAL SUPPLIER 
 26-07-2023,Adults,Homestead Care Service,Home Care - Private Contractors Payment,506.34,0.00,COMMERCIAL SUPPLIER 
 26-07-2023,Adults,Homestead Care Service,Home Care - Private Contractors Payment,527.82,0.00,COMMERCIAL SUPPLIER 
 26-07-2023,Adults,Homestead Care Service,Home Care - Private Contractors Payment,570.04,0.00,COMMERCIAL SUPPLIER 
 26-07-2023,Adults,Homestead Care Service,Home Care - Private Contractors Payment,580.96,0.00,COMMERCIAL SUPPLIER 
 26-07-2023,Adults,Homestead Care Service,Home Care - Private Contractors Payment,617.73,0.00,COMMERCIAL SUPPLIER 
 26-07-2023,Adults,Homestead Care Service,Home Care - Private Contractors Payment,1049.07,0.00,COMMERCIAL SUPPLIER 
 26-07-2023,Adults,Homestead Care Service,Home Care - Private Contractors Payment,1378.49,0.00,COMMERCIAL SUPPLIER 
 26-07-2023,Adults,Homestead Care Service,Home Care - Private Contractors Payment,1204.51,0.00,COMMERCIAL SUPPLIER 
 26-07-2023,Adults,Homestead Care Service,Home Care - Private Contractors Payment,603.16,0.00,COMMERCIAL SUPPLIER 
 26-07-2023,Adults,Homestead Care Service,Home Care - Private Contractors Payment,1215.08,0.00,COMMERCIAL SUPPLIER 
 26-07-2023,Adults,Homestead Care Service,Home Care - Private Contractors Payment,1180.50,0.00,COMMERCIAL SUPPLIER 
 26-07-2023,Adults,Homestead Care Service,Home Care - Private Contractors Payment,1333.01,0.00,COMMERCIAL SUPPLIER 
 26-07-2023,Adults,Homestead Care Service,Home Care - Private Contractors Payment,1376.69,0.00,COMMERCIAL SUPPLIER 
 26-07-2023,Adults,Homestead Care Service,Home Care - Private Contractors Payment,774.62,0.00,COMMERCIAL SUPPLIER 
 26-07-2023,Adults,Homestead Care Service,Home Care - Private Contractors Payment,783.72,0.00,COMMERCIAL SUPPLIER 
 26-07-2023,Adults,Homestead Care Service,Home Care - Private Contractors Payment,1215.08,0.00,COMMERCIAL SUPPLIER 
 26-07-2023,Adults,Homestead Care Service,Home Care - Private Contractors Payment,714.55,0.00,COMMERCIAL SUPPLIER 
 26-07-2023,Adults,Homestead Care Service,Home Care - Private Contractors Payment,1205.61,0.00,COMMERCIAL SUPPLIER 
 26-07-2023,Adults,Homestead Care Service,Home Care - Private Contractors Payment,1216.53,0.00,COMMERCIAL SUPPLIER 
 26-07-2023,Adults,Homestead Care Service,Home Care - Private Contractors Payment,1371.96,0.00,COMMERCIAL SUPPLIER 
 26-07-2023,Adults,Homestead Care Service,Home Care - Private Contractors Payment,1197.60,0.00,COMMERCIAL SUPPLIER 
 26-07-2023,Adults,Homestead Care Service,Home Care - Private Contractors Payment,852.15,0.00,COMMERCIAL SUPPLIER 
 26-07-2023,Adults,Homestead Care Service,Home Care - Private Contractors Payment,646.12,0.00,COMMERCIAL SUPPLIER 
 26-07-2023,Adults,Homestead Care Service,Home Care - Private Contractors Payment,967.18,0.00,COMMERCIAL SUPPLIER 
 26-07-2023,Adults,Homestead Care Service,Home Care - Private Contractors Payment,982.11,0.00,COMMERCIAL SUPPLIER 
 26-07-2023,Adults,Homestead Care Service,Home Care - Private Contractors Payment,1213.62,0.00,COMMERCIAL SUPPLIER 
 26-07-2023,Adults,Homestead Care Service,Home Care - Private Contractors Payment,1235.82,0.00,COMMERCIAL SUPPLIER 
 26-07-2023,Adults,Homestead Care Service,Home Care - Private Contractors Payment,1250.38,0.00,COMMERCIAL SUPPLIER 
 26-07-2023,Adults,Homestead Care Service,Home Care - Private Contractors Payment,1298.07,0.00,COMMERCIAL SUPPLIER 
 26-07-2023,Adults,Homestead Care Service,Home Care - Private Contractors Payment,1299.16,0.00,COMMERCIAL SUPPLIER 
 26-07-2023,Adults,Homestead Care Service,Home Care - Private Contractors Payment,589.70,0.00,COMMERCIAL SUPPLIER 
 26-07-2023,Adults,Homestead Care Service,Home Care - Private Contractors Payment,1228.91,0.00,COMMERCIAL SUPPLIER 
 26-07-2023,Adults,Homestead Care Service,Home Care - Private Contractors Payment,1230.00,0.00,COMMERCIAL SUPPLIER 
 26-07-2023,Adults,Homestead Care Service,Home Care - Private Contractors Payment,589.70,0.00,COMMERCIAL SUPPLIER 
 26-07-2023,Adults,Homestead Care Service,Home Care - Private Contractors Payment,589.70,0.00,COMMERCIAL SUPPLIER 
 26-07-2023,Adults,Homestead Care Service,Home Care - Private Contractors Payment,1292.61,0.00,COMMERCIAL SUPPLIER 
 26-07-2023,Adults,Homestead Care Service,Home Care - Private Contractors Payment,1331.56,0.00,COMMERCIAL SUPPLIER 
 26-07-2023,Adults,Morepower Ltd t/a Aqs Homecare,Home Care - Private Contractors Payment,504.88,0.00,COMMERCIAL SUPPLIER 
 26-07-2023,Adults,Morepower Ltd t/a Aqs Homecare,Home Care - Private Contractors Payment,1283.51,0.00,COMMERCIAL SUPPLIER 
 26-07-2023,Adults,Morepower Ltd t/a Aqs Homecare,Home Care - Private Contractors Payment,613.36,0.00,COMMERCIAL SUPPLIER 
 26-07-2023,Adults,Morepower Ltd t/a Aqs Homecare,Home Care - Private Contractors Payment,917.68,0.00,COMMERCIAL SUPPLIER 
 26-07-2023,Adults,Morepower Ltd t/a Aqs Homecare,Home Care - Private Contractors Payment,1279.50,0.00,COMMERCIAL SUPPLIER 
 26-07-2023,Adults,Morepower Ltd t/a Aqs Homecare,Home Care - Private Contractors Payment,1279.87,0.00,COMMERCIAL SUPPLIER 
 26-07-2023,Adults,Morepower Ltd t/a Aqs Homecare,Home Care - Private Contractors Payment,921.32,0.00,COMMERCIAL SUPPLIER 
 26-07-2023,Adults,Morepower Ltd t/a Aqs Homecare,Home Care - Private Contractors Payment,1247.11,0.00,COMMERCIAL SUPPLIER 
 26-07-2023,Adults,Morepower Ltd t/a Aqs Homecare,Home Care - Private Contractors Payment,1247.47,0.00,COMMERCIAL SUPPLIER 
 26-07-2023,Adults,Morepower Ltd t/a Aqs Homecare,Home Care - Private Contractors Payment,960.63,0.00,COMMERCIAL SUPPLIER 
 26-07-2023,Adults,Morepower Ltd t/a Aqs Homecare,Home Care - Private Contractors Payment,741.85,0.00,COMMERCIAL SUPPLIER 
 26-07-2023,Adults,Morepower Ltd t/a Aqs Homecare,Home Care - Private Contractors Payment,1043.62,0.00,COMMERCIAL SUPPLIER 
 26-07-2023,Adults,Morepower Ltd t/a Aqs Homecare,Home Care - Private Contractors Payment,545.66,0.00,COMMERCIAL SUPPLIER 
 26-07-2023,Adults,Morepower Ltd t/a Aqs Homecare,Home Care - Private Contractors Payment,1347.21,0.00,COMMERCIAL SUPPLIER 
 26-07-2023,Adults,Morepower Ltd t/a Aqs Homecare,Home Care - Private Contractors Payment,689.44,0.00,COMMERCIAL SUPPLIER 
 26-07-2023,Adults,Morepower Ltd t/a Aqs Homecare,Home Care - Private Contractors Payment,605.35,0.00,COMMERCIAL SUPPLIER 
 26-07-2023,Adults,Morepower Ltd t/a Aqs Homecare,Home Care - Private Contractors Payment,663.23,0.00,COMMERCIAL SUPPLIER 
 26-07-2023,Adults,Morepower Ltd t/a Aqs Homecare,Home Care - Private Contractors Payment,702.54,0.00,COMMERCIAL SUPPLIER 
 26-07-2023,Adults,Morepower Ltd t/a Aqs Homecare,Home Care - Private Contractors Payment,1280.23,0.00,COMMERCIAL SUPPLIER 
 26-07-2023,Adults,Morepower Ltd t/a Aqs Homecare,Home Care - Private Contractors Payment,1280.23,0.00,COMMERCIAL SUPPLIER 
 26-07-2023,Adults,Morepower Ltd t/a Aqs Homecare,Home Care - Private Contractors Payment,643.94,0.00,COMMERCIAL SUPPLIER 
 26-07-2023,Adults,Morepower Ltd t/a Aqs Homecare,Home Care - Private Contractors Payment,643.94,0.00,COMMERCIAL SUPPLIER 
 26-07-2023,Adults,Morepower Ltd t/a Aqs Homecare,Home Care - Private Contractors Payment,1216.53,0.00,COMMERCIAL SUPPLIER 
 26-07-2023,Adults,Morepower Ltd t/a Aqs Homecare,Home Care - Private Contractors Payment,826.31,0.00,COMMERCIAL SUPPLIER 
 26-07-2023,Adults,Morepower Ltd t/a Aqs Homecare,Home Care - Private Contractors Payment,1337.38,0.00,COMMERCIAL SUPPLIER 
 26-07-2023,Adults,Morepower Ltd t/a Aqs Homecare,Home Care - Private Contractors Payment,840.87,0.00,COMMERCIAL SUPPLIER 
 26-07-2023,Adults,Morepower Ltd t/a Aqs Homecare,Home Care - Private Contractors Payment,542.38,0.00,COMMERCIAL SUPPLIER 
 26-07-2023,Adults,Morepower Ltd t/a Aqs Homecare,Home Care - Private Contractors Payment,819.03,0.00,COMMERCIAL SUPPLIER 
 26-07-2023,Adults,Morepower Ltd t/a Aqs Homecare,Home Care - Private Contractors Payment,819.76,0.00,COMMERCIAL SUPPLIER 
 26-07-2023,Adults,Morepower Ltd t/a Aqs Homecare,Home Care - Private Contractors Payment,1263.49,0.00,COMMERCIAL SUPPLIER 
 26-07-2023,Adults,Morepower Ltd t/a Aqs Homecare,Home Care - Private Contractors Payment,1267.49,0.00,COMMERCIAL SUPPLIER 
 26-07-2023,Adults,Morepower Ltd t/a Aqs Homecare,Home Care - Private Contractors Payment,619.91,0.00,COMMERCIAL SUPPLIER 
 26-07-2023,Adults,Morepower Ltd t/a Aqs Homecare,Home Care - Private Contractors Payment,621.01,0.00,COMMERCIAL SUPPLIER 
 26-07-2023,Adults,Morepower Ltd t/a Aqs Homecare,Home Care - Private Contractors Payment,614.09,0.00,COMMERCIAL SUPPLIER 
 26-07-2023,Adults,Morepower Ltd t/a Aqs Homecare,Home Care - Private Contractors Payment,920.95,0.00,COMMERCIAL SUPPLIER 
 26-07-2023,Adults,Morepower Ltd t/a Aqs Homecare,Home Care - Private Contractors Payment,1135.35,0.00,COMMERCIAL SUPPLIER 
 26-07-2023,Adults,Morepower Ltd t/a Aqs Homecare,Home Care - Private Contractors Payment,1173.94,0.00,COMMERCIAL SUPPLIER 
 26-07-2023,Adults,Morepower Ltd t/a Aqs Homecare,Home Care - Private Contractors Payment,567.84,0.00,COMMERCIAL SUPPLIER 
 26-07-2023,Adults,Morepower Ltd t/a Aqs Homecare,Home Care - Private Contractors Payment,1678.09,0.00,COMMERCIAL SUPPLIER 
 26-07-2023,Adults,Morepower Ltd t/a Aqs Homecare,Home Care - Private Contractors Payment,1913.57,0.00,COMMERCIAL SUPPLIER 
 26-07-2023,Adults,Morepower Ltd t/a Aqs Homecare,Home Care - Private Contractors Payment,611.54,0.00,COMMERCIAL SUPPLIER 
 26-07-2023,Adults,Morepower Ltd t/a Aqs Homecare,Home Care - Private Contractors Payment,931.87,0.00,COMMERCIAL SUPPLIER 
 26-07-2023,Adults,Morepower Ltd t/a Aqs Homecare,Home Care - Private Contractors Payment,746.95,0.00,COMMERCIAL SUPPLIER 
 26-07-2023,Adults,Morepower Ltd t/a Aqs Homecare,Home Care - Private Contractors Payment,694.17,0.00,COMMERCIAL SUPPLIER 
 26-07-2023,Adults,Morepower Ltd t/a Aqs Homecare,Home Care - Private Contractors Payment,617.36,0.00,COMMERCIAL SUPPLIER 
 26-07-2023,Adults,Morepower Ltd t/a Aqs Homecare,Home Care - Private Contractors Payment,1243.83,0.00,COMMERCIAL SUPPLIER 
 26-07-2023,Adults,Morepower Ltd t/a Aqs Homecare,Home Care - Private Contractors Payment,1245.29,0.00,COMMERCIAL SUPPLIER 
 26-07-2023,Adults,Morepower Ltd t/a Aqs Homecare,Home Care - Private Contractors Payment,1255.12,0.00,COMMERCIAL SUPPLIER 
 26-07-2023,Adults,Morepower Ltd t/a Aqs Homecare,Home Care - Private Contractors Payment,1257.66,0.00,COMMERCIAL SUPPLIER 
 26-07-2023,Adults,Morepower Ltd t/a Aqs Homecare,Home Care - Private Contractors Payment,509.62,0.00,COMMERCIAL SUPPLIER 
 26-07-2023,Adults,Morepower Ltd t/a Aqs Homecare,Home Care - Private Contractors Payment,981.74,0.00,COMMERCIAL SUPPLIER 
 26-07-2023,Adults,Morepower Ltd t/a Aqs Homecare,Home Care - Private Contractors Payment,875.45,0.00,COMMERCIAL SUPPLIER 
 26-07-2023,Adults,Morepower Ltd t/a Aqs Homecare,Home Care - Private Contractors Payment,690.90,0.00,COMMERCIAL SUPPLIER 
 26-07-2023,Adults,Morepower Ltd t/a Aqs Homecare,Home Care - Private Contractors Payment,690.90,0.00,COMMERCIAL SUPPLIER 
 26-07-2023,Adults,Morepower Ltd t/a Aqs Homecare,Home Care - Private Contractors Payment,611.54,0.00,COMMERCIAL SUPPLIER 
 26-07-2023,Adults,Morepower Ltd t/a Aqs Homecare,Home Care - Private Contractors Payment,1285.68,0.00,COMMERCIAL SUPPLIER 
 26-07-2023,Adults,Morepower Ltd t/a Aqs Homecare,Home Care - Private Contractors Payment,675.24,0.00,COMMERCIAL SUPPLIER 
 26-07-2023,Adults,Morepower Ltd t/a Aqs Homecare,Home Care - Private Contractors Payment,569.32,0.00,COMMERCIAL SUPPLIER 
 26-07-2023,Adults,Morepower Ltd t/a Aqs Homecare,Home Care - Private Contractors Payment,543.46,0.00,COMMERCIAL SUPPLIER 
 26-07-2023,Adults,Morepower Ltd t/a Aqs Homecare,Home Care - Private Contractors Payment,978.83,0.00,COMMERCIAL SUPPLIER 
 26-07-2023,Adults,Matrix SCM Ltd,Agency Staff,1436.42,0.00,COMMERCIAL SUPPLIER 
 26-07-2023,Adults,Matrix SCM Ltd,Agency Staff,1241.28,0.00,COMMERCIAL SUPPLIER 
 26-07-2023,Adults,Matrix SCM Ltd,Agency Staff,1384.58,0.00,COMMERCIAL SUPPLIER 
 26-07-2023,Adults,Matrix SCM Ltd,Agency Staff,940.80,0.00,COMMERCIAL SUPPLIER 
 26-07-2023,Adults,Matrix SCM Ltd,Agency Staff,1255.29,0.00,COMMERCIAL SUPPLIER 
 26-07-2023,Adults,Matrix SCM Ltd,Agency Staff,1273.31,0.00,COMMERCIAL SUPPLIER 
 26-07-2023,Adults,Matrix SCM Ltd,Agency Staff,705.41,0.00,COMMERCIAL SUPPLIER 
 26-07-2023,Adults,Matrix SCM Ltd,Agency Staff,834.74,0.00,COMMERCIAL SUPPLIER 
 26-07-2023,Adults,Matrix SCM Ltd,Agency Staff,908.64,0.00,COMMERCIAL SUPPLIER 
 26-07-2023,Adults,Matrix SCM Ltd,Agency Staff,895.33,0.00,COMMERCIAL SUPPLIER 
 26-07-2023,Adults,Matrix SCM Ltd,Agency Staff,695.52,0.00,COMMERCIAL SUPPLIER 
 26-07-2023,Adults,Matrix SCM Ltd,Agency Staff,599.04,0.00,COMMERCIAL SUPPLIER 
 26-07-2023,Adults,Matrix SCM Ltd,Agency Staff,695.17,0.00,COMMERCIAL SUPPLIER 
 26-07-2023,Adults,Matrix SCM Ltd,Agency Staff,599.04,0.00,COMMERCIAL SUPPLIER 
 26-07-2023,Adults,Matrix SCM Ltd,Agency Staff,538.56,0.00,COMMERCIAL SUPPLIER 
 26-07-2023,Adults,Matrix SCM Ltd,Agency Staff,790.91,0.00,COMMERCIAL SUPPLIER 
 26-07-2023,Adults,Matrix SCM Ltd,Agency Staff,1249.92,0.00,COMMERCIAL SUPPLIER 
 26-07-2023,Adults,Matrix SCM Ltd,Agency Staff,1275.49,0.00,COMMERCIAL SUPPLIER 
 26-07-2023,Adults,Matrix SCM Ltd,Agency Staff,725.03,0.00,COMMERCIAL SUPPLIER 
 26-07-2023,Adults,Matrix SCM Ltd,Agency Staff,1253.54,0.00,COMMERCIAL SUPPLIER 
 26-07-2023,Adults,Matrix SCM Ltd,Agency Staff,666.20,0.00,COMMERCIAL SUPPLIER 
 26-07-2023,Adults,Matrix SCM Ltd,Agency Staff,1198.18,0.00,COMMERCIAL SUPPLIER 
 26-07-2023,Adults,Matrix SCM Ltd,Agency Staff,1389.60,0.00,COMMERCIAL SUPPLIER 
 26-07-2023,Adults,Matrix SCM Ltd,Agency Staff,1241.28,0.00,COMMERCIAL SUPPLIER 
 26-07-2023,Adults,Matrix SCM Ltd,Agency Staff,790.93,0.00,COMMERCIAL SUPPLIER 
 26-07-2023,Adults,Matrix SCM Ltd,Agency Staff,710.27,0.00,COMMERCIAL SUPPLIER 
 26-07-2023,Adults,Matrix SCM Ltd,Agency Staff,1277.28,0.00,COMMERCIAL SUPPLIER 
 26-07-2023,Adults,Matrix SCM Ltd,Agency Staff,774.90,0.00,COMMERCIAL SUPPLIER 
 26-07-2023,Adults,Matrix SCM Ltd,Agency Staff,1241.28,0.00,COMMERCIAL SUPPLIER 
 26-07-2023,Adults,Matrix SCM Ltd,Agency Staff,631.63,0.00,COMMERCIAL SUPPLIER 
 26-07-2023,Adults,Matrix SCM Ltd,Agency Staff,1244.51,0.00,COMMERCIAL SUPPLIER 
 26-07-2023,Adults,Matrix SCM Ltd,Agency Staff,790.91,0.00,COMMERCIAL SUPPLIER 
 26-07-2023,Adults,Matrix SCM Ltd,Agency Staff,999.92,0.00,COMMERCIAL SUPPLIER 
 26-07-2023,Adults,Matrix SCM Ltd,Agency Staff,1235.10,0.00,COMMERCIAL SUPPLIER 
 26-07-2023,Adults,Matrix SCM Ltd,Agency Staff,1275.49,0.00,COMMERCIAL SUPPLIER 
 26-07-2023,Adults,Matrix SCM Ltd,Agency Staff,1241.28,0.00,COMMERCIAL SUPPLIER 
 26-07-2023,Adults,Matrix SCM Ltd,Agency Staff,1385.28,0.00,COMMERCIAL SUPPLIER 
 26-07-2023,Adults,Matrix SCM Ltd,Agency Staff,1129.22,0.00,COMMERCIAL SUPPLIER 
 26-07-2023,Adults,Matrix SCM Ltd,Agency Staff,1281.60,0.00,COMMERCIAL SUPPLIER 
 26-07-2023,Adults,Matrix SCM Ltd,Agency Staff,1323.36,0.00,COMMERCIAL SUPPLIER 
 26-07-2023,Adults,Matrix SCM Ltd,Agency Staff,1281.60,0.00,COMMERCIAL SUPPLIER 
 26-07-2023,Adults,Matrix SCM Ltd,Agency Staff,1225.69,0.00,COMMERCIAL SUPPLIER 
 26-07-2023,Adults,Matrix SCM Ltd,Agency Staff,1034.40,0.00,COMMERCIAL SUPPLIER 
 26-07-2023,Adults,Matrix SCM Ltd,Agency Staff,1209.60,0.00,COMMERCIAL SUPPLIER 
 26-07-2023,Adults,Matrix SCM Ltd,Agency Staff,1241.28,0.00,COMMERCIAL SUPPLIER 
 27-07-2023,Adults,Tbot Care Dynamics,Home Care - Private Contractors Payment,795.48,0.00,COMMERCIAL SUPPLIER 
 27-07-2023,Adults,Tbot Care Dynamics,Home Care - Private Contractors Payment,710.25,0.00,COMMERCIAL SUPPLIER 
 27-07-2023,Adults,Bloomscare Ltd,Home Care - Private Contractors Payment,1659.87,0.00,COMMERCIAL SUPPLIER 
 27-07-2023,Adults,Bloomscare Ltd,Home Care - Private Contractors Payment,1659.87,0.00,COMMERCIAL SUPPLIER 
 27-07-2023,Adults,Crystalize Care Services Ltd,Home Care - Private Contractors Payment,567.84,0.00,COMMERCIAL SUPPLIER 
 27-07-2023,Adults,Crystalize Care Services Ltd,Home Care - Private Contractors Payment,2271.36,0.00,COMMERCIAL SUPPLIER 
 27-07-2023,Adults,Crystalize Care Services Ltd,Home Care - Private Contractors Payment,1375.96,0.00,COMMERCIAL SUPPLIER 
 27-07-2023,Adults,Crystalize Care Services Ltd,Home Care - Private Contractors Payment,611.53,0.00,COMMERCIAL SUPPLIER 
 27-07-2023,Adults,Crystalize Care Services Ltd,Home Care - Private Contractors Payment,1375.96,0.00,COMMERCIAL SUPPLIER 
 27-07-2023,Adults,Crystalize Care Services Ltd,Home Care - Private Contractors Payment,917.31,0.00,COMMERCIAL SUPPLIER 
 27-07-2023,Adults,Crystalize Care Services Ltd,Home Care - Private Contractors Payment,1223.06,0.00,COMMERCIAL SUPPLIER 
 27-07-2023,Adults,Crystalize Care Services Ltd,Home Care - Private Contractors Payment,1223.06,0.00,COMMERCIAL SUPPLIER 
 27-07-2023,Adults,Crystalize Care Services Ltd,Home Care - Private Contractors Payment,1179.39,0.00,COMMERCIAL SUPPLIER 
 27-07-2023,Adults,Crystalize Care Services Ltd,Home Care - Private Contractors Payment,551.04,0.00,COMMERCIAL SUPPLIER 
 27-07-2023,Adults,Crystalize Care Services Ltd,Home Care - Private Contractors Payment,611.53,0.00,COMMERCIAL SUPPLIER 
 27-07-2023,Adults,Crystalize Care Services Ltd,Home Care - Private Contractors Payment,611.53,0.00,COMMERCIAL SUPPLIER 
 27-07-2023,Adults,Crystalize Care Services Ltd,Home Care - Private Contractors Payment,1572.52,0.00,COMMERCIAL SUPPLIER 
 27-07-2023,Adults,Crystalize Care Services Ltd,Home Care - Private Contractors Payment,1528.83,0.00,COMMERCIAL SUPPLIER 
 27-07-2023,Adults,"Age Uk Redbridge, Barking and Havering Limited",Payments To Voluntary Sector,3270.42,0.00,COMMERCIAL SUPPLIER 
 27-07-2023,Adults,"Age Uk Redbridge, Barking and Havering Limited",Payments To Voluntary Sector,3270.42,0.00,COMMERCIAL SUPPLIER 
 27-07-2023,Adults,HR AMBER CARS Ltd,Client Transport,1300.00,0.00,COMMERCIAL SUPPLIER 
 28-07-2023,Adults,Care-Away Ltd T/A Care Support,Home Care - Private Contractors Payment,742.77,0.00,COMMERCIAL SUPPLIER 
 28-07-2023,Adults,Care-Away Ltd T/A Care Support,Home Care - Private Contractors Payment,513.52,0.00,COMMERCIAL SUPPLIER 
 28-07-2023,Adults,Care-Away Ltd T/A Care Support,Home Care - Private Contractors Payment,1540.56,0.00,COMMERCIAL SUPPLIER 
 28-07-2023,Adults,Care-Away Ltd T/A Care Support,Home Care - Private Contractors Payment,513.52,0.00,COMMERCIAL SUPPLIER 
 28-07-2023,Adults,Care-Away Ltd T/A Care Support,Home Care - Private Contractors Payment,1027.04,0.00,COMMERCIAL SUPPLIER 
 28-07-2023,Adults,Care-Away Ltd T/A Care Support,Home Care - Private Contractors Payment,513.52,0.00,COMMERCIAL SUPPLIER 
 28-07-2023,Adults,Care-Away Ltd T/A Care Support,Home Care - Private Contractors Payment,1027.04,0.00,COMMERCIAL SUPPLIER 
 28-07-2023,Adults,Care-Away Ltd T/A Care Support,Home Care - Private Contractors Payment,1265.46,0.00,COMMERCIAL SUPPLIER 
 28-07-2023,Adults,Care-Away Ltd T/A Care Support,Home Care - Private Contractors Payment,1632.26,0.00,COMMERCIAL SUPPLIER 
 28-07-2023,Adults,Care-Away Ltd T/A Care Support,Home Care - Private Contractors Payment,2063.25,0.00,COMMERCIAL SUPPLIER 
 28-07-2023,Adults,Care-Away Ltd T/A Care Support,Home Care - Private Contractors Payment,513.52,0.00,COMMERCIAL SUPPLIER 
 28-07-2023,Adults,Care-Away Ltd T/A Care Support,Home Care - Private Contractors Payment,513.52,0.00,COMMERCIAL SUPPLIER 
 28-07-2023,Adults,Care-Away Ltd T/A Care Support,Home Care - Private Contractors Payment,1027.04,0.00,COMMERCIAL SUPPLIER 
 28-07-2023,Adults,Care-Away Ltd T/A Care Support,Home Care - Private Contractors Payment,935.34,0.00,COMMERCIAL SUPPLIER 
 28-07-2023,Adults,Personal Information - Redacted,Direct Payments Income,574.08,0.00,INDIVIDUALS 
 28-07-2023,Adults,Fountains Care Centre - Bondcare,Nursing Homes - Private Contractors Payment,3010.32,0.00,COMMERCIAL SUPPLIER 
 28-07-2023,Adults,Fountains Care Centre - Bondcare,Nursing Homes - Private Contractors Payment,7176.00,0.00,COMMERCIAL SUPPLIER 
 28-07-2023,Adults,Fountains Care Centre - Bondcare,Nursing Homes - Private Contractors Payment,2856.64,0.00,COMMERCIAL SUPPLIER 
 28-07-2023,Adults,Fountains Care Centre - Bondcare,Nursing Homes - Private Contractors Payment,3010.32,0.00,COMMERCIAL SUPPLIER 
 28-07-2023,Adults,Fountains Care Centre - Bondcare,Nursing Homes - Private Contractors Payment,3010.32,0.00,COMMERCIAL SUPPLIER 
 28-07-2023,Adults,Fountains Care Centre - Bondcare,Nursing Homes - Private Contractors Payment,3010.32,0.00,COMMERCIAL SUPPLIER 
 28-07-2023,Adults,Fountains Care Centre - Bondcare,Residential Placements - Private Contractors Payment,2802.40,0.00,COMMERCIAL SUPPLIER 
 28-07-2023,Adults,Fountains Care Centre - Bondcare,Residential Placements - Private Contractors Payment,2802.40,0.00,COMMERCIAL SUPPLIER 
 28-07-2023,Adults,Fountains Care Centre - Bondcare,Nursing Homes - Private Contractors Payment,3010.32,0.00,COMMERCIAL SUPPLIER 
 28-07-2023,Adults,Fountains Care Centre - Bondcare,Nursing Homes - Private Contractors Payment,3010.32,0.00,COMMERCIAL SUPPLIER 
 28-07-2023,Adults,Fountains Care Centre - Bondcare,Nursing Homes - Private Contractors Payment,3500.00,0.00,COMMERCIAL SUPPLIER 
 28-07-2023,Adults,Fountains Care Centre - Bondcare,Nursing Homes - Private Contractors Payment,3920.00,0.00,COMMERCIAL SUPPLIER 
 28-07-2023,Adults,Fountains Care Centre - Bondcare,Nursing Homes - Private Contractors Payment,3220.00,0.00,COMMERCIAL SUPPLIER 
 28-07-2023,Adults,Fountains Care Centre - Bondcare,Nursing Homes - Private Contractors Payment,3920.00,0.00,COMMERCIAL SUPPLIER 
 28-07-2023,Adults,Fountains Care Centre - Bondcare,Nursing Homes - Private Contractors Payment,3010.32,0.00,COMMERCIAL SUPPLIER 
 28-07-2023,Adults,Fountains Care Centre - Bondcare,Nursing Homes - Private Contractors Payment,3010.32,0.00,COMMERCIAL SUPPLIER 
 28-07-2023,Adults,Fountains Care Centre - Bondcare,Nursing Homes - Private Contractors Payment,3010.32,0.00,COMMERCIAL SUPPLIER 
 28-07-2023,Adults,Fountains Care Centre - Bondcare,Nursing Homes - Private Contractors Payment,3010.32,0.00,COMMERCIAL SUPPLIER 
 28-07-2023,Adults,Fountains Care Centre - Bondcare,Residential Placements - Private Contractors Payment,3085.80,0.00,COMMERCIAL SUPPLIER 
 28-07-2023,Adults,Fountains Care Centre - Bondcare,Nursing Homes - Private Contractors Payment,3685.52,0.00,COMMERCIAL SUPPLIER 
 28-07-2023,Adults,Fountains Care Centre - Bondcare,Nursing Homes - Private Contractors Payment,3400.00,0.00,COMMERCIAL SUPPLIER 
 28-07-2023,Adults,Fountains Care Centre - Bondcare,Nursing Homes - Private Contractors Payment,15456.00,0.00,COMMERCIAL SUPPLIER 
 28-07-2023,Adults,Fountains Care Centre - Bondcare,Nursing Homes - Private Contractors Payment,3010.32,0.00,COMMERCIAL SUPPLIER 
 28-07-2023,Adults,Fountains Care Centre - Bondcare,Nursing Homes - Private Contractors Payment,3520.00,0.00,COMMERCIAL SUPPLIER 
 28-07-2023,Adults,Fountains Care Centre - Bondcare,Nursing Homes - Private Contractors Payment,3010.32,0.00,COMMERCIAL SUPPLIER 
 28-07-2023,Adults,Fountains Care Centre - Bondcare,Nursing Homes - Private Contractors Payment,3010.32,0.00,COMMERCIAL SUPPLIER 
 28-07-2023,Adults,Fountains Care Centre - Bondcare,Nursing Homes - Private Contractors Payment,3010.32,0.00,COMMERCIAL SUPPLIER 
 28-07-2023,Adults,Fountains Care Centre - Bondcare,Nursing Homes - Private Contractors Payment,3920.00,0.00,COMMERCIAL SUPPLIER 
 28-07-2023,Adults,Fountains Care Centre - Bondcare,Nursing Homes - Private Contractors Payment,3010.32,0.00,COMMERCIAL SUPPLIER 
 28-07-2023,Adults,Black Swan International Ltd - Belamacanda,Residential Placements - Private Contractors Payment,2859.20,0.00,COMMERCIAL SUPPLIER 
 28-07-2023,Adults,Black Swan International Ltd - Belamacanda,Residential Placements - Private Contractors Payment,3843.36,0.00,COMMERCIAL SUPPLIER 
 28-07-2023,Adults,Black Swan International Ltd - Belamacanda,Residential Placements - Private Contractors Payment,2752.28,0.00,COMMERCIAL SUPPLIER 
 28-07-2023,Adults,Leonard Cheshire Disability_a,Residential Placements - Private Contractors Payment,6560.32,0.00,COMMERCIAL SUPPLIER 
 28-07-2023,Adults,Leonard Cheshire Disability_a,Residential Placements - Private Contractors Payment,6754.40,0.00,COMMERCIAL SUPPLIER 
 28-07-2023,Adults,Voyage Ltd - Solar-Grange Liss,Nursing Homes - Private Contractors Payment,5721.12,0.00,COMMERCIAL SUPPLIER 
 28-07-2023,Adults,Havering Care Homes Ltd t/a Abbscross Nursing Home,Nursing Homes - Private Contractors Payment,4069.44,0.00,COMMERCIAL SUPPLIER 
 28-07-2023,Adults,Havering Care Homes Ltd t/a Abbscross Nursing Home,Nursing Homes - Private Contractors Payment,4809.08,0.00,COMMERCIAL SUPPLIER 
 28-07-2023,Adults,Havering Care Homes Ltd t/a Abbscross Nursing Home,Nursing Homes - Private Contractors Payment,3010.32,0.00,COMMERCIAL SUPPLIER 
 28-07-2023,Adults,Havering Care Homes Ltd t/a Abbscross Nursing Home,Nursing Homes - Private Contractors Payment,4809.08,0.00,COMMERCIAL SUPPLIER 
 28-07-2023,Adults,Havering Care Homes Ltd t/a Abbscross Nursing Home,Nursing Homes - Private Contractors Payment,4134.00,0.00,COMMERCIAL SUPPLIER 
 28-07-2023,Adults,Havering Care Homes Ltd t/a Abbscross Nursing Home,Nursing Homes - Private Contractors Payment,2856.64,0.00,COMMERCIAL SUPPLIER 
 28-07-2023,Adults,Havering Care Homes Ltd t/a Abbscross Nursing Home,Nursing Homes - Private Contractors Payment,3010.32,0.00,COMMERCIAL SUPPLIER 
 28-07-2023,Adults,Havering Care Homes Ltd t/a Abbscross Nursing Home,Nursing Homes - Private Contractors Payment,3010.32,0.00,COMMERCIAL SUPPLIER 
 28-07-2023,Adults,One Tree Estates Ltd t/a Ashbrook Nursing Home,Nursing Homes - Private Contractors Payment,3125.12,0.00,COMMERCIAL SUPPLIER 
 28-07-2023,Adults,One Tree Estates Ltd t/a Ashbrook Nursing Home,Nursing Homes - Private Contractors Payment,4800.00,0.00,COMMERCIAL SUPPLIER 
 28-07-2023,Adults,One Tree Estates Ltd t/a Ashbrook Nursing Home,Nursing Homes - Private Contractors Payment,15456.00,0.00,COMMERCIAL SUPPLIER 
 28-07-2023,Adults,One Tree Estates Ltd t/a Ashbrook Nursing Home,Nursing Homes - Private Contractors Payment,3259.52,0.00,COMMERCIAL SUPPLIER 
 28-07-2023,Adults,One Tree Estates Ltd t/a Ashbrook Nursing Home,Nursing Homes - Private Contractors Payment,3800.00,0.00,COMMERCIAL SUPPLIER 
 28-07-2023,Adults,One Tree Estates Ltd t/a Ashbrook Nursing Home,Nursing Homes - Private Contractors Payment,3259.52,0.00,COMMERCIAL SUPPLIER 
 28-07-2023,Adults,One Tree Estates Ltd t/a Ashbrook Nursing Home,Nursing Homes - Private Contractors Payment,3010.32,0.00,COMMERCIAL SUPPLIER 
 28-07-2023,Adults,One Tree Estates Ltd t/a Ashbrook Nursing Home,Nursing Homes - Private Contractors Payment,3694.12,0.00,COMMERCIAL SUPPLIER 
 28-07-2023,Adults,One Tree Estates Ltd t/a Ashbrook Nursing Home,Nursing Homes - Private Contractors Payment,3800.00,0.00,COMMERCIAL SUPPLIER 
 28-07-2023,Adults,One Tree Estates Ltd t/a Ashbrook Nursing Home,Nursing Homes - Private Contractors Payment,4800.00,0.00,COMMERCIAL SUPPLIER 
 28-07-2023,Adults,One Tree Estates Ltd t/a Ashbrook Nursing Home,Nursing Homes - Private Contractors Payment,5600.00,0.00,COMMERCIAL SUPPLIER 
 28-07-2023,Adults,One Tree Estates Ltd t/a Ashbrook Nursing Home,Nursing Homes - Private Contractors Payment,3100.52,0.00,COMMERCIAL SUPPLIER 
 28-07-2023,Adults,One Tree Estates Ltd t/a Ashbrook Nursing Home,Nursing Homes - Private Contractors Payment,14784.00,0.00,COMMERCIAL SUPPLIER 
 28-07-2023,Adults,One Tree Estates Ltd t/a Ashbrook Nursing Home,Nursing Homes - Private Contractors Payment,3604.00,0.00,COMMERCIAL SUPPLIER 
 28-07-2023,Adults,One Tree Estates Ltd t/a Ashbrook Nursing Home,Nursing Homes - Private Contractors Payment,3392.00,0.00,COMMERCIAL SUPPLIER 
 28-07-2023,Adults,One Tree Estates Ltd t/a Ashbrook Nursing Home,Nursing Homes - Private Contractors Payment,3928.57,0.00,COMMERCIAL SUPPLIER 
 28-07-2023,Adults,One Tree Estates Ltd t/a Ashbrook Nursing Home,Nursing Homes - Private Contractors Payment,4600.00,0.00,COMMERCIAL SUPPLIER 
 28-07-2023,Adults,One Tree Estates Ltd t/a Ashbrook Nursing Home,Nursing Homes - Private Contractors Payment,2828.57,0.00,COMMERCIAL SUPPLIER 
 28-07-2023,Adults,One Tree Estates Ltd t/a Ashbrook Nursing Home,Nursing Homes - Private Contractors Payment,8448.00,0.00,COMMERCIAL SUPPLIER 
 28-07-2023,Adults,One Tree Estates Ltd t/a Ashbrook Nursing Home,Nursing Homes - Private Contractors Payment,5649.80,0.00,COMMERCIAL SUPPLIER 
 28-07-2023,Adults,One Tree Estates Ltd t/a Ashbrook Nursing Home,Nursing Homes - Private Contractors Payment,3600.00,0.00,COMMERCIAL SUPPLIER 
 28-07-2023,Adults,One Tree Estates Ltd t/a Ashbrook Nursing Home,Nursing Homes - Private Contractors Payment,3600.00,0.00,COMMERCIAL SUPPLIER 
 28-07-2023,Adults,One Tree Estates Ltd t/a Ashbrook Nursing Home,Nursing Homes - Private Contractors Payment,3600.00,0.00,COMMERCIAL SUPPLIER 
 28-07-2023,Adults,One Tree Estates Ltd t/a Ashbrook Nursing Home,Nursing Homes - Private Contractors Payment,5200.00,0.00,COMMERCIAL SUPPLIER 
 28-07-2023,Adults,One Tree Estates Ltd t/a Ashbrook Nursing Home,Nursing Homes - Private Contractors Payment,5512.00,0.00,COMMERCIAL SUPPLIER 
 28-07-2023,Adults,One Tree Estates Ltd t/a Ashbrook Nursing Home,Nursing Homes - Private Contractors Payment,4000.00,0.00,COMMERCIAL SUPPLIER 
 28-07-2023,Adults,One Tree Estates Ltd t/a Ashbrook Nursing Home,Nursing Homes - Private Contractors Payment,3010.32,0.00,COMMERCIAL SUPPLIER 
 28-07-2023,Adults,One Tree Estates Ltd t/a Ashbrook Nursing Home,Nursing Homes - Private Contractors Payment,3298.72,0.00,COMMERCIAL SUPPLIER 
 28-07-2023,Adults,One Tree Estates Ltd t/a Ashbrook Nursing Home,Nursing Homes - Private Contractors Payment,3604.00,0.00,COMMERCIAL SUPPLIER 
 28-07-2023,Adults,One Tree Estates Ltd t/a Ashbrook Nursing Home,Nursing Homes - Private Contractors Payment,3010.32,0.00,COMMERCIAL SUPPLIER 
 28-07-2023,Adults,One Tree Estates Ltd t/a Ashbrook Nursing Home,Nursing Homes - Private Contractors Payment,3392.00,0.00,COMMERCIAL SUPPLIER 
 28-07-2023,Adults,One Tree Estates Ltd t/a Ashbrook Nursing Home,Nursing Homes - Private Contractors Payment,8064.00,0.00,COMMERCIAL SUPPLIER 
 28-07-2023,Adults,One Tree Estates Ltd t/a Ashbrook Nursing Home,Nursing Homes - Private Contractors Payment,3010.32,0.00,COMMERCIAL SUPPLIER 
 28-07-2023,Adults,One Tree Estates Ltd t/a Ashbrook Nursing Home,Nursing Homes - Private Contractors Payment,7728.00,0.00,COMMERCIAL SUPPLIER 
 28-07-2023,Adults,One Tree Estates Ltd t/a Ashbrook Nursing Home,Nursing Homes - Private Contractors Payment,3243.84,0.00,COMMERCIAL SUPPLIER 
 28-07-2023,Adults,One Tree Estates Ltd t/a Ashbrook Nursing Home,Nursing Homes - Private Contractors Payment,15456.00,0.00,COMMERCIAL SUPPLIER 
 28-07-2023,Adults,One Tree Estates Ltd t/a Ashbrook Nursing Home,Nursing Homes - Private Contractors Payment,3816.00,0.00,COMMERCIAL SUPPLIER 
 28-07-2023,Adults,One Tree Estates Ltd t/a Ashbrook Nursing Home,Nursing Homes - Private Contractors Payment,3010.32,0.00,COMMERCIAL SUPPLIER 
 28-07-2023,Adults,One Tree Estates Ltd t/a Ashbrook Nursing Home,Nursing Homes - Private Contractors Payment,4452.00,0.00,COMMERCIAL SUPPLIER 
 28-07-2023,Adults,Highfield Care Homes Ltd t/a Romford Grange Care Home,Nursing Homes - Private Contractors Payment,3010.32,0.00,COMMERCIAL SUPPLIER 
 28-07-2023,Adults,Highfield Care Homes Ltd t/a Romford Grange Care Home,Residential Placements - Private Contractors Payment,2802.40,0.00,COMMERCIAL SUPPLIER 
 28-07-2023,Adults,Highfield Care Homes Ltd t/a Romford Grange Care Home,Nursing Homes - Private Contractors Payment,3010.32,0.00,COMMERCIAL SUPPLIER 
 28-07-2023,Adults,Highfield Care Homes Ltd t/a Romford Grange Care Home,Nursing Homes - Private Contractors Payment,3010.32,0.00,COMMERCIAL SUPPLIER 
 28-07-2023,Adults,Highfield Care Homes Ltd t/a Romford Grange Care Home,Nursing Homes - Private Contractors Payment,2856.64,0.00,COMMERCIAL SUPPLIER 
 28-07-2023,Adults,Highfield Care Homes Ltd t/a Romford Grange Care Home,Nursing Homes - Private Contractors Payment,3010.32,0.00,COMMERCIAL SUPPLIER 
 28-07-2023,Adults,Highfield Care Homes Ltd t/a Romford Grange Care Home,Nursing Homes - Private Contractors Payment,2670.68,0.00,COMMERCIAL SUPPLIER 
 28-07-2023,Adults,Highfield Care Homes Ltd t/a Romford Grange Care Home,Nursing Homes - Private Contractors Payment,3010.32,0.00,COMMERCIAL SUPPLIER 
 28-07-2023,Adults,Highfield Care Homes Ltd t/a Romford Grange Care Home,Residential Placements - Private Contractors Payment,3085.80,0.00,COMMERCIAL SUPPLIER 
 28-07-2023,Adults,Highfield Care Homes Ltd t/a Romford Grange Care Home,Residential Placements - Private Contractors Payment,2530.96,0.00,COMMERCIAL SUPPLIER 
 28-07-2023,Adults,Highfield Care Homes Ltd t/a Romford Grange Care Home,Nursing Homes - Private Contractors Payment,2856.64,0.00,COMMERCIAL SUPPLIER 
 28-07-2023,Adults,Highfield Care Homes Ltd t/a Romford Grange Care Home,Nursing Homes - Private Contractors Payment,2856.64,0.00,COMMERCIAL SUPPLIER 
 28-07-2023,Adults,Highfield Care Homes Ltd t/a Romford Grange Care Home,Nursing Homes - Private Contractors Payment,2856.64,0.00,COMMERCIAL SUPPLIER 
 28-07-2023,Adults,MNS Care Plc_a,Nursing Homes - Private Contractors Payment,2794.48,0.00,COMMERCIAL SUPPLIER 
 28-07-2023,Adults,MNS Care Plc_a,Nursing Homes - Private Contractors Payment,3010.32,0.00,COMMERCIAL SUPPLIER 
 28-07-2023,Adults,MNS Care Plc_a,Residential Placements - Private Contractors Payment,3782.88,0.00,COMMERCIAL SUPPLIER 
 28-07-2023,Adults,Bupa Care Homes (HVC) - Havering Court,Nursing Homes - Private Contractors Payment,6604.20,0.00,COMMERCIAL SUPPLIER 
 28-07-2023,Adults,Bupa Care Homes (HVC) - Havering Court,Nursing Homes - Private Contractors Payment,3874.00,0.00,COMMERCIAL SUPPLIER 
 28-07-2023,Adults,Bupa Care Homes (HVC) - Havering Court,Nursing Homes - Private Contractors Payment,3010.32,0.00,COMMERCIAL SUPPLIER 
 28-07-2023,Adults,Bupa Care Homes (HVC) - Havering Court,Nursing Homes - Private Contractors Payment,5206.80,0.00,COMMERCIAL SUPPLIER 
 28-07-2023,Adults,Bupa Care Homes (HVC) - Havering Court,Nursing Homes - Private Contractors Payment,4553.88,0.00,COMMERCIAL SUPPLIER 
 28-07-2023,Adults,Bupa Care Homes (HVC) - Havering Court,Nursing Homes - Private Contractors Payment,3247.04,0.00,COMMERCIAL SUPPLIER 
 28-07-2023,Adults,Bupa Care Homes (HVC) - Havering Court,Nursing Homes - Private Contractors Payment,4623.72,0.00,COMMERCIAL SUPPLIER 
 28-07-2023,Adults,Bupa Care Homes (HVC) - Havering Court,Nursing Homes - Private Contractors Payment,4252.44,0.00,COMMERCIAL SUPPLIER 
 28-07-2023,Adults,Bupa Care Homes (HVC) - Havering Court,Nursing Homes - Private Contractors Payment,4201.96,0.00,COMMERCIAL SUPPLIER 
 28-07-2023,Adults,Bupa Care Homes (HVC) - Havering Court,Nursing Homes - Private Contractors Payment,5300.16,0.00,COMMERCIAL SUPPLIER 
 28-07-2023,Adults,Bupa Care Homes (HVC) - Havering Court,Nursing Homes - Private Contractors Payment,4260.68,0.00,COMMERCIAL SUPPLIER 
 28-07-2023,Adults,Bupa Care Homes (HVC) - Havering Court,Nursing Homes - Private Contractors Payment,3661.08,0.00,COMMERCIAL SUPPLIER 
 28-07-2023,Adults,2 Peel Way - Outlook Care,Supported Other Accommodation - Private Contractors Payment,3106.80,0.00,NON COMMERCIAL SUPPLIER 
 28-07-2023,Adults,2 Peel Way - Outlook Care,Supported Other Accommodation - Private Contractors Payment,3298.24,0.00,NON COMMERCIAL SUPPLIER 
 28-07-2023,Adults,2 Peel Way - Outlook Care,Supported Other Accommodation - Private Contractors Payment,4255.24,0.00,NON COMMERCIAL SUPPLIER 
 28-07-2023,Adults,2 Peel Way - Outlook Care,Supported Other Accommodation - Private Contractors Payment,1041.04,0.00,NON COMMERCIAL SUPPLIER 
 28-07-2023,Adults,2 Peel Way - Outlook Care,Supported Other Accommodation - Private Contractors Payment,1858.68,0.00,NON COMMERCIAL SUPPLIER 
 28-07-2023,Adults,2 Peel Way - Outlook Care,Supported Other Accommodation - Private Contractors Payment,2532.56,0.00,NON COMMERCIAL SUPPLIER 
 28-07-2023,Adults,Outlook Care - 4 Peel Way,Supported Other Accommodation - Private Contractors Payment,991.00,0.00,COMMERCIAL SUPPLIER 
 28-07-2023,Adults,Outlook Care - 4 Peel Way,Supported Other Accommodation - Private Contractors Payment,1857.40,0.00,COMMERCIAL SUPPLIER 
 28-07-2023,Adults,Outlook Care - 4 Peel Way,Supported Other Accommodation - Private Contractors Payment,1939.76,0.00,COMMERCIAL SUPPLIER 
 28-07-2023,Adults,Outlook Care - 4 Peel Way,Supported Other Accommodation - Private Contractors Payment,1117.88,0.00,COMMERCIAL SUPPLIER 
 28-07-2023,Adults,Outlook Care - 4 Peel Way,Supported Other Accommodation - Private Contractors Payment,3773.52,0.00,COMMERCIAL SUPPLIER 
 28-07-2023,Adults,Outlook Care - 4 Peel Way,Supported Other Accommodation - Private Contractors Payment,3553.40,0.00,COMMERCIAL SUPPLIER 
 28-07-2023,Adults,Outlook Care - 4 Peel Way,Supported Other Accommodation - Private Contractors Payment,1939.76,0.00,COMMERCIAL SUPPLIER 
 28-07-2023,Adults,Outlook Care - 4 Peel Way,Supported Other Accommodation - Private Contractors Payment,3090.84,0.00,COMMERCIAL SUPPLIER 
 28-07-2023,Adults,Outlook Care - 4 Peel Way,Supported Other Accommodation - Private Contractors Payment,1696.48,0.00,COMMERCIAL SUPPLIER 
 28-07-2023,Adults,The Avenues Trust - 6 Peel Way,Residential Placements - Private Contractors Payment,6584.60,0.00,COMMERCIAL SUPPLIER 
 28-07-2023,Adults,The Avenues Trust - 6 Peel Way,Residential Placements - Private Contractors Payment,6584.60,0.00,COMMERCIAL SUPPLIER 
 28-07-2023,Adults,The Avenues Trust - 6 Peel Way,Residential Placements - Private Contractors Payment,6584.60,0.00,COMMERCIAL SUPPLIER 
 28-07-2023,Adults,The Avenues Trust - 6 Peel Way,Residential Placements - Private Contractors Payment,6584.60,0.00,COMMERCIAL SUPPLIER 
 28-07-2023,Adults,Voyage Ltd - Solar Care Melbreck,Nursing Homes - Private Contractors Payment,4536.24,0.00,COMMERCIAL SUPPLIER 
 28-07-2023,Adults,Fitzroy Support,Residential Placements - Private Contractors Payment,5746.04,0.00,COMMERCIAL SUPPLIER 
 28-07-2023,Adults,St Michaels Homes Ltd,Residential Placements - Private Contractors Payment,3085.80,0.00,COMMERCIAL SUPPLIER 
 28-07-2023,Adults,St Michaels Homes Ltd,Residential Placements - Private Contractors Payment,3085.80,0.00,COMMERCIAL SUPPLIER 
 28-07-2023,Adults,Bupa Care Homes - Hutton Village,Nursing Homes - Private Contractors Payment,3010.32,0.00,COMMERCIAL SUPPLIER 
 28-07-2023,Adults,Havering Care Homes Ltd t/a Upminster Nursing Home,Nursing Homes - Private Contractors Payment,3010.32,0.00,COMMERCIAL SUPPLIER 
 28-07-2023,Adults,Havering Care Homes Ltd t/a Upminster Nursing Home,Nursing Homes - Private Contractors Payment,3010.32,0.00,COMMERCIAL SUPPLIER 
 28-07-2023,Adults,Havering Care Homes Ltd t/a Upminster Nursing Home,Nursing Homes - Private Contractors Payment,3010.32,0.00,COMMERCIAL SUPPLIER 
 28-07-2023,Adults,Havering Care Homes Ltd t/a Upminster Nursing Home,Nursing Homes - Private Contractors Payment,2580.27,0.00,COMMERCIAL SUPPLIER 
 28-07-2023,Adults,Havering Care Homes Ltd t/a Upminster Nursing Home,Nursing Homes - Private Contractors Payment,2528.00,0.00,COMMERCIAL SUPPLIER 
 28-07-2023,Adults,Havering Care Homes Ltd t/a Upminster Nursing Home,Nursing Homes - Private Contractors Payment,3010.32,0.00,COMMERCIAL SUPPLIER 
 28-07-2023,Adults,Havering Care Homes Ltd t/a Upminster Nursing Home,Nursing Homes - Private Contractors Payment,2856.64,0.00,COMMERCIAL SUPPLIER 
 28-07-2023,Adults,Havering Care Homes Ltd t/a Upminster Nursing Home,Nursing Homes - Private Contractors Payment,2856.64,0.00,COMMERCIAL SUPPLIER 
 28-07-2023,Adults,Havering Care Homes Ltd t/a Upminster Nursing Home,Residential Placements - Private Contractors Payment,3085.80,0.00,COMMERCIAL SUPPLIER 
 28-07-2023,Adults,Havering Care Homes Ltd t/a Upminster Nursing Home,Nursing Homes - Private Contractors Payment,4134.00,0.00,COMMERCIAL SUPPLIER 
 28-07-2023,Adults,Essex Care Consortium Ltd_a,Residential Placements - Private Contractors Payment,4759.24,0.00,COMMERCIAL SUPPLIER 
 28-07-2023,Adults,Mundy House,Residential Placements - Private Contractors Payment,2734.64,0.00,COMMERCIAL SUPPLIER 
 28-07-2023,Adults,Mundy House,Residential Placements - Private Contractors Payment,3085.80,0.00,COMMERCIAL SUPPLIER 
 28-07-2023,Adults,St Michaels Homes Ltd,Respite Care - Private Contractors Payment,1212.28,0.00,COMMERCIAL SUPPLIER 
 28-07-2023,Adults,St Michaels Homes Ltd,Respite Care - Private Contractors Payment,2671.43,0.00,COMMERCIAL SUPPLIER 
 28-07-2023,Adults,St Michaels Homes Ltd,Respite Care - Private Contractors Payment,1102.07,0.00,COMMERCIAL SUPPLIER 
 28-07-2023,Adults,St Michaels Homes Ltd,Respite Care - Private Contractors Payment,628.57,0.00,COMMERCIAL SUPPLIER 
 28-07-2023,Adults,Lukka Care Homes Ltd - Ravenscourt,Nursing Homes - Private Contractors Payment,3800.00,0.00,COMMERCIAL SUPPLIER 
 28-07-2023,Adults,Lukka Care Homes Ltd - Ravenscourt,Nursing Homes - Private Contractors Payment,3600.00,0.00,COMMERCIAL SUPPLIER 
 28-07-2023,Adults,Lukka Care Homes Ltd - Ravenscourt,Nursing Homes - Private Contractors Payment,1357.14,0.00,COMMERCIAL SUPPLIER 
 28-07-2023,Adults,Lukka Care Homes Ltd - Ravenscourt,Nursing Homes - Private Contractors Payment,3353.04,0.00,COMMERCIAL SUPPLIER 
 28-07-2023,Adults,Lukka Care Homes Ltd - Ravenscourt,Nursing Homes - Private Contractors Payment,3232.56,0.00,COMMERCIAL SUPPLIER 
 28-07-2023,Adults,Lukka Care Homes Ltd - Ravenscourt,Nursing Homes - Private Contractors Payment,5319.52,0.00,COMMERCIAL SUPPLIER 
 28-07-2023,Adults,Lukka Care Homes Ltd - Ravenscourt,Nursing Homes - Private Contractors Payment,3010.32,0.00,COMMERCIAL SUPPLIER 
 28-07-2023,Adults,Lukka Care Homes Ltd - Ravenscourt,Nursing Homes - Private Contractors Payment,4028.00,0.00,COMMERCIAL SUPPLIER 
 28-07-2023,Adults,Lukka Care Homes Ltd - Ravenscourt,Nursing Homes - Private Contractors Payment,3125.12,0.00,COMMERCIAL SUPPLIER 
 28-07-2023,Adults,Lukka Care Homes Ltd - Ravenscourt,Nursing Homes - Private Contractors Payment,4320.00,0.00,COMMERCIAL SUPPLIER 
 28-07-2023,Adults,Lukka Care Homes Ltd - Ravenscourt,Nursing Homes - Private Contractors Payment,4399.88,0.00,COMMERCIAL SUPPLIER 
 28-07-2023,Adults,Lukka Care Homes Ltd - Ravenscourt,Nursing Homes - Private Contractors Payment,3530.68,0.00,COMMERCIAL SUPPLIER 
 28-07-2023,Adults,Lukka Care Homes Ltd - Ravenscourt,Nursing Homes - Private Contractors Payment,3800.00,0.00,COMMERCIAL SUPPLIER 
 28-07-2023,Adults,Barchester Healthcare Ltd - Park View Care Home,Nursing Homes - Private Contractors Payment,4527.44,0.00,COMMERCIAL SUPPLIER 
 28-07-2023,Adults,Barchester Healthcare Ltd - Park View Care Home,Residential Placements - Private Contractors Payment,5270.32,0.00,COMMERCIAL SUPPLIER 
 28-07-2023,Adults,Barchester Healthcare Ltd - Park View Care Home,Nursing Homes - Private Contractors Payment,3125.12,0.00,COMMERCIAL SUPPLIER 
 28-07-2023,Adults,Barchester Healthcare Ltd - Park View Care Home,Nursing Homes - Private Contractors Payment,5988.96,0.00,COMMERCIAL SUPPLIER 
 28-07-2023,Adults,Barchester Healthcare Ltd - Park View Care Home,Nursing Homes - Private Contractors Payment,4527.44,0.00,COMMERCIAL SUPPLIER 
 28-07-2023,Adults,Barchester Healthcare Ltd - Park View Care Home,Nursing Homes - Private Contractors Payment,4725.88,0.00,COMMERCIAL SUPPLIER 
 28-07-2023,Adults,Barchester Healthcare Ltd - Park View Care Home,Nursing Homes - Private Contractors Payment,4482.92,0.00,COMMERCIAL SUPPLIER 
 28-07-2023,Adults,Barchester Healthcare Ltd - Park View Care Home,Nursing Homes - Private Contractors Payment,4134.00,0.00,COMMERCIAL SUPPLIER 
 28-07-2023,Adults,Barchester Healthcare Ltd - Park View Care Home,Nursing Homes - Private Contractors Payment,3921.16,0.00,COMMERCIAL SUPPLIER 
 28-07-2023,Adults,Barchester Healthcare Ltd - Park View Care Home,Nursing Homes - Private Contractors Payment,4122.00,0.00,COMMERCIAL SUPPLIER 
 28-07-2023,Adults,Barchester Healthcare Ltd - Park View Care Home,Nursing Homes - Private Contractors Payment,4060.92,0.00,COMMERCIAL SUPPLIER 
 28-07-2023,Adults,Barchester Healthcare Ltd - Park View Care Home,Residential Placements - Private Contractors Payment,5400.00,0.00,COMMERCIAL SUPPLIER 
 28-07-2023,Adults,Barchester Healthcare Ltd - Park View Care Home,Residential Placements - Private Contractors Payment,3085.80,0.00,COMMERCIAL SUPPLIER 
 28-07-2023,Adults,Personal Information - Redacted,Residential Placements - Private Contractors Payment,5270.32,0.00,COMMERCIAL SUPPLIER 
 28-07-2023,Adults,Westminster Health Care Ltd Derham House,Nursing Homes - Private Contractors Payment,4198.56,0.00,COMMERCIAL SUPPLIER 
 28-07-2023,Adults,Westminster Health Care Ltd Derham House,Nursing Homes - Private Contractors Payment,6152.28,0.00,COMMERCIAL SUPPLIER 
 28-07-2023,Adults,Westminster Health Care Ltd Derham House,Residential Placements - Private Contractors Payment,6162.64,0.00,COMMERCIAL SUPPLIER 
 28-07-2023,Adults,Westminster Health Care Ltd Derham House,Nursing Homes - Private Contractors Payment,3546.68,0.00,COMMERCIAL SUPPLIER 
 28-07-2023,Adults,Westminster Health Care Ltd Derham House,Nursing Homes - Private Contractors Payment,2606.08,0.00,COMMERCIAL SUPPLIER 
 28-07-2023,Adults,Westminster Health Care Ltd Derham House,Nursing Homes - Private Contractors Payment,6499.92,0.00,COMMERCIAL SUPPLIER 
 28-07-2023,Adults,Westminster Health Care Ltd Derham House,Residential Placements - Private Contractors Payment,6084.00,0.00,COMMERCIAL SUPPLIER 
 28-07-2023,Adults,Westminster Health Care Ltd Derham House,Nursing Homes - Private Contractors Payment,6989.04,0.00,COMMERCIAL SUPPLIER 
 28-07-2023,Adults,Westminster Health Care Ltd Derham House,Nursing Homes - Private Contractors Payment,6152.28,0.00,COMMERCIAL SUPPLIER 
 28-07-2023,Adults,Westminster Health Care Ltd Derham House,Residential Placements - Private Contractors Payment,6360.00,0.00,COMMERCIAL SUPPLIER 
 28-07-2023,Adults,Gable Court Nursing Home Ltd,Nursing Homes - Private Contractors Payment,4400.00,0.00,COMMERCIAL SUPPLIER 
 28-07-2023,Adults,HC-One Oval Ltd - The Hornchurch Nursing Centre,Nursing Homes - Private Contractors Payment,3010.32,0.00,COMMERCIAL SUPPLIER 
 28-07-2023,Adults,HC-One Oval Ltd - The Hornchurch Nursing Centre,Respite Care - Private Contractors Payment,1397.65,0.00,COMMERCIAL SUPPLIER 
 28-07-2023,Adults,HC-One Oval Ltd - The Hornchurch Nursing Centre,Nursing Homes - Private Contractors Payment,2580.27,0.00,COMMERCIAL SUPPLIER 
 28-07-2023,Adults,HC-One Oval Ltd - The Hornchurch Nursing Centre,Nursing Homes - Private Contractors Payment,3010.32,0.00,COMMERCIAL SUPPLIER 
 28-07-2023,Adults,HC-One Oval Ltd - The Hornchurch Nursing Centre,Nursing Homes - Private Contractors Payment,3010.32,0.00,COMMERCIAL SUPPLIER 
 28-07-2023,Adults,HC-One Oval Ltd - The Hornchurch Nursing Centre,Nursing Homes - Private Contractors Payment,3010.32,0.00,COMMERCIAL SUPPLIER 
 28-07-2023,Adults,HC-One Oval Ltd - The Hornchurch Nursing Centre,Nursing Homes - Private Contractors Payment,3010.32,0.00,COMMERCIAL SUPPLIER 
 28-07-2023,Adults,HC-One Oval Ltd - The Hornchurch Nursing Centre,Nursing Homes - Private Contractors Payment,2856.64,0.00,COMMERCIAL SUPPLIER 
 28-07-2023,Adults,HC-One Oval Ltd - The Hornchurch Nursing Centre,Nursing Homes - Private Contractors Payment,3010.32,0.00,COMMERCIAL SUPPLIER 
 28-07-2023,Adults,HC-One Oval Ltd - The Hornchurch Nursing Centre,Nursing Homes - Private Contractors Payment,3010.32,0.00,COMMERCIAL SUPPLIER 
 28-07-2023,Adults,HC-One Oval Ltd - The Hornchurch Nursing Centre,Nursing Homes - Private Contractors Payment,2856.64,0.00,COMMERCIAL SUPPLIER 
 28-07-2023,Adults,HC-One Oval Ltd - The Hornchurch Nursing Centre,Nursing Homes - Private Contractors Payment,3010.32,0.00,COMMERCIAL SUPPLIER 
 28-07-2023,Adults,HC-One Oval Ltd - The Hornchurch Nursing Centre,Nursing Homes - Private Contractors Payment,3010.32,0.00,COMMERCIAL SUPPLIER 
 28-07-2023,Adults,HC-One Oval Ltd - The Hornchurch Nursing Centre,Nursing Homes - Private Contractors Payment,3010.32,0.00,COMMERCIAL SUPPLIER 
 28-07-2023,Adults,HC-One Oval Ltd - The Hornchurch Nursing Centre,Nursing Homes - Private Contractors Payment,3010.32,0.00,COMMERCIAL SUPPLIER 
 28-07-2023,Adults,HC-One Oval Ltd - The Hornchurch Nursing Centre,Residential Placements - Private Contractors Payment,3259.52,0.00,COMMERCIAL SUPPLIER 
 28-07-2023,Adults,HC-One Oval Ltd - The Hornchurch Nursing Centre,Nursing Homes - Private Contractors Payment,3010.32,0.00,COMMERCIAL SUPPLIER 
 28-07-2023,Adults,HC-One Oval Ltd - The Hornchurch Nursing Centre,Residential Placements - Private Contractors Payment,3270.96,0.00,COMMERCIAL SUPPLIER 
 28-07-2023,Adults,HC-One Oval Ltd - The Hornchurch Nursing Centre,Nursing Homes - Private Contractors Payment,1827.69,0.00,COMMERCIAL SUPPLIER 
 28-07-2023,Adults,HC-One Oval Ltd - The Hornchurch Nursing Centre,Nursing Homes - Private Contractors Payment,3010.32,0.00,COMMERCIAL SUPPLIER 
 28-07-2023,Adults,HC-One Oval Ltd - The Hornchurch Nursing Centre,Residential Placements - Private Contractors Payment,3085.80,0.00,COMMERCIAL SUPPLIER 
 28-07-2023,Adults,HC-One Oval Ltd - The Hornchurch Nursing Centre,Nursing Homes - Private Contractors Payment,2365.25,0.00,COMMERCIAL SUPPLIER 
 28-07-2023,Adults,HC-One Oval Ltd - The Hornchurch Nursing Centre,Nursing Homes - Private Contractors Payment,3010.32,0.00,COMMERCIAL SUPPLIER 
 28-07-2023,Adults,HC-One Oval Ltd - The Hornchurch Nursing Centre,Nursing Homes - Private Contractors Payment,3010.32,0.00,COMMERCIAL SUPPLIER 
 28-07-2023,Adults,HC-One Oval Ltd - The Hornchurch Nursing Centre,Nursing Homes - Private Contractors Payment,3010.32,0.00,COMMERCIAL SUPPLIER 
 28-07-2023,Adults,HC-One Oval Ltd - The Hornchurch Nursing Centre,Nursing Homes - Private Contractors Payment,2560.00,0.00,COMMERCIAL SUPPLIER 
 28-07-2023,Adults,HC-One Oval Ltd - Admirals Reach Residential & Nursing Centre,Nursing Homes - Private Contractors Payment,3010.32,0.00,COMMERCIAL SUPPLIER 
 28-07-2023,Adults,Bramerton Care Home - Community Homes of Intensive Care and Education Ltd,Residential Placements - Private Contractors Payment,8759.00,0.00,COMMERCIAL SUPPLIER 
 28-07-2023,Adults,Stable Family Home Trust,Supported Other Accommodation - Private Contractors Payment,4392.72,0.00,COMMERCIAL SUPPLIER 
 28-07-2023,Adults,Beechcourt Care Centre - Bondcare,Nursing Homes - Private Contractors Payment,3008.00,0.00,COMMERCIAL SUPPLIER 
 28-07-2023,Adults,Beechcourt Care Centre - Bondcare,Nursing Homes - Private Contractors Payment,3192.00,0.00,COMMERCIAL SUPPLIER 
 28-07-2023,Adults,Beechcourt Care Centre - Bondcare,Residential Placements - Private Contractors Payment,2480.00,0.00,COMMERCIAL SUPPLIER 
 28-07-2023,Adults,Beechcourt Care Centre - Bondcare,Nursing Homes - Private Contractors Payment,3192.00,0.00,COMMERCIAL SUPPLIER 
 28-07-2023,Adults,Beechcourt Care Centre - Bondcare,Nursing Homes - Private Contractors Payment,3192.00,0.00,COMMERCIAL SUPPLIER 
 28-07-2023,Adults,Beechcourt Care Centre - Bondcare,Nursing Care Income,3192.00,0.00,COMMERCIAL SUPPLIER 
 28-07-2023,Adults,Beechcourt Care Centre - Bondcare,Nursing Care Income,3192.00,0.00,COMMERCIAL SUPPLIER 
 28-07-2023,Adults,Beechcourt Care Centre - Bondcare,Nursing Homes - Private Contractors Payment,3192.00,0.00,COMMERCIAL SUPPLIER 
 28-07-2023,Adults,Beechcourt Care Centre - Bondcare,Nursing Homes - Private Contractors Payment,3192.00,0.00,COMMERCIAL SUPPLIER 
 28-07-2023,Adults,Beechcourt Care Centre - Bondcare,Nursing Homes - Private Contractors Payment,3192.00,0.00,COMMERCIAL SUPPLIER 
 28-07-2023,Adults,Beechcourt Care Centre - Bondcare,Nursing Homes - Private Contractors Payment,3192.00,0.00,COMMERCIAL SUPPLIER 
 28-07-2023,Adults,Beechcourt Care Centre - Bondcare,Nursing Homes - Private Contractors Payment,3192.00,0.00,COMMERCIAL SUPPLIER 
 28-07-2023,Adults,Beechcourt Care Centre - Bondcare,Nursing Homes - Private Contractors Payment,3192.00,0.00,COMMERCIAL SUPPLIER 
 28-07-2023,Adults,Beechcourt Care Centre - Bondcare,Nursing Homes - Private Contractors Payment,3008.00,0.00,COMMERCIAL SUPPLIER 
 28-07-2023,Adults,Beechcourt Care Centre - Bondcare,Nursing Homes - Private Contractors Payment,3192.00,0.00,COMMERCIAL SUPPLIER 
 28-07-2023,Adults,Beechcourt Care Centre - Bondcare,Nursing Homes - Private Contractors Payment,3008.00,0.00,COMMERCIAL SUPPLIER 
 28-07-2023,Adults,Beechcourt Care Centre - Bondcare,Residential Placements - Private Contractors Payment,4560.00,0.00,COMMERCIAL SUPPLIER 
 28-07-2023,Adults,Beechcourt Care Centre - Bondcare,Nursing Homes - Private Contractors Payment,3192.00,0.00,COMMERCIAL SUPPLIER 
 28-07-2023,Adults,Beechcourt Care Centre - Bondcare,Nursing Homes - Private Contractors Payment,3192.00,0.00,COMMERCIAL SUPPLIER 
 28-07-2023,Adults,Beechcourt Care Centre - Bondcare,Nursing Homes - Private Contractors Payment,3192.00,0.00,COMMERCIAL SUPPLIER 
 28-07-2023,Adults,Beechcourt Care Centre - Bondcare,Nursing Homes - Private Contractors Payment,3008.00,0.00,COMMERCIAL SUPPLIER 
 28-07-2023,Adults,Beechcourt Care Centre - Bondcare,Nursing Care Income,2394.00,0.00,COMMERCIAL SUPPLIER 
 28-07-2023,Adults,Beechcourt Care Centre - Bondcare,Nursing Care Income,3306.00,0.00,COMMERCIAL SUPPLIER 
 28-07-2023,Adults,Beechcourt Care Centre - Bondcare,Nursing Care Income,3192.00,0.00,COMMERCIAL SUPPLIER 
 28-07-2023,Adults,Beechcourt Care Centre - Bondcare,Nursing Care Income,3192.00,0.00,COMMERCIAL SUPPLIER 
 28-07-2023,Adults,Beechcourt Care Centre - Bondcare,Nursing Homes - Private Contractors Payment,3008.00,0.00,COMMERCIAL SUPPLIER 
 28-07-2023,Adults,Beechcourt Care Centre - Bondcare,Nursing Homes - Private Contractors Payment,3008.00,0.00,COMMERCIAL SUPPLIER 
 28-07-2023,Adults,Beechcourt Care Centre - Bondcare,Nursing Homes - Private Contractors Payment,3192.00,0.00,COMMERCIAL SUPPLIER 
 28-07-2023,Adults,Beechcourt Care Centre - Bondcare,Nursing Homes - Private Contractors Payment,3072.00,0.00,COMMERCIAL SUPPLIER 
 28-07-2023,Adults,Beechcourt Care Centre - Bondcare,Nursing Homes - Private Contractors Payment,3681.16,0.00,COMMERCIAL SUPPLIER 
 28-07-2023,Adults,Beechcourt Care Centre - Bondcare,Nursing Homes - Private Contractors Payment,3192.00,0.00,COMMERCIAL SUPPLIER 
 28-07-2023,Adults,Bondcare (London) Ltd ,Nursing Homes - Private Contractors Payment,3596.76,0.00,COMMERCIAL SUPPLIER 
 28-07-2023,Adults,Bondcare (London) Ltd ,Nursing Homes - Private Contractors Payment,3010.32,0.00,COMMERCIAL SUPPLIER 
 28-07-2023,Adults,Bondcare (London) Ltd ,Nursing Homes - Private Contractors Payment,12432.00,0.00,COMMERCIAL SUPPLIER 
 28-07-2023,Adults,Alexander Court Care Centre - Bondcare,Nursing Homes - Private Contractors Payment,3777.44,0.00,COMMERCIAL SUPPLIER 
 28-07-2023,Adults,Alexander Court Care Centre - Bondcare,Nursing Homes - Private Contractors Payment,3010.32,0.00,COMMERCIAL SUPPLIER 
 28-07-2023,Adults,Alexander Court Care Centre - Bondcare,Nursing Homes - Private Contractors Payment,3010.32,0.00,COMMERCIAL SUPPLIER 
 28-07-2023,Adults,Alexander Court Care Centre - Bondcare,Nursing Homes - Private Contractors Payment,3010.32,0.00,COMMERCIAL SUPPLIER 
 28-07-2023,Adults,Alexander Court Care Centre - Bondcare,Nursing Homes - Private Contractors Payment,3956.40,0.00,COMMERCIAL SUPPLIER 
 28-07-2023,Adults,Emerson Court_a,Residential Placements - Private Contractors Payment,3675.00,0.00,COMMERCIAL SUPPLIER 
 28-07-2023,Adults,Emerson Court_a,Residential Placements - Private Contractors Payment,3672.00,0.00,COMMERCIAL SUPPLIER 
 28-07-2023,Adults,Emerson Court_a,Residential Placements - Private Contractors Payment,3006.88,0.00,COMMERCIAL SUPPLIER 
 28-07-2023,Adults,Emerson Court_a,Residential Placements - Private Contractors Payment,3794.80,0.00,COMMERCIAL SUPPLIER 
 28-07-2023,Adults,Emerson Court_a,Residential Placements - Private Contractors Payment,3150.00,0.00,COMMERCIAL SUPPLIER 
 28-07-2023,Adults,Emerson Court_a,Residential Placements - Private Contractors Payment,3895.52,0.00,COMMERCIAL SUPPLIER 
 28-07-2023,Adults,DMP Healthcare (Heatherbrook) Ltd,Nursing Homes - Private Contractors Payment,2885.84,0.00,NON COMMERCIAL SUPPLIER 
 28-07-2023,Adults,DMP Healthcare (Heatherbrook) Ltd,Nursing Homes - Private Contractors Payment,5712.00,0.00,NON COMMERCIAL SUPPLIER 
 28-07-2023,Adults,DMP Healthcare (Heatherbrook) Ltd,Nursing Homes - Private Contractors Payment,2156.04,0.00,NON COMMERCIAL SUPPLIER 
 28-07-2023,Adults,DMP Healthcare (Heatherbrook) Ltd,Nursing Homes - Private Contractors Payment,2856.00,0.00,NON COMMERCIAL SUPPLIER 
 28-07-2023,Adults,DMP Healthcare (Heatherbrook) Ltd,Nursing Homes - Private Contractors Payment,3010.32,0.00,NON COMMERCIAL SUPPLIER 
 28-07-2023,Adults,DMP Healthcare (Heatherbrook) Ltd,Nursing Homes - Private Contractors Payment,3010.32,0.00,NON COMMERCIAL SUPPLIER 
 28-07-2023,Adults,DMP Healthcare (Heatherbrook) Ltd,Residential Placements - Private Contractors Payment,4560.00,0.00,NON COMMERCIAL SUPPLIER 
 28-07-2023,Adults,DMP Healthcare (Heatherbrook) Ltd,Nursing Homes - Private Contractors Payment,3010.32,0.00,NON COMMERCIAL SUPPLIER 
 28-07-2023,Adults,DMP Healthcare (Heatherbrook) Ltd,Nursing Homes - Private Contractors Payment,3010.32,0.00,NON COMMERCIAL SUPPLIER 
 28-07-2023,Adults,DMP Healthcare (Heatherbrook) Ltd,Nursing Homes - Private Contractors Payment,6552.00,0.00,NON COMMERCIAL SUPPLIER 
 28-07-2023,Adults,DMP Healthcare (Heatherbrook) Ltd,Nursing Homes - Private Contractors Payment,3010.32,0.00,NON COMMERCIAL SUPPLIER 
 28-07-2023,Adults,DMP Healthcare (Heatherbrook) Ltd,Nursing Homes - Private Contractors Payment,3010.32,0.00,NON COMMERCIAL SUPPLIER 
 28-07-2023,Adults,DMP Healthcare (Heatherbrook) Ltd,Nursing Homes - Private Contractors Payment,4280.00,0.00,NON COMMERCIAL SUPPLIER 
 28-07-2023,Adults,DMP Healthcare (Heatherbrook) Ltd,Nursing Homes - Private Contractors Payment,2856.64,0.00,NON COMMERCIAL SUPPLIER 
 28-07-2023,Adults,DMP Healthcare (Heatherbrook) Ltd,Nursing Homes - Private Contractors Payment,3010.32,0.00,NON COMMERCIAL SUPPLIER 
 28-07-2023,Adults,DMP Healthcare (Heatherbrook) Ltd,Residential Placements - Private Contractors Payment,3085.80,0.00,NON COMMERCIAL SUPPLIER 
 28-07-2023,Adults,DMP Healthcare (Heatherbrook) Ltd,Nursing Homes - Private Contractors Payment,4240.00,0.00,NON COMMERCIAL SUPPLIER 
 28-07-2023,Adults,DMP Healthcare (Heatherbrook) Ltd,Residential Placements - Private Contractors Payment,3085.80,0.00,NON COMMERCIAL SUPPLIER 
 28-07-2023,Adults,DMP Healthcare (Heatherbrook) Ltd,Nursing Homes - Private Contractors Payment,3010.32,0.00,NON COMMERCIAL SUPPLIER 
 28-07-2023,Adults,DMP Healthcare (Heatherbrook) Ltd,Nursing Homes - Private Contractors Payment,760.50,0.00,NON COMMERCIAL SUPPLIER 
 28-07-2023,Adults,Sense_a,Residential Placements - Private Contractors Payment,9017.44,0.00,COMMERCIAL SUPPLIER 
 28-07-2023,Adults,Oakley Carehomes Ltd t/a Abbey Care Home,Residential Placements - Private Contractors Payment,2800.00,0.00,COMMERCIAL SUPPLIER 
 28-07-2023,Adults,Oakley Carehomes Ltd t/a Abbey Care Home,Residential Placements - Private Contractors Payment,2802.40,0.00,COMMERCIAL SUPPLIER 
 28-07-2023,Adults,Masumin Ltd t/s Abbeleigh House,Residential Placements - Private Contractors Payment,3085.80,0.00,COMMERCIAL SUPPLIER 
 28-07-2023,Adults,Masumin Ltd t/s Abbeleigh House,Residential Placements - Private Contractors Payment,3085.80,0.00,COMMERCIAL SUPPLIER 
 28-07-2023,Adults,Masumin Ltd t/s Abbeleigh House,Residential Placements - Private Contractors Payment,3085.80,0.00,COMMERCIAL SUPPLIER 
 28-07-2023,Adults,Masumin Ltd t/s Abbeleigh House,Residential Placements - Private Contractors Payment,3085.80,0.00,COMMERCIAL SUPPLIER 
 28-07-2023,Adults,Masumin Ltd t/s Abbeleigh House,Residential Placements - Private Contractors Payment,1085.71,0.00,COMMERCIAL SUPPLIER 
 28-07-2023,Adults,Masumin Ltd t/s Abbeleigh House,Residential Placements - Private Contractors Payment,3800.00,0.00,COMMERCIAL SUPPLIER 
 28-07-2023,Adults,Masumin Ltd t/s Abbeleigh House,Residential Placements - Private Contractors Payment,3800.00,0.00,COMMERCIAL SUPPLIER 
 28-07-2023,Adults,Masumin Ltd t/s Abbeleigh House,Residential Placements - Private Contractors Payment,3085.80,0.00,COMMERCIAL SUPPLIER 
 28-07-2023,Adults,Masumin Ltd t/s Abbeleigh House,Residential Placements - Private Contractors Payment,2093.94,0.00,COMMERCIAL SUPPLIER 
 28-07-2023,Adults,Masumin Ltd t/s Abbeleigh House,Residential Placements - Private Contractors Payment,3085.80,0.00,COMMERCIAL SUPPLIER 
 28-07-2023,Adults,Masumin Ltd t/s Abbeleigh House,Residential Placements - Private Contractors Payment,1212.28,0.00,COMMERCIAL SUPPLIER 
 28-07-2023,Adults,Masumin Ltd t/s Abbeleigh House,Residential Placements - Private Contractors Payment,3085.80,0.00,COMMERCIAL SUPPLIER 
 28-07-2023,Adults,Masumin Ltd t/s Abbeleigh House,Residential Placements - Private Contractors Payment,3646.40,0.00,COMMERCIAL SUPPLIER 
 28-07-2023,Adults,Masumin Ltd t/s Abbeleigh House,Residential Placements - Private Contractors Payment,3085.80,0.00,COMMERCIAL SUPPLIER 
 28-07-2023,Adults,Masumin Ltd t/s Abbeleigh House,Residential Placements - Private Contractors Payment,3085.80,0.00,COMMERCIAL SUPPLIER 
 28-07-2023,Adults,Masumin Ltd t/s Abbeleigh House,Residential Placements - Private Contractors Payment,3085.80,0.00,COMMERCIAL SUPPLIER 
 28-07-2023,Adults,Masumin Ltd t/s Abbeleigh House,Residential Placements - Private Contractors Payment,3085.80,0.00,COMMERCIAL SUPPLIER 
 28-07-2023,Adults,Masumin Ltd t/s Abbeleigh House,Residential Placements - Private Contractors Payment,3400.00,0.00,COMMERCIAL SUPPLIER 
 28-07-2023,Adults,Masumin Ltd t/s Abbeleigh House,Respite Care - Private Contractors Payment,881.66,0.00,COMMERCIAL SUPPLIER 
 28-07-2023,Adults,Masumin Ltd t/s Abbeleigh House,Respite Care - Private Contractors Payment,661.24,0.00,COMMERCIAL SUPPLIER 
 28-07-2023,Adults,Masumin Ltd t/s Abbeleigh House,Residential Placements - Private Contractors Payment,3085.80,0.00,COMMERCIAL SUPPLIER 
 28-07-2023,Adults,Masumin Ltd t/s Abbeleigh House,Residential Placements - Private Contractors Payment,3500.00,0.00,COMMERCIAL SUPPLIER 
